{"text_format":"1","workbook":"xlsx","n_sheets":5,"sheets":["Instructions","Index","Price List","Websites","Updates"],"not_rendered":{"charts":0,"images":1,"macros":1,"external_links":0,"defined_names":20,"comments":0,"pivot_tables":0},"unopened":[],"bounds":{"document_bytes":16777216,"sheet_cells":100000,"rows_first":2000,"rows_last":500,"rows_between":2000,"halvings":0,"cell_chars":16384,"cell_head_chars":4096},"cells_cut":0,"cells_raw":0,"read":"whole","date_system":"1900"}

{"sheet":"Instructions","index":0,"n_rows":63,"n_cols":10,"rows_kept":63,"cut":false,"hidden":false,"merged":[[7,2,7,6]]}
["Manufacturer","Tools"]
["File as","T"]
["Product Code","N"]
["CCTD Effective Date","4/1/26"]
[]
[]
[]
["Enter your Company Name"]
[]
[null,"Click on \"Index\" to set the print area for the price list index"]
[null,"Then you can send it to print"]
[]
[]
[null,"Click on \"Suggested Price List\" to set the print area for Conestoga Tile's suggested price list."]
[null,"Then you can send it to print"]
[]
[]
[null,"Enter your discount codes if you want a personal net cost sheet."]
[]
[null,null,"Product"]
[null,null,"Code","Disc. %"]
[null,null,{"$f":"+B3","v":"N"},0,"  This is a \"NET\" price list.  0% is the discount for this spreadsheet"]
[]
[null,"Click on \"Your Cost\" to set the print area for your personal cost report."]
[null,"Then you can send it to print"]
[]
[]
["Discount: ","To help establish your price list, enter the gross profit percent for each type of product."]
[null,"If you want to use Conestoga Tile's list price, leave them blank."]
[]
["Round Nickel: ","If you always want your price to round to the nearest nickel, enter \"YES\"."]
[null,"If you enter \"NO\", it will NOT round to the nearest nickel."]
[]
["Ending Cents: ","If you always want your price to end with a certain cents, enter that cent value."]
[null,"If you leave it \"blank\" will NOT round to this cent value."]
[]
[null,"GP Margin % for","Group","GP Margin","Round Nickel","add/subtract","Ending Cents"]
[null,"Gundlach - All","GU",null,"No",0]
[null,"Hydra - All","HY",null,"No",0]
[null,"IQ Tools - Saws/Cutters","IQ1",null,"No",0,null,null,null," "]
[null,"IQ Tools - All Other","IQ",null,"No",0]
[null,"Progress Profiles - All","PP",null,"No",0]
[null,"RTC - Saws/Cutters","RS1",null,"No",0]
[null,"RTC - All Other","RS",null,"No",0]
[null,"Rubi - Saws/Cutters","RU1",null,"No",0]
[null,"Rubi - All Other","RU",null,"No",0]
[null,"Schluter - Trowels","SH",null,"No",0]
[null,"Troxell - Saws/Cutters","TR1",null,"No",0]
[null,"Troxell - All Other","TR",null,"No",0]
[]
["If you want to manually adjust your price list, hit \"F5\" and go to \"Customer_Cost\" to manually adjust pricing."]
["You can enter a value in the column labeled \"Adj.\" to change your price manually."]
[]
[null,"Click on \"Your Price Calculation\" to set the print area for your personal cost calculation report."]
[null,"Then you can send it to print"]
[]
[]
[null,"Click on \"Your Price List\" to set the print area for your personal price list."]
[null,"Then you can send it to print"]
[null,null,null,null,null,null,"Yes"]
[]
["If you have any questions on how to best use this spreadsheet, please feel free to contact"]
["Jim Vogel at (800) 422-6860, ext. 4201 or via e-mail at jimvogel@cctd.com"]

{"sheet":"Index","index":1,"n_rows":50,"n_cols":9,"rows_kept":50,"cut":false,"hidden":false,"merged":[[5,0,5,10],[47,0,47,10],[49,0,49,10],[2,5,2,10],[3,4,3,7],[10,2,10,4],[10,8,10,10]]}
[]
[]
[null,null,null,null,null,{"$f":"\"File '\"&Instructions!B2&\"' - \"&Instructions!B1","v":"File 'T' - Tools"}]
[]
[]
[{"$f":"\"Price List Index - \"&Instructions!B4","v":"Price List Index - 4/1/26"}]
[]
[]
[]
[]
["Page",null,"Product Type",null,null,null,"Page",null,"Product Type"]
[]
[]
[]
[]
[]
[]
[]
[]
[]
[]
[]
[]
[]
[]
[]
[]
[]
[]
[]
[]
[]
[]
[]
[]
[]
[]
[]
[]
[]
[]
[]
[]
[]
[]
[]
[]
["This price list is available electronically on an Excel spreadsheet at www.conestogatile.com/pricelists."]
[]
["The spreadsheet has many special features to assist you.  Apply your discount to generate your net costs for your purchasing department.  Apply your standard gross margin percentage or custom prices to generate your own custom price list for your showroom.  Print out individual price list for each series that can be attached to the back of your sample boards for easy reference."]

{"sheet":"Price List","index":2,"n_rows":521,"n_cols":43,"rows_kept":521,"cut":false,"hidden":false,"merged":[[3,24,3,25],[4,24,4,25],[3,16,3,21],[4,32,4,34],[510,5,510,6],[507,4,507,21],[8,4,8,6],[505,4,505,20],[10,4,10,20],[9,4,9,20],[8,16,8,17],[423,4,423,20],[202,20,203,20]]}
[null,null,null,{"$error":"#N/A"},null,"Our Part #",null,"Description",null,null,null,null,null,null,null,null,"Mfg.",null,null,null,{"$f":"IF(Suggested=\"Yes\",'Price List'!AC1,'Price List'!AI1)","v":{"$error":"#N/A"}},"EA",{"$f":"+Instructions!$B$3","v":"N"},null,{"$f":"+Instructions!$D$22","v":0},{"$f":"ROUND($AC1*(1-Y1)+0.004999,2)","v":{"$error":"#N/A"}},null,"new",{"$error":"#N/A"},{"$f":"+Y1","v":0},{"$f":"+Z1","v":{"$error":"#N/A"}},{"$f":"(AI1-AE1)/AI1","v":{"$error":"#N/A"}},null,{"$f":"+C1","v":0},{"$f":"SUM(AL1:AN1)+AG1","v":{"$error":"#N/A"}},null,null,{"$f":"ROUND(AE1/(1-VLOOKUP(AH1,Group,2,FALSE)),2)","v":{"$error":"#N/A"}},{"$f":"IF(VLOOKUP(AH1,Group,3,FALSE)=\"YES\",VLOOKUP(ROUND(ROUND(AL1,1)-AL1,2),Round,2,FALSE)+VLOOKUP(AH1,Group,4,FALSE),0)","v":{"$error":"#N/A"}},{"$f":"IF(VLOOKUP(AH1,Group,5,FALSE)=\"\",0,ROUND(AL1-0.04999,1)-AL1+AO1)","v":{"$error":"#N/A"}},{"$f":"IF(VLOOKUP(AH1,Group,5,FALSE)=\"\",\"\",VLOOKUP(AH1,Group,5,FALSE))","v":{"$error":"#N/A"}},null,"X"]
[null,null,null,"Format",null,null,null,null,null,null,null,null,null,null,null,null,null,null,"Stock","a",1000,"ABC",null,null,0.1,1000,null,"ABC",1000,0.1,1000,0.1,10,null,1000,null,null,null,null,null,null,null,"X"]
[null,null,null,null,null,null,null,null,null,null,null,null,null,null,null,null,null,null,null,null,null,null,null,null,null,null,null,null,null,null,null,null,null,null,null,null,null,null,null,null,null,null,"X"]
[null,null,null,null,null,null,null,null,null,null,null,null,null,null,null,null,{"$f":"\"File '\"&Instructions!B2&\"' - \"&Instructions!B1","v":"File 'T' - Tools"},null,null,null,null,null,null,null,null,null,null,null,null,null,null,null,null,null,"Retail Price Calculations",null,null,null,null,null,null,null,"X"]
[null,null,null,null,null,null,null,null,null,null,null,null,null,null,null,null,null,null,null,null,null,{"$f":"+Instructions!B4","v":"4/1/26"},null,null,"Cost",null,null,null,null,null,null,null,{"$f":"TODAY()","v":"2026-03-06"},null,null,null,null,null,null,null,null,null,"X"]
[null,null,null,null,{"$f":"\"Product Code '\"&Instructions!B3&\"'\"","v":"Product Code 'N'"},null,null,null,null,null,null,null,null,null,null,null,null,null,null,null,null,null,null,null,null,null,null,null,null,null,null,null,null,null,null,null,null,null,null,null,null,null,"X"]
[null,null,null,null,null,null,null,null,null,null,null,null,null,null,null,null,null,null,null,null,null,null,null,null,null,null,null,null,null,null,null,null,null,null,null,null,null,null,null,null,null,null,"X"]
[null,null,null,null,null,null,null,null,null,null,null,null,null,null,null,null,null,null,null,null,null,null,null,null,null,null,null,null,null,null,null,null,null,null,null,null,null,null,null,null,null,null,"X"]
["Mfg Item #",null,null,null,"Part Number",null,null,"Description",null,null,null,null,null,null,null,null,"Manufacturer",null,"Stock","Note","Net Price","U/M","Code",null,"Disc.","Net",null,"Chg","Net Price","Disc","Act. Cost","GP%","Adj.","Group","Price",null,null,"Calc Price",".05 Round","Cents","Round to",null,"X"]
[null,null,null,null,"PRICING LISTED IS NET PRICING.  TRADE DISCOUNTS DO NOT APPLY.",null,null,null,null,null,null,null,null,null,null,null,null,null,null,null,null,null,null,null,null,null,null,null,null,null,null,null,null,null,null,null,null,null,null,null,null,null,"X"]
[null,null,null,null,"Pricing is subject to change without notice.",null,null,null,null,null,null,null,null,null,null,null,null,null,null,null,null,null,null,null,null,null,null,null,null,null,null,null,null,null,null,null,null,null,null,null,null,null,"X"]
[null,null,null,null,null,null,null,null,null,null,null,null,null,null,null,null,null,null,null,null,null,null,null,null,null,null,null,null,null,null,null,null,null,null,null,null,null,null,null,null,null,null,"X"]
[null,null,null,null,"Trowels",null,null,null,null,null,null,null,null,null,null,null,null,null,null,null,null,null,null,null,null,null,null,null,null,null,null,null,null,null,null,null,null,null,null,null,null,null,"X"]
[null,null,null,null,null,null,null,null,null,null,null,null,null,null,null,null,null,null,null,null,null,null,null,null,null,null,null,null,null,null,null,null,null,null,null,null,null,null,null,null,null,null,"X"]
[null,null,null,null,null,"U-Notched and Square-Notched Trowels",null,null,null,null,null,null,null,null,null,null,null,null,null,null,null,null,null,null,null,null,null,null,null,null,null,null,null,null,null,null,null,null,null,null,null,null,"X"]
["TR1414SQ",null,"RS","RTC - All Other",null,"RSTRTR1414SQ",null,"1/4 x 1/4",null,"TR1414SQ",null,"- Soft Grip, Stainless Steel, Sq-Notch",null,null,null,null,"RTC",null,"Stock","new",{"$f":"IF(Suggested=\"Yes\",'Price List'!AC16,'Price List'!AI16)","v":12.45},"EA",{"$f":"+Instructions!$B$3","v":"N"},null,{"$f":"+Instructions!$D$22","v":0},{"$f":"ROUND($AC16*(1-Y16)+0.004999,2)","v":12.45},null,"new",12.45,{"$f":"+Y16","v":0},12.45,{"$f":"(AI16-AE16)/AI16","v":0},null,{"$f":"+C16","v":"RS"},{"$f":"SUM(AL16:AN16)+AG16","v":12.45},null,null,{"$f":"ROUND(AE16/(1-VLOOKUP(AH16,Group,2,FALSE)),2)","v":12.45},{"$f":"IF(VLOOKUP(AH16,Group,3,FALSE)=\"YES\",VLOOKUP(ROUND(ROUND(AL16,1)-AL16,2),Round,2,FALSE)+VLOOKUP(AH16,Group,4,FALSE),0)","v":0},{"$f":"IF(VLOOKUP(AH16,Group,5,FALSE)=\"\",0,ROUND(AL16-0.04999,1)-AL16+AO16)","v":0},{"$f":"IF(VLOOKUP(AH16,Group,5,FALSE)=\"\",\"\",VLOOKUP(AH16,Group,5,FALSE))","v":""},null,"X"]
["TR1438U",null,"RS","RTC - All Other",null,"RSTRTR1438U",null,"3/8 x 1/4",null,"TR1438U",null,"- Soft Grip, Stainless Steel, U-Notch",null,null,null,null,"RTC",null,"Stock","new",{"$f":"IF(Suggested=\"Yes\",'Price List'!AC17,'Price List'!AI17)","v":12.45},"EA",{"$f":"+Instructions!$B$3","v":"N"},null,{"$f":"+Instructions!$D$22","v":0},{"$f":"ROUND($AC17*(1-Y17)+0.004999,2)","v":12.45},null,"new",12.45,{"$f":"+Y17","v":0},{"$f":"+Z17","v":12.45},{"$f":"(AI17-AE17)/AI17","v":0},null,{"$f":"+C17","v":"RS"},{"$f":"SUM(AL17:AN17)+AG17","v":12.45},null,null,{"$f":"ROUND(AE17/(1-VLOOKUP(AH17,Group,2,FALSE)),2)","v":12.45},{"$f":"IF(VLOOKUP(AH17,Group,3,FALSE)=\"YES\",VLOOKUP(ROUND(ROUND(AL17,1)-AL17,2),Round,2,FALSE)+VLOOKUP(AH17,Group,4,FALSE),0)","v":0},{"$f":"IF(VLOOKUP(AH17,Group,5,FALSE)=\"\",0,ROUND(AL17-0.04999,1)-AL17+AO17)","v":0},{"$f":"IF(VLOOKUP(AH17,Group,5,FALSE)=\"\",\"\",VLOOKUP(AH17,Group,5,FALSE))","v":""},null,"X"]
["TR1412U",null,"RS","RTC - All Other",null,"RSTRTR1412U",null,"1/2 x 1/4",null,"TR1412U",null,"- Soft Grip, Stainless Steel, U-Notch",null,null,null,null,"RTC",null,"Stock","new",{"$f":"IF(Suggested=\"Yes\",'Price List'!AC18,'Price List'!AI18)","v":12.45},"EA",{"$f":"+Instructions!$B$3","v":"N"},null,{"$f":"+Instructions!$D$22","v":0},{"$f":"ROUND($AC18*(1-Y18)+0.004999,2)","v":12.45},null,"new",12.45,{"$f":"+Y18","v":0},12.45,{"$f":"(AI18-AE18)/AI18","v":0},null,{"$f":"+C18","v":"RS"},{"$f":"SUM(AL18:AN18)+AG18","v":12.45},null,null,{"$f":"ROUND(AE18/(1-VLOOKUP(AH18,Group,2,FALSE)),2)","v":12.45},{"$f":"IF(VLOOKUP(AH18,Group,3,FALSE)=\"YES\",VLOOKUP(ROUND(ROUND(AL18,1)-AL18,2),Round,2,FALSE)+VLOOKUP(AH18,Group,4,FALSE),0)","v":0},{"$f":"IF(VLOOKUP(AH18,Group,5,FALSE)=\"\",0,ROUND(AL18-0.04999,1)-AL18+AO18)","v":0},{"$f":"IF(VLOOKUP(AH18,Group,5,FALSE)=\"\",\"\",VLOOKUP(AH18,Group,5,FALSE))","v":""},null,"X"]
["TR1212SQ",null,"RS","RTC - All Other",null,"RSTRTR1212SQ",null,"1/2 x 1/2",null,"TR1212SQ",null,"- Soft Grip, Stainless Steel, Sq-Notch",null,null,null,null,"RTC",null,"Stock","new",{"$f":"IF(Suggested=\"Yes\",'Price List'!AC19,'Price List'!AI19)","v":12.45},"EA",{"$f":"+Instructions!$B$3","v":"N"},null,{"$f":"+Instructions!$D$22","v":0},{"$f":"ROUND($AC19*(1-Y19)+0.004999,2)","v":12.45},null,"new",12.45,{"$f":"+Y19","v":0},12.45,{"$f":"(AI19-AE19)/AI19","v":0},null,{"$f":"+C19","v":"RS"},{"$f":"SUM(AL19:AN19)+AG19","v":12.45},null,null,{"$f":"ROUND(AE19/(1-VLOOKUP(AH19,Group,2,FALSE)),2)","v":12.45},{"$f":"IF(VLOOKUP(AH19,Group,3,FALSE)=\"YES\",VLOOKUP(ROUND(ROUND(AL19,1)-AL19,2),Round,2,FALSE)+VLOOKUP(AH19,Group,4,FALSE),0)","v":0},{"$f":"IF(VLOOKUP(AH19,Group,5,FALSE)=\"\",0,ROUND(AL19-0.04999,1)-AL19+AO19)","v":0},{"$f":"IF(VLOOKUP(AH19,Group,5,FALSE)=\"\",\"\",VLOOKUP(AH19,Group,5,FALSE))","v":""},null,"X"]
[null,null,null,null,null,null,null,null,null,null,null,null,null,null,null,null,null,null,null,null,null,null,null,null,null,null,null,null,null,null,null,null,null,null,null,null,null,null,null,null,null,null,"X"]
[null,null,null,null,null,"Euro-Notched - Trowels",null,null,null,null,null,null,null,null,null,null,null,null,null,null,null,null,null,null,null,null,null,null,null,null,null,null,null,null,null,null,null,null,null,null,null,null,"X"]
["TRTIGER",null,"RS","RTC - All Other",null,"RSTRTRTIGER",null,"Euro-Notch",null,"TRTIGER",null,"- Soft Grip, Stainless Steel",null,null,null,null,"RTC",null,"Stock","new",{"$f":"IF(Suggested=\"Yes\",'Price List'!AC22,'Price List'!AI22)","v":12.45},"EA",{"$f":"+Instructions!$B$3","v":"N"},null,{"$f":"+Instructions!$D$22","v":0},{"$f":"ROUND($AC22*(1-Y22)+0.004999,2)","v":12.45},null,"new",12.45,{"$f":"+Y22","v":0},{"$f":"+Z22","v":12.45},{"$f":"(AI22-AE22)/AI22","v":0},null,{"$f":"+C22","v":"RS"},{"$f":"SUM(AL22:AN22)+AG22","v":12.45},null,null,{"$f":"ROUND(AE22/(1-VLOOKUP(AH22,Group,2,FALSE)),2)","v":12.45},{"$f":"IF(VLOOKUP(AH22,Group,3,FALSE)=\"YES\",VLOOKUP(ROUND(ROUND(AL22,1)-AL22,2),Round,2,FALSE)+VLOOKUP(AH22,Group,4,FALSE),0)","v":0},{"$f":"IF(VLOOKUP(AH22,Group,5,FALSE)=\"\",0,ROUND(AL22-0.04999,1)-AL22+AO22)","v":0},{"$f":"IF(VLOOKUP(AH22,Group,5,FALSE)=\"\",\"\",VLOOKUP(AH22,Group,5,FALSE))","v":""},null,"X"]
[null,null,null,null,null,null,null,null,null,null,null,null,null,null,null,null,null,null,null,null,null,null,null,null,null,null,null,null,null,null,null,null,null,null,null,null,null,null,null,null,null,null,"X"]
[null,null,null,null,null,"Schluter Sized - Trowels",null,null,null,null,null,null,null,null,null,null,null,null,null,null,null,null,null,null,null,null,null,null,null,null,null,null,null,null,null,null,null,null,null,null,null,null,"X"]
["TRL-KER",null,"SH","Schluter - Trowels",null,"SHTRLKER6",null,"1/8 x 1/8",null,"TRL-KER",null,"Schluter Kerdi trowel",null,null,null,null,"Schluter",null,null,null,{"$f":"IF(Suggested=\"Yes\",'Price List'!AC25,'Price List'!AI25)","v":25.7},"EA",{"$f":"+Instructions!$B$3","v":"N"},null,{"$f":"+Instructions!$D$22","v":0},{"$f":"ROUND($AC25*(1-Y25)+0.004999,2)","v":25.7},null,"YES",25.7,{"$f":"+Y25","v":0},{"$f":"+Z25","v":25.7},{"$f":"(AI25-AE25)/AI25","v":0},null,{"$f":"+C25","v":"SH"},{"$f":"SUM(AL25:AN25)+AG25","v":25.7},null,null,{"$f":"ROUND(AE25/(1-VLOOKUP(AH25,Group,2,FALSE)),2)","v":25.7},{"$f":"IF(VLOOKUP(AH25,Group,3,FALSE)=\"YES\",VLOOKUP(ROUND(ROUND(AL25,1)-AL25,2),Round,2,FALSE)+VLOOKUP(AH25,Group,4,FALSE),0)","v":0},{"$f":"IF(VLOOKUP(AH25,Group,5,FALSE)=\"\",0,ROUND(AL25-0.04999,1)-AL25+AO25)","v":0},{"$f":"IF(VLOOKUP(AH25,Group,5,FALSE)=\"\",\"\",VLOOKUP(AH25,Group,5,FALSE))","v":""},null,"X"]
["14-10SS",null,"TR","Troxell - All Other",null,"TX1410SS",null,"1/8 x 1/8",null,"14-10SS",null,"Kerdi-Size Trowel, Soft Grip, Stainless",null,null,null,null,"Troxell",null,"Stock",null,{"$f":"IF(Suggested=\"Yes\",'Price List'!AC26,'Price List'!AI26)","v":13.95},"EA",{"$f":"+Instructions!$B$3","v":"N"},null,{"$f":"+Instructions!$D$22","v":0},{"$f":"ROUND($AC26*(1-Y26)+0.004999,2)","v":13.95},null,"YES",13.95,{"$f":"+Y26","v":0},{"$f":"+Z26","v":13.95},{"$f":"(AI26-AE26)/AI26","v":0},null,{"$f":"+C26","v":"TR"},{"$f":"SUM(AL26:AN26)+AG26","v":13.95},null,null,{"$f":"ROUND(AE26/(1-VLOOKUP(AH26,Group,2,FALSE)),2)","v":13.95},{"$f":"IF(VLOOKUP(AH26,Group,3,FALSE)=\"YES\",VLOOKUP(ROUND(ROUND(AL26,1)-AL26,2),Round,2,FALSE)+VLOOKUP(AH26,Group,4,FALSE),0)","v":0},{"$f":"IF(VLOOKUP(AH26,Group,5,FALSE)=\"\",0,ROUND(AL26-0.04999,1)-AL26+AO26)","v":0},{"$f":"IF(VLOOKUP(AH26,Group,5,FALSE)=\"\",\"\",VLOOKUP(AH26,Group,5,FALSE))","v":""},null,"X"]
[null,null,null,null,null,null,null,null,null,null,null,null,null,null,null,null,null,null,null,null,null,null,null,null,null,null,null,null,null,null,null,null,null,null,null,null,null,null,null,null,null,null,"X"]
["TRL-DIT",null,"SH","Schluter - Trowels",null,"SHTRLDIT6",null,"11/64 x 11/64",null,"TRL-DIT",null,"Schluter Ditra trowel",null,null,null,null,"Schluter",null,null,null,{"$f":"IF(Suggested=\"Yes\",'Price List'!AC28,'Price List'!AI28)","v":25.7},"EA",{"$f":"+Instructions!$B$3","v":"N"},null,{"$f":"+Instructions!$D$22","v":0},{"$f":"ROUND($AC28*(1-Y28)+0.004999,2)","v":25.7},null,"YES",25.7,{"$f":"+Y28","v":0},{"$f":"+Z28","v":25.7},{"$f":"(AI28-AE28)/AI28","v":0},null,{"$f":"+C28","v":"SH"},{"$f":"SUM(AL28:AN28)+AG28","v":25.7},null,null,{"$f":"ROUND(AE28/(1-VLOOKUP(AH28,Group,2,FALSE)),2)","v":25.7},{"$f":"IF(VLOOKUP(AH28,Group,3,FALSE)=\"YES\",VLOOKUP(ROUND(ROUND(AL28,1)-AL28,2),Round,2,FALSE)+VLOOKUP(AH28,Group,4,FALSE),0)","v":0},{"$f":"IF(VLOOKUP(AH28,Group,5,FALSE)=\"\",0,ROUND(AL28-0.04999,1)-AL28+AO28)","v":0},{"$f":"IF(VLOOKUP(AH28,Group,5,FALSE)=\"\",\"\",VLOOKUP(AH28,Group,5,FALSE))","v":""},null,"X"]
["14-20SS",null,"TR","Troxell - All Other",null,"TX1420SS",null,"11/64 x 11/64",null,"14-20SS",null,"Ditra-Size Trowel, Soft Grip, Stainless",null,null,null,null,"Troxell",null,"Stock",null,{"$f":"IF(Suggested=\"Yes\",'Price List'!AC29,'Price List'!AI29)","v":13.95},"EA",{"$f":"+Instructions!$B$3","v":"N"},null,{"$f":"+Instructions!$D$22","v":0},{"$f":"ROUND($AC29*(1-Y29)+0.004999,2)","v":13.95},null,"YES",13.95,{"$f":"+Y29","v":0},{"$f":"+Z29","v":13.95},{"$f":"(AI29-AE29)/AI29","v":0},null,{"$f":"+C29","v":"TR"},{"$f":"SUM(AL29:AN29)+AG29","v":13.95},null,null,{"$f":"ROUND(AE29/(1-VLOOKUP(AH29,Group,2,FALSE)),2)","v":13.95},{"$f":"IF(VLOOKUP(AH29,Group,3,FALSE)=\"YES\",VLOOKUP(ROUND(ROUND(AL29,1)-AL29,2),Round,2,FALSE)+VLOOKUP(AH29,Group,4,FALSE),0)","v":0},{"$f":"IF(VLOOKUP(AH29,Group,5,FALSE)=\"\",0,ROUND(AL29-0.04999,1)-AL29+AO29)","v":0},{"$f":"IF(VLOOKUP(AH29,Group,5,FALSE)=\"\",\"\",VLOOKUP(AH29,Group,5,FALSE))","v":""},null,"X"]
[null,null,null,null,null,null,null,null,null,null,null,null,null,null,null,null,null,null,null,null,null,null,null,null,null,null,null,null,null,null,null,null,null,null,null,null,null,null,null,null,null,null,"X"]
["TRL-DHXL",null,"SH","Schluter - Trowels",null,"SHTRLDHXL",null,"1/4 x 1/4",null,"TRL-DHXL",null,"Schluter DitraXL trowel",null,null,null,null,"Schluter",null,null,null,{"$f":"IF(Suggested=\"Yes\",'Price List'!AC31,'Price List'!AI31)","v":25.7},"EA",{"$f":"+Instructions!$B$3","v":"N"},null,{"$f":"+Instructions!$D$22","v":0},{"$f":"ROUND($AC31*(1-Y31)+0.004999,2)","v":25.7},null,"YES",25.7,{"$f":"+Y31","v":0},{"$f":"+Z31","v":25.7},{"$f":"(AI31-AE31)/AI31","v":0},null,{"$f":"+C31","v":"SH"},{"$f":"SUM(AL31:AN31)+AG31","v":25.7},null,null,{"$f":"ROUND(AE31/(1-VLOOKUP(AH31,Group,2,FALSE)),2)","v":25.7},{"$f":"IF(VLOOKUP(AH31,Group,3,FALSE)=\"YES\",VLOOKUP(ROUND(ROUND(AL31,1)-AL31,2),Round,2,FALSE)+VLOOKUP(AH31,Group,4,FALSE),0)","v":0},{"$f":"IF(VLOOKUP(AH31,Group,5,FALSE)=\"\",0,ROUND(AL31-0.04999,1)-AL31+AO31)","v":0},{"$f":"IF(VLOOKUP(AH31,Group,5,FALSE)=\"\",\"\",VLOOKUP(AH31,Group,5,FALSE))","v":""},null,"X"]
["TR1414SQ",null,"RS","RTC - All Other",null,"RSTRTR1414SQ",null,"1/4 x 1/4",null,"TR1414SQ",null,"- Soft Grip, Stainless Steel, Sq-Notch",null,null,null,null,"RTC",null,"Stock","new",{"$f":"IF(Suggested=\"Yes\",'Price List'!AC32,'Price List'!AI32)","v":12.45},"EA",{"$f":"+Instructions!$B$3","v":"N"},null,{"$f":"+Instructions!$D$22","v":0},{"$f":"ROUND($AC32*(1-Y32)+0.004999,2)","v":12.45},null,"new",12.45,{"$f":"+Y32","v":0},{"$f":"+Z32","v":12.45},{"$f":"(AI32-AE32)/AI32","v":0},null,{"$f":"+C32","v":"RS"},{"$f":"SUM(AL32:AN32)+AG32","v":12.45},null,null,{"$f":"ROUND(AE32/(1-VLOOKUP(AH32,Group,2,FALSE)),2)","v":12.45},{"$f":"IF(VLOOKUP(AH32,Group,3,FALSE)=\"YES\",VLOOKUP(ROUND(ROUND(AL32,1)-AL32,2),Round,2,FALSE)+VLOOKUP(AH32,Group,4,FALSE),0)","v":0},{"$f":"IF(VLOOKUP(AH32,Group,5,FALSE)=\"\",0,ROUND(AL32-0.04999,1)-AL32+AO32)","v":0},{"$f":"IF(VLOOKUP(AH32,Group,5,FALSE)=\"\",\"\",VLOOKUP(AH32,Group,5,FALSE))","v":""},null,"X"]
[null,null,null,null,null,null,null,null,null,null,null,null,null,null,null,null,null,null,null,null,null,null,null,null,null,null,null,null,null,null,null,null,null,null,null,null,null,null,null,null,null,null,"X"]
[null,null,null,null,null,"V-Notched - Trowels",null,null,null,null,null,null,null,null,null,null,null,null,null,null,null,null,null,null,null,null,null,null,null,null,null,null,null,null,null,null,null,null,null,null,null,null,"X"]
["TR14316V",null,"RS","RTC - All Other",null,"RSTRTR14316V",null,"3/16 x 1/4",null,"TR14316V",null,"- Soft Grip, Stainless Steel, V-Notch",null,null,null,null,"RTC",null,"Stock","new",{"$f":"IF(Suggested=\"Yes\",'Price List'!AC35,'Price List'!AI35)","v":12.45},"EA",{"$f":"+Instructions!$B$3","v":"N"},null,{"$f":"+Instructions!$D$22","v":0},{"$f":"ROUND($AC35*(1-Y35)+0.004999,2)","v":12.45},null,"new",12.45,{"$f":"+Y35","v":0},12.45,{"$f":"(AI35-AE35)/AI35","v":0},null,{"$f":"+C35","v":"RS"},{"$f":"SUM(AL35:AN35)+AG35","v":12.45},null,null,{"$f":"ROUND(AE35/(1-VLOOKUP(AH35,Group,2,FALSE)),2)","v":12.45},{"$f":"IF(VLOOKUP(AH35,Group,3,FALSE)=\"YES\",VLOOKUP(ROUND(ROUND(AL35,1)-AL35,2),Round,2,FALSE)+VLOOKUP(AH35,Group,4,FALSE),0)","v":0},{"$f":"IF(VLOOKUP(AH35,Group,5,FALSE)=\"\",0,ROUND(AL35-0.04999,1)-AL35+AO35)","v":0},{"$f":"IF(VLOOKUP(AH35,Group,5,FALSE)=\"\",\"\",VLOOKUP(AH35,Group,5,FALSE))","v":""},null,"X"]
[null,null,null,null,null,null,null,null,null,null,null,null,null,null,null,null,null,null,null,null,null,null,null,null,null,null,null,null,null,null,null,null,null,null,null,null,null,null,null,null,null,null,"X"]
[null,null,null,null,null,"Margin Trowels",null,null,null,null,null,null,null,null,null,null,null,null,null,null,null,null,null,null,null,null,null,null,null,null,null,null,null,null,null,null,null,null,null,null,null,null,"X"]
["TRM52",null,"RS","RTC - All Other",null,"RSTRTRM52",null,"5\" x 2\"",null,"TRM52",null,"- Soft Grip, Carbon Steel",null,null,null,null,"RTC",null,"Stock","new",{"$f":"IF(Suggested=\"Yes\",'Price List'!AC38,'Price List'!AI38)","v":5.85},"EA",{"$f":"+Instructions!$B$3","v":"N"},null,{"$f":"+Instructions!$D$22","v":0},{"$f":"ROUND($AC38*(1-Y38)+0.004999,2)","v":5.85},null,"new",5.85,{"$f":"+Y38","v":0},{"$f":"+Z38","v":5.85},{"$f":"(AI38-AE38)/AI38","v":0},null,{"$f":"+C38","v":"RS"},{"$f":"SUM(AL38:AN38)+AG38","v":5.85},null,null,{"$f":"ROUND(AE38/(1-VLOOKUP(AH38,Group,2,FALSE)),2)","v":5.85},{"$f":"IF(VLOOKUP(AH38,Group,3,FALSE)=\"YES\",VLOOKUP(ROUND(ROUND(AL38,1)-AL38,2),Round,2,FALSE)+VLOOKUP(AH38,Group,4,FALSE),0)","v":0},{"$f":"IF(VLOOKUP(AH38,Group,5,FALSE)=\"\",0,ROUND(AL38-0.04999,1)-AL38+AO38)","v":0},{"$f":"IF(VLOOKUP(AH38,Group,5,FALSE)=\"\",\"\",VLOOKUP(AH38,Group,5,FALSE))","v":""},null,"X"]
[null,null,"TR","Troxell - All Other",null,"TX15-582",null,"8\" x 2\"",null,"15-582",null,"- Soft Grip, Stainless Steel",null,null,null,null,"Troxell",null,"Stock",null,{"$f":"IF(Suggested=\"Yes\",'Price List'!AC39,'Price List'!AI39)","v":8.4499999999999993},"EA",{"$f":"+Instructions!$B$3","v":"N"},null,{"$f":"+Instructions!$D$22","v":0},{"$f":"ROUND($AC39*(1-Y39)+0.004999,2)","v":8.4499999999999993},null,"",8.4499999999999993,{"$f":"+Y39","v":0},8.4499999999999993,0,null,{"$f":"+C39","v":"TR"},8.4499999999999993,null,null,8.4499999999999993,0,0,"",null,"X"]
[null,null,null,null,null,null,null,null,null,null,null,null,null,null,null,null,null,null,null,null,null,null,null,null,null,null,null,null,null,null,null,null,null,null,null,null,null,null,null,null,null,null,"X"]
[null,null,null,null,null,"Bucket Trowels",null,null,null,null,null,null,null,null,null,null,null,null,null,null,null,null,null,null,null,null,null,null,null,null,null,null,null,null,null,null,null,null,null,null,null,null,"X"]
["TR7BUCKET",null,"RS","RTC - All Other",null,"RSTRTR7BUCKET",null,"7\" Bucket Trowel",null,"TR7BUCKET",null,"- Soft Grip, Carbon Steel",null,null,null,null,"RTC",null,"Stock","new",{"$f":"IF(Suggested=\"Yes\",'Price List'!AC42,'Price List'!AI42)","v":10.6},"EA",{"$f":"+Instructions!$B$3","v":"N"},null,{"$f":"+Instructions!$D$22","v":0},{"$f":"ROUND($AC42*(1-Y42)+0.004999,2)","v":10.6},null,"new",10.6,{"$f":"+Y42","v":0},{"$f":"+Z42","v":10.6},0,null,{"$f":"+C42","v":"RS"},10.6,null,null,10.6,0,0,"",null,"X"]
[null,null,null,null,null,null,null,null,null,null,null,null,null,null,null,null,null,null,null,null,null,null,null,null,null,null,null,null,null,null,null,null,null,null,null,null,null,null,null,null,null,null,"X"]
[null,null,null,null,null,"Trowel/Float Reach Support",null,null,null,null,null,null,null,null,null,null,null,null,null,null,null,null,null,null,null,null,null,null,null,null,null,null,null,null,null,null,null,null,null,null,null,null,"X"]
["LTSPIDER",null,"RS","RTC - All Other",null,"RSTRLTSPIDER",null,"LTSPIDER",null,"Ergonomic Spider Back Saving Tool - Reach Support",null,null,null,null,null,null,"RTC",null,"Stock","new",{"$f":"IF(Suggested=\"Yes\",'Price List'!AC45,'Price List'!AI45)","v":19.25},"EA",{"$f":"+Instructions!$B$3","v":"N"},null,{"$f":"+Instructions!$D$22","v":0},{"$f":"ROUND($AC45*(1-Y45)+0.004999,2)","v":19.25},null,"new",19.25,{"$f":"+Y45","v":0},{"$f":"+Z45","v":19.25},{"$f":"(AI45-AE45)/AI45","v":0},null,{"$f":"+C45","v":"RS"},{"$f":"SUM(AL45:AN45)+AG45","v":19.25},null,null,{"$f":"ROUND(AE45/(1-VLOOKUP(AH45,Group,2,FALSE)),2)","v":19.25},{"$f":"IF(VLOOKUP(AH45,Group,3,FALSE)=\"YES\",VLOOKUP(ROUND(ROUND(AL45,1)-AL45,2),Round,2,FALSE)+VLOOKUP(AH45,Group,4,FALSE),0)","v":0},{"$f":"IF(VLOOKUP(AH45,Group,5,FALSE)=\"\",0,ROUND(AL45-0.04999,1)-AL45+AO45)","v":0},{"$f":"IF(VLOOKUP(AH45,Group,5,FALSE)=\"\",\"\",VLOOKUP(AH45,Group,5,FALSE))","v":""},null,"X"]
[null,null,null,null,null,null,null,null,null,null,null,null,null,null,null,null,null,null,null,null,null,null,null,null,null,null,null,null,null,null,null,null,null,null,null,null,null,null,null,null,null,null,"X"]
[null,null,null,null,"Floats",null,null,null,null,null,null,null,null,null,null,null,null,null,null,null,null,null,null,null,null,null,null,null,null,null,null,null,null,null,null,null,null,null,null,null,null,null,"X"]
[null,null,null,null,null,null,null,null,null,null,null,null,null,null,null,null,null,null,null,null,null,null,null,null,null,null,null,null,null,null,null,null,null,null,null,null,null,null,null,null,null,null,"X"]
[null,null,null,null,null,"Regular Floats",null,null,null,null,null,null,null,null,null,null,null,null,null,null,null,null,null,null,null,null,null,null,null,null,null,null,null,null,null,null,null,null,null,null,null,null,"X"]
[null,null,null,null,null,null,null,null,null,null,null,null,null,null,null,null,null,null,null,null,null,null,null,null,null,null,null,null,null,null,null,null,null,null,null,null,null,null,null,null,null,null,"X"]
["09-43P",null,"TR","Troxell - All Other",null,"TX0943P",null,"4\" x 9\"",null,"09-43P",null,"Super-Grip PROFLEX Gum Float",null,null,null,null,"Troxell",null,"Stock",null,{"$f":"IF(Suggested=\"Yes\",'Price List'!AC51,'Price List'!AI51)","v":16.75},"EA",{"$f":"+Instructions!$B$3","v":"N"},null,{"$f":"+Instructions!$D$22","v":0},{"$f":"ROUND($AC51*(1-Y51)+0.004999,2)","v":16.75},null,"YES",16.75,{"$f":"+Y51","v":0},16.75,{"$f":"(AI51-AE51)/AI51","v":0},null,{"$f":"+C51","v":"TR"},{"$f":"SUM(AL51:AN51)+AG51","v":16.75},null,null,{"$f":"ROUND(AE51/(1-VLOOKUP(AH51,Group,2,FALSE)),2)","v":16.75},{"$f":"IF(VLOOKUP(AH51,Group,3,FALSE)=\"YES\",VLOOKUP(ROUND(ROUND(AL51,1)-AL51,2),Round,2,FALSE)+VLOOKUP(AH51,Group,4,FALSE),0)","v":0},{"$f":"IF(VLOOKUP(AH51,Group,5,FALSE)=\"\",0,ROUND(AL51-0.04999,1)-AL51+AO51)","v":0},{"$f":"IF(VLOOKUP(AH51,Group,5,FALSE)=\"\",\"\",VLOOKUP(AH51,Group,5,FALSE))","v":""},null,"X"]
["84926",null,"RU","Rubi - All Other",null,"RU84926",null,"4\" x 9\"",null,84926,null,"Pro Rubber Grout Float - #43",null,null,null,null,"Rubi",null,"Stock","new",{"$f":"IF(Suggested=\"Yes\",'Price List'!AC52,'Price List'!AI52)","v":15.15},"EA",{"$f":"+Instructions!$B$3","v":"N"},null,{"$f":"+Instructions!$D$22","v":0},{"$f":"ROUND($AC52*(1-Y52)+0.004999,2)","v":15.15},null,"new",15.15,{"$f":"+Y52","v":0},{"$f":"+Z52","v":15.15},{"$f":"(AI52-AE52)/AI52","v":0},null,{"$f":"+C52","v":"RU"},{"$f":"SUM(AL52:AN52)+AG52","v":15.15},null,null,{"$f":"ROUND(AE52/(1-VLOOKUP(AH52,Group,2,FALSE)),2)","v":15.15},{"$f":"IF(VLOOKUP(AH52,Group,3,FALSE)=\"YES\",VLOOKUP(ROUND(ROUND(AL52,1)-AL52,2),Round,2,FALSE)+VLOOKUP(AH52,Group,4,FALSE),0)","v":0},{"$f":"IF(VLOOKUP(AH52,Group,5,FALSE)=\"\",0,ROUND(AL52-0.04999,1)-AL52+AO52)","v":0},{"$f":"IF(VLOOKUP(AH52,Group,5,FALSE)=\"\",\"\",VLOOKUP(AH52,Group,5,FALSE))","v":""},null,"X"]
[null,null,null,null,null,null,null,null,null,null,null,null,null,null,null,null,null,null,null,null,null,null,null,null,null,null,null,null,null,null,null,null,null,null,null,null,null,null,null,null,null,null,"X"]
[null,null,null,null,null,"Epoxy Floats",null,null,null,null,null,null,null,null,null,null,null,null,null,null,null,null,null,null,null,null,null,null,null,null,null,null,null,null,null,null,null,null,null,null,null,null,"X"]
["09-KF",null,"TR","Troxell - All Other",null,"TX09KF",null,"4\" x 9\"",null,"09-KF",null,"Super-Grip PROFLEX Yellow Float",null,null,null,null,"Troxell",null,"Stock",null,{"$f":"IF(Suggested=\"Yes\",'Price List'!AC55,'Price List'!AI55)","v":21.8},"EA",{"$f":"+Instructions!$B$3","v":"N"},null,{"$f":"+Instructions!$D$22","v":0},{"$f":"ROUND($AC55*(1-Y55)+0.004999,2)","v":21.8},null,"",21.8,{"$f":"+Y55","v":0},21.8,{"$f":"(AI55-AE55)/AI55","v":0},null,{"$f":"+C55","v":"TR"},{"$f":"SUM(AL55:AN55)+AG55","v":21.8},null,null,{"$f":"ROUND(AE55/(1-VLOOKUP(AH55,Group,2,FALSE)),2)","v":21.8},{"$f":"IF(VLOOKUP(AH55,Group,3,FALSE)=\"YES\",VLOOKUP(ROUND(ROUND(AL55,1)-AL55,2),Round,2,FALSE)+VLOOKUP(AH55,Group,4,FALSE),0)","v":0},{"$f":"IF(VLOOKUP(AH55,Group,5,FALSE)=\"\",0,ROUND(AL55-0.04999,1)-AL55+AO55)","v":0},{"$f":"IF(VLOOKUP(AH55,Group,5,FALSE)=\"\",\"\",VLOOKUP(AH55,Group,5,FALSE))","v":""},null,"X"]
[null,null,null,null,null,null,null,null,null,null,null,null,null,null,null,null,null,null,null,null,null,null,null,null,null,null,null,null,null,null,null,null,null,null,null,null,null,null,null,null,null,null,"X"]
[null,null,null,null,null,"Slim Floats",null,null,"(Ideal for getting under tight spaces such as toe-kicks)",null,null,null,null,null,null,null,null,null,null,null,null,null,null,null,null,null,null,null,null,null,null,null,null,null,null,null,null,null,null,null,null,null,"X"]
["GFSLIM",null,"RS","RTC - All Other",null,"RSFLGFSLIM",null,"3\" x 15\"",null,"GFSLIM",null,"Red Rubber Slim Grout Float",null,null,null,null,"RTC",null,"Stock","new",{"$f":"IF(Suggested=\"Yes\",'Price List'!AC58,'Price List'!AI58)","v":19.3},"EA",{"$f":"+Instructions!$B$3","v":"N"},null,{"$f":"+Instructions!$D$22","v":0},{"$f":"ROUND($AC58*(1-Y58)+0.004999,2)","v":19.3},null,"new",19.3,{"$f":"+Y58","v":0},{"$f":"+Z58","v":19.3},{"$f":"(AI58-AE58)/AI58","v":0},null,{"$f":"+C58","v":"RS"},{"$f":"SUM(AL58:AN58)+AG58","v":19.3},null,null,{"$f":"ROUND(AE58/(1-VLOOKUP(AH58,Group,2,FALSE)),2)","v":19.3},{"$f":"IF(VLOOKUP(AH58,Group,3,FALSE)=\"YES\",VLOOKUP(ROUND(ROUND(AL58,1)-AL58,2),Round,2,FALSE)+VLOOKUP(AH58,Group,4,FALSE),0)","v":0},{"$f":"IF(VLOOKUP(AH58,Group,5,FALSE)=\"\",0,ROUND(AL58-0.04999,1)-AL58+AO58)","v":0},{"$f":"IF(VLOOKUP(AH58,Group,5,FALSE)=\"\",\"\",VLOOKUP(AH58,Group,5,FALSE))","v":""},null,"X"]
[null,null,null,null,null,null,null,null,null,null,null,null,null,null,null,null,null,null,null,null,null,null,null,null,null,null,null,null,null,null,null,null,null,null,null,null,null,null,null,null,null,null,"X"]
[null,null,null,null,"Grouting Clean Up Systems / Sponges",null,null,null,null,null,null,null,null,null,null,null,null,null,null,null,null,null,null,null,null,null,null,null,null,null,null,null,null,null,null,null,null,null,null,null,null,null,"X"]
[null,null,null,null,null,null,null,null,null,null,null,null,null,null,null,null,null,null,null,null,null,null,null,null,null,null,null,null,null,null,null,null,null,null,null,null,null,null,null,null,null,null,"X"]
[null,null,null,null,null,"Electric Sponge Wringer System",null,null,null,null,null,null,null,null,null,null,null,null,null,null,null,null,null,null,null,null,null,null,null,null,null,null,null,null,null,null,null,null,null,null,null,null,"X"]
["WRINGO",null,"RS1","RTC - Saws/Cutters",null,"RSSGWRINGO",null,"WRINGO - WrinGo Electric Sponge Wringer",null,null,null,null,null,null,null,null,"RTC",null,"Stock","new",{"$f":"IF(Suggested=\"Yes\",'Price List'!AC63,'Price List'!AI63)","v":469},"EA",{"$f":"+Instructions!$B$3","v":"N"},null,{"$f":"+Instructions!$D$22","v":0},{"$f":"ROUND($AC63*(1-Y63)+0.004999,2)","v":469},null,"new",469,{"$f":"+Y63","v":0},{"$f":"+Z63","v":469},{"$f":"(AI63-AE63)/AI63","v":0},null,{"$f":"+C63","v":"RS1"},{"$f":"SUM(AL63:AN63)+AG63","v":469},null,null,{"$f":"ROUND(AE63/(1-VLOOKUP(AH63,Group,2,FALSE)),2)","v":469},{"$f":"IF(VLOOKUP(AH63,Group,3,FALSE)=\"YES\",VLOOKUP(ROUND(ROUND(AL63,1)-AL63,2),Round,2,FALSE)+VLOOKUP(AH63,Group,4,FALSE),0)","v":0},{"$f":"IF(VLOOKUP(AH63,Group,5,FALSE)=\"\",0,ROUND(AL63-0.04999,1)-AL63+AO63)","v":0},{"$f":"IF(VLOOKUP(AH63,Group,5,FALSE)=\"\",\"\",VLOOKUP(AH63,Group,5,FALSE))","v":""},null,"X"]
[null,null,null,null,null,null,null,null,"Save Time and Save your Hands as the WrinGo preps your sponges for use"]
[null,null,null,null,null,null,null,null,null,null,null,null,null,null,null,null,null,null,null,null,null,null,null,null,null,null,null,null,null,null,null,null,null,null,null,null,null,null,null,null,null,null,"X"]
[null,null,null,null,null,"Roller Grout Bucket",null,null,null,null,null,null,null,null,null,null,null,null,null,null,null,null,null,null,null,null,null,null,null,null,null,null,null,null,null,null,null,null,null,null,null,null,"X"]
["WBHR",null,"RS","RTC - All Other",null,"RSSGWBHR",null,"WBHR High Roller Grout Bucket Kit (include Sponge Float w/ Holder)",null,null,null,null,null,null,null,null,"RTC",null,"Stock","new",{"$f":"IF(Suggested=\"Yes\",'Price List'!AC67,'Price List'!AI67)","v":53.85},"EA",{"$f":"+Instructions!$B$3","v":"N"},null,{"$f":"+Instructions!$D$22","v":0},{"$f":"ROUND($AC67*(1-Y67)+0.004999,2)","v":53.85},null,"new",53.85,{"$f":"+Y67","v":0},{"$f":"+Z67","v":53.85},{"$f":"(AI67-AE67)/AI67","v":0},null,{"$f":"+C67","v":"RS"},{"$f":"SUM(AL67:AN67)+AG67","v":53.85},null,null,{"$f":"ROUND(AE67/(1-VLOOKUP(AH67,Group,2,FALSE)),2)","v":53.85},{"$f":"IF(VLOOKUP(AH67,Group,3,FALSE)=\"YES\",VLOOKUP(ROUND(ROUND(AL67,1)-AL67,2),Round,2,FALSE)+VLOOKUP(AH67,Group,4,FALSE),0)","v":0},{"$f":"IF(VLOOKUP(AH67,Group,5,FALSE)=\"\",0,ROUND(AL67-0.04999,1)-AL67+AO67)","v":0},{"$f":"IF(VLOOKUP(AH67,Group,5,FALSE)=\"\",\"\",VLOOKUP(AH67,Group,5,FALSE))","v":""},null,"X"]
["WBSF",null,"RS","RTC - All Other",null,"RSSGWBSF",null,null,"WBSF",null,"High Roller Sponge Float w/ Cuts",null,null,null,null,null,"RTC",null,"Stock","new",{"$f":"IF(Suggested=\"Yes\",'Price List'!AC68,'Price List'!AI68)","v":8.6},"EA",{"$f":"+Instructions!$B$3","v":"N"},null,{"$f":"+Instructions!$D$22","v":0},8.6,null,"new",8.6,0,8.6,0,null,"RS",8.6,null,null,8.6,0,0,"",null,"X"]
["WBHRLID",null,"RS","RTC - All Other",null,"RSSGWBHRLID",null,null,"WBHRLID",null,"High Roller Bucket Lid",null,null,null,null,null,"RTC",null,null,"new",{"$f":"IF(Suggested=\"Yes\",'Price List'!AC69,'Price List'!AI69)","v":11.8},"EA",{"$f":"+Instructions!$B$3","v":"N"},null,{"$f":"+Instructions!$D$22","v":0},11.8,null,"new",11.8,{"$f":"+Y69","v":0},{"$f":"+Z69","v":11.8},{"$f":"(AI69-AE69)/AI69","v":0},null,"RS",{"$f":"SUM(AL69:AN69)+AG69","v":11.8},null,null,11.8,0,0,"",null,"X"]
["WBRW",null,"RS","RTC - All Other",null,"RSSGWBRW",null,null,"WBRW",null,"High Roller Replacement Wheels - 4 piece set",null,null,null,null,null,"RTC",null,null,"new",{"$f":"IF(Suggested=\"Yes\",'Price List'!AC70,'Price List'!AI70)","v":11.8},"PK",{"$f":"+Instructions!$B$3","v":"N"},null,{"$f":"+Instructions!$D$22","v":0},11.8,null,"new",11.8,0,11.8,0,null,"RS",11.8,null,null,11.8,0,0,"",null,"X"]
["WBHRRR",null,"RS","RTC - All Other",null,"RSSGWBHRRR",null,null,"WBHRRR",null,"High Roller Replacement Roller",null,null,null,null,null,"RTC",null,null,"new",{"$f":"IF(Suggested=\"Yes\",'Price List'!AC71,'Price List'!AI71)","v":11.8},"EA",{"$f":"+Instructions!$B$3","v":"N"},null,{"$f":"+Instructions!$D$22","v":0},11.8,null,"new",11.8,0,11.8,0,null,"RS",11.8,null,null,11.8,0,0,"",null,"X"]
["WBHRRG",null,"RS","RTC - All Other",null,"RSSGWBHRRG",null,null,"WBHRRG",null,"High Roller Replacement Grate",null,null,null,null,null,"RTC",null,null,"new",{"$f":"IF(Suggested=\"Yes\",'Price List'!AC72,'Price List'!AI72)","v":10.7},"EA",{"$f":"+Instructions!$B$3","v":"N"},null,{"$f":"+Instructions!$D$22","v":0},10.7,null,"new",10.7,0,10.7,0,null,"RS",10.7,null,null,10.7,0,0,"",null,"X"]
["WBHRRBH",null,"RS","RTC - All Other",null,"RSSGWBHRRBH",null,null,"WBHRRBH",null,"High Roller Replacement Bucket Handle",null,null,null,null,null,"RTC",null,null,"new",{"$f":"IF(Suggested=\"Yes\",'Price List'!AC73,'Price List'!AI73)","v":11.8},"EA",{"$f":"+Instructions!$B$3","v":"N"},null,{"$f":"+Instructions!$D$22","v":0},11.8,null,"new",11.8,0,11.8,0,null,"RS",11.8,null,null,11.8,0,0,"",null,"X"]
[null,null,null,null,null,null,null,null,null,null,null,null,null,null,null,null,null,null,null,null,null,null,null,null,null,null,null,null,null,null,null,null,null,null,null,null,null,null,null,null,null,null,"X"]
[null,null,null,null,null,"Doodlebugs",null,null,null,null,null,null,null,null,null,null,null,null,null,null,null,null,null,null,null,null,null,null,null,null,null,null,null,null,null,null,null,null,null,null,null,null,"X"]
[8242,null,"GU","Gundlach - All",null,"GU8242",null,"8242 Medium Blue Doodlebug Pad",null,null,null,null,null,null,null,null,"Gundlach",null,"Stock",null,{"$f":"IF(Suggested=\"Yes\",'Price List'!AC76,'Price List'!AI76)","v":5.45},"EA",{"$f":"+Instructions!$B$3","v":"N"},null,{"$f":"+Instructions!$D$22","v":0},{"$f":"ROUND($AC76*(1-Y76)+0.004999,2)","v":5.45},null,"YES",5.45,{"$f":"+Y76","v":0},{"$f":"+Z76","v":5.45},{"$f":"(AI76-AE76)/AI76","v":0},null,{"$f":"+C76","v":"GU"},{"$f":"SUM(AL76:AN76)+AG76","v":5.45},null,null,{"$f":"ROUND(AE76/(1-VLOOKUP(AH76,Group,2,FALSE)),2)","v":5.45},{"$f":"IF(VLOOKUP(AH76,Group,3,FALSE)=\"YES\",VLOOKUP(ROUND(ROUND(AL76,1)-AL76,2),Round,2,FALSE)+VLOOKUP(AH76,Group,4,FALSE),0)","v":0},{"$f":"IF(VLOOKUP(AH76,Group,5,FALSE)=\"\",0,ROUND(AL76-0.04999,1)-AL76+AO76)","v":0},{"$f":"IF(VLOOKUP(AH76,Group,5,FALSE)=\"\",\"\",VLOOKUP(AH76,Group,5,FALSE))","v":""},null,"X"]
[8440,null,"GU","Gundlach - All",null,"GU8440",null,"8440 Fine White Doodlebug Pad",null,null,null,null,null,null,null,null,"Gundlach",null,"Stock",null,{"$f":"IF(Suggested=\"Yes\",'Price List'!AC77,'Price List'!AI77)","v":5.45},"EA",{"$f":"+Instructions!$B$3","v":"N"},null,{"$f":"+Instructions!$D$22","v":0},5.45,null,"YES",5.45,0,5.45,0,null,{"$f":"+C77","v":"GU"},5.45,null,null,5.45,0,0,"",null,"X"]
[null,null,null,null,null,null,null,null,null,null,null,null,null,null,null,null,null,null,null,null,null,null,null,null,null,null,null,null,null,null,null,null,null,null,null,null,null,null,null,null,null,null,"X"]
["SPSPH",null,"RS","RTC - All Other",null,"RSSGSPSPH",null,"SPSPH",null,"Scrub Pad Handle with Velcro",null,null,null,null,null,null,"RTC",null,"Stock","new",{"$f":"IF(Suggested=\"Yes\",'Price List'!AC79,'Price List'!AI79)","v":11.75},"EA",{"$f":"+Instructions!$B$3","v":"N"},null,{"$f":"+Instructions!$D$22","v":0},{"$f":"ROUND($AC79*(1-Y79)+0.004999,2)","v":11.75},null,"new",11.75,{"$f":"+Y79","v":0},{"$f":"+Z79","v":11.75},{"$f":"(AI79-AE79)/AI79","v":0},null,{"$f":"+C79","v":"RS"},{"$f":"SUM(AL79:AN79)+AG79","v":11.75},null,null,{"$f":"ROUND(AE79/(1-VLOOKUP(AH79,Group,2,FALSE)),2)","v":11.75},0,0,"",null,"X"]
["SPSPW20",null,"RS","RTC - All Other",null,"RSSGSPSPW20",null,"SPSPW20",null,"Scrub Pad - White (low abrasion)",null,null,null,"(20 per Pack)",null,null,"RTC",null,"Stock","new",{"$f":"IF(Suggested=\"Yes\",'Price List'!AC80,'Price List'!AI80)","v":29.6},"PK",{"$f":"+Instructions!$B$3","v":"N"},null,{"$f":"+Instructions!$D$22","v":0},{"$f":"ROUND($AC80*(1-Y80)+0.004999,2)","v":29.6},null,"new",29.6,{"$f":"+Y80","v":0},{"$f":"+Z80","v":29.6},{"$f":"(AI80-AE80)/AI80","v":0},null,{"$f":"+C80","v":"RS"},{"$f":"SUM(AL80:AN80)+AG80","v":29.6},null,null,{"$f":"ROUND(AE80/(1-VLOOKUP(AH80,Group,2,FALSE)),2)","v":29.6},{"$f":"IF(VLOOKUP(AH80,Group,3,FALSE)=\"YES\",VLOOKUP(ROUND(ROUND(AL80,1)-AL80,2),Round,2,FALSE)+VLOOKUP(AH80,Group,4,FALSE),0)","v":0},{"$f":"IF(VLOOKUP(AH80,Group,5,FALSE)=\"\",0,ROUND(AL80-0.04999,1)-AL80+AO80)","v":0},{"$f":"IF(VLOOKUP(AH80,Group,5,FALSE)=\"\",\"\",VLOOKUP(AH80,Group,5,FALSE))","v":""},null,"X"]
["SPSPR20",null,"RS","RTC - All Other",null,"RSSGSPSPR20",null,"SPSPR20",null,"Scrub Pad - Red (high abrasion)",null,null,null,"(20 per Pack)",null,null,"RTC",null,null,"new",{"$f":"IF(Suggested=\"Yes\",'Price List'!AC81,'Price List'!AI81)","v":29.6},"PK",{"$f":"+Instructions!$B$3","v":"N"},null,{"$f":"+Instructions!$D$22","v":0},{"$f":"ROUND($AC81*(1-Y81)+0.004999,2)","v":29.6},null,"new",29.6,{"$f":"+Y81","v":0},{"$f":"+Z81","v":29.6},{"$f":"(AI81-AE81)/AI81","v":0},null,{"$f":"+C81","v":"RS"},{"$f":"SUM(AL81:AN81)+AG81","v":29.6},null,null,{"$f":"ROUND(AE81/(1-VLOOKUP(AH81,Group,2,FALSE)),2)","v":29.6},{"$f":"IF(VLOOKUP(AH81,Group,3,FALSE)=\"YES\",VLOOKUP(ROUND(ROUND(AL81,1)-AL81,2),Round,2,FALSE)+VLOOKUP(AH81,Group,4,FALSE),0)","v":0},{"$f":"IF(VLOOKUP(AH81,Group,5,FALSE)=\"\",0,ROUND(AL81-0.04999,1)-AL81+AO81)","v":0},{"$f":"IF(VLOOKUP(AH81,Group,5,FALSE)=\"\",\"\",VLOOKUP(AH81,Group,5,FALSE))","v":""},null,"X"]
[null,null,null,null,null,null,null,null,null,null,null,null,null,null,null,null,null,null,null,null,null,null,null,null,null,null,null,null,null,null,null,null,null,null,null,null,null,null,null,null,null,null,"X"]
[null,null,null,null,null,"Sponges",null,null,null,null,null,null,null,null,null,null,null,null,null,null,null,null,null,null,null,null,null,null,null,null,null,null,null,null,null,null,null,null,null,null,null,null,"X"]
["TM-B",null,"HY","Hydra - All",null,"HY6HS",null,"TM-B","6\" Medium Sponge",null,null,null,null,null,null,null,"Hydra",null,"Stock",null,{"$f":"IF(Suggested=\"Yes\",'Price List'!AC84,'Price List'!AI84)","v":1.9},"EA",{"$f":"+Instructions!$B$3","v":"N"},null,{"$f":"+Instructions!$D$22","v":0},1.9,null,"",1.9,0,1.9,0,null,{"$f":"+C84","v":"HY"},1.9,null,null,1.9,{"$f":"IF(VLOOKUP(AH84,Group,3,FALSE)=\"YES\",VLOOKUP(ROUND(ROUND(AL84,1)-AL84,2),Round,2,FALSE)+VLOOKUP(AH84,Group,4,FALSE),0)","v":0},{"$f":"IF(VLOOKUP(AH84,Group,5,FALSE)=\"\",0,ROUND(AL84-0.04999,1)-AL84+AO84)","v":0},{"$f":"IF(VLOOKUP(AH84,Group,5,FALSE)=\"\",\"\",VLOOKUP(AH84,Group,5,FALSE))","v":""},null,"X"]
["TM-B",null,"HY","Hydra - All",null,"HY6HS",null,"TM-B","6\" Medium Sponge",null,null,"- Bag of 40",null,null,null,null,"Hydra",null,"Stock",null,{"$f":"IF(Suggested=\"Yes\",'Price List'!AC85,'Price List'!AI85)","v":1.5},"EA",{"$f":"+Instructions!$B$3","v":"N"},null,{"$f":"+Instructions!$D$22","v":0},1.5,null,"",1.5,0,1.5,0,null,"HY",1.5,null,null,1.5,0,0,"",null,"X"]
["TXL-B",null,"HY","Hydra - All",null,"HY8HS",null,"TXL-B","8\" X-Large Sponge",null,null,null,null,null,null,null,"Hydra",null,"Stock",null,{"$f":"IF(Suggested=\"Yes\",'Price List'!AC86,'Price List'!AI86)","v":2.6},"EA",{"$f":"+Instructions!$B$3","v":"N"},null,{"$f":"+Instructions!$D$22","v":0},2.6,null,"",2.6,0,2.6,0,null,"HY",2.6,null,null,2.6,0,0,"",null,"X"]
["TXL-B",null,"HY","Hydra - All",null,"HY8HS",null,"TXL-B","8\" X-Large Sponge",null,null,"- Bag of 25",null,null,null,null,"Hydra",null,"Stock",null,{"$f":"IF(Suggested=\"Yes\",'Price List'!AC87,'Price List'!AI87)","v":2.15},"EA",{"$f":"+Instructions!$B$3","v":"N"},null,{"$f":"+Instructions!$D$22","v":0},2.15,null,"",2.15,0,2.15,0,null,"HY",2.15,null,null,2.15,0,0,"",null,"X"]
["EPL",null,"HY","Hydra - All",null,"HYEPL",null,"EPL","Epoxy Sponge White",null,null,null,null,null,null,null,"Hydra",null,"Stock",null,{"$f":"IF(Suggested=\"Yes\",'Price List'!AC88,'Price List'!AI88)","v":2.5},"EA",{"$f":"+Instructions!$B$3","v":"N"},null,{"$f":"+Instructions!$D$22","v":0},2.5,null,"",2.5,0,2.5,0,null,"HY",2.5,null,null,2.5,0,0,"",null,"X"]
["SPBLOCKMF",null,"RS","RTC - All Other",null,"RSSGSPBLOCKMF",null,"SPBLOCKMF",null,"Block MicroFiber Sponge",null,null,null,null,null,null,"RTC",null,"Stock","new",{"$f":"IF(Suggested=\"Yes\",'Price List'!AC89,'Price List'!AI89)","v":3.8},"EA",{"$f":"+Instructions!$B$3","v":"N"},null,{"$f":"+Instructions!$D$22","v":0},3.8,null,"new",3.8,0,3.8,0,null,"RS",3.8,null,null,3.8,0,0,"",null,"X"]
[null,null,null,null,null,null,null,null,null,null,null,null,null,null,null,null,null,null,null,null,null,null,null,null,null,null,null,null,null,null,null,null,null,null,null,null,null,null,null,null,null,null,"X"]
[null,null,null,null,null,"Notes:","a) Special Pricing for FULL BAG purchases.",null,null,null,null,null,null,null,null,null,null,null,null,null,null,null,null,null,null,null,null,null,null,null,null,null,null,null,null,null,null,null,null,null,null,null,"X"]
[null,null,null,null,null,null,null,null,null,null,null,null,null,null,null,null,null,null,null,null,null,null,null,null,null,null,null,null,null,null,null,null,null,null,null,null,null,null,null,null,null,null,"X"]
[null,null,null,null,"Tile Spacers",null,null,null,null,null,null,null,null,null,null,null,null,null,null,null,null,null,null,null,null,null,null,null,null,null,null,null,null,null,null,null,null,null,null,null,null,null,"X"]
[null,null,null,null,null,null,null,null,null,null,null,null,null,null,null,null,null,null,null,null,null,null,null,null,null,null,null,null,null,null,null,null,null,null,null,null,null,null,null,null,null,null,"X"]
[null,null,null,null,null,"Hollow Spacers - specially designed to be grouted over - they don't have to be removed",null,null,null,null,null,null,null,null,null,null,null,null,null,null,null,null,null,null,null,null,null,null,null,null,null,null,null,null,null,null,null,null,null,null,null,null,"X"]
["SPC116JAR",null,"RS","RTC - All Other",null,"RSSPSPC116JAR",null,"1/16\"  +",null,"SPC116JAR Ulimate Spacers",null,null,null,"- 1000 Count",null,null,"RTC",null,"Stock","new",{"$f":"IF(Suggested=\"Yes\",'Price List'!AC96,'Price List'!AI96)","v":15.05},"EA",{"$f":"+Instructions!$B$3","v":"N"},null,{"$f":"+Instructions!$D$22","v":0},{"$f":"ROUND($AC96*(1-Y96)+0.004999,2)","v":15.05},null,"new",15.05,{"$f":"+Y96","v":0},15.05,{"$f":"(AI96-AE96)/AI96","v":0},null,{"$f":"+C96","v":"RS"},{"$f":"SUM(AL96:AN96)+AG96","v":15.05},null,null,{"$f":"ROUND(AE96/(1-VLOOKUP(AH96,Group,2,FALSE)),2)","v":15.05},{"$f":"IF(VLOOKUP(AH96,Group,3,FALSE)=\"YES\",VLOOKUP(ROUND(ROUND(AL96,1)-AL96,2),Round,2,FALSE)+VLOOKUP(AH96,Group,4,FALSE),0)","v":0},{"$f":"IF(VLOOKUP(AH96,Group,5,FALSE)=\"\",0,ROUND(AL96-0.04999,1)-AL96+AO96)","v":0},{"$f":"IF(VLOOKUP(AH96,Group,5,FALSE)=\"\",\"\",VLOOKUP(AH96,Group,5,FALSE))","v":""},null,"X"]
["SPC18JAR",null,"RS","RTC - All Other",null,"RSSPSPC18JAR",null,"1/8\"  +",null,"SPC18JAR Ulimate Spacers",null,null,null,"- 700 Count",null,null,"RTC",null,"Stock","new",{"$f":"IF(Suggested=\"Yes\",'Price List'!AC97,'Price List'!AI97)","v":12.9},"EA",{"$f":"+Instructions!$B$3","v":"N"},null,{"$f":"+Instructions!$D$22","v":0},{"$f":"ROUND($AC97*(1-Y97)+0.004999,2)","v":12.9},null,"new",12.9,0,12.9,{"$f":"(AI97-AE97)/AI97","v":0},null,{"$f":"+C97","v":"RS"},{"$f":"SUM(AL97:AN97)+AG97","v":12.9},null,null,{"$f":"ROUND(AE97/(1-VLOOKUP(AH97,Group,2,FALSE)),2)","v":12.9},0,0,"",null,"X"]
["SPC316JAR",null,"RS","RTC - All Other",null,"RSSPSPC316JAR",null,"3/16\"  + ",null,"SPC316JAR Ulimate Spacers",null,null,null,"- 400 Count",null,null,"RTC",null,"Stock","new",{"$f":"IF(Suggested=\"Yes\",'Price List'!AC98,'Price List'!AI98)","v":12.9},"EA",{"$f":"+Instructions!$B$3","v":"N"},null,{"$f":"+Instructions!$D$22","v":0},{"$f":"ROUND($AC98*(1-Y98)+0.004999,2)","v":12.9},null,"new",12.9,0,12.9,{"$f":"(AI98-AE98)/AI98","v":0},null,{"$f":"+C98","v":"RS"},{"$f":"SUM(AL98:AN98)+AG98","v":12.9},null,null,{"$f":"ROUND(AE98/(1-VLOOKUP(AH98,Group,2,FALSE)),2)","v":12.9},0,0,"",null,"X"]
["SPC14JAR",null,"RS","RTC - All Other",null,"RSSPSPC14JAR",null,"1/4\"  +",null,"SPC14JAR Ulimate Spacers",null,null,null,"- 300 Count",null,null,"RTC",null,null,"new",{"$f":"IF(Suggested=\"Yes\",'Price List'!AC99,'Price List'!AI99)","v":12.9},"EA",{"$f":"+Instructions!$B$3","v":"N"},null,{"$f":"+Instructions!$D$22","v":0},{"$f":"ROUND($AC99*(1-Y99)+0.004999,2)","v":12.9},null,"new",12.9,0,12.9,{"$f":"(AI99-AE99)/AI99","v":0},null,{"$f":"+C99","v":"RS"},{"$f":"SUM(AL99:AN99)+AG99","v":12.9},null,null,{"$f":"ROUND(AE99/(1-VLOOKUP(AH99,Group,2,FALSE)),2)","v":12.9},{"$f":"IF(VLOOKUP(AH99,Group,3,FALSE)=\"YES\",VLOOKUP(ROUND(ROUND(AL99,1)-AL99,2),Round,2,FALSE)+VLOOKUP(AH99,Group,4,FALSE),0)","v":0},{"$f":"IF(VLOOKUP(AH99,Group,5,FALSE)=\"\",0,ROUND(AL99-0.04999,1)-AL99+AO99)","v":0},{"$f":"IF(VLOOKUP(AH99,Group,5,FALSE)=\"\",\"\",VLOOKUP(AH99,Group,5,FALSE))","v":""},null,"X"]
[null,null,null,null,null,null,null,null,null,null,null,null,null,null,null,null,null,null,null,null,null,null,null,null,null,null,null,null,null,null,null,null,null,null,null,null,null,null,null,null,null,null,"X"]
["SPC116T",null,"RS","RTC - All Other",null,"RSSPSPC116T",null,"1/16\"  T",null,"SPC116T Ulimate Spacers",null,null,null,"- 2000 Count",null,null,"RTC",null,"Stock","new",{"$f":"IF(Suggested=\"Yes\",'Price List'!AC101,'Price List'!AI101)","v":24.7},"EA",{"$f":"+Instructions!$B$3","v":"N"},null,{"$f":"+Instructions!$D$22","v":0},{"$f":"ROUND($AC101*(1-Y101)+0.004999,2)","v":24.7},null,"new",24.7,{"$f":"+Y101","v":0},24.7,{"$f":"(AI101-AE101)/AI101","v":0},null,{"$f":"+C101","v":"RS"},{"$f":"SUM(AL101:AN101)+AG101","v":24.7},null,null,{"$f":"ROUND(AE101/(1-VLOOKUP(AH101,Group,2,FALSE)),2)","v":24.7},{"$f":"IF(VLOOKUP(AH101,Group,3,FALSE)=\"YES\",VLOOKUP(ROUND(ROUND(AL101,1)-AL101,2),Round,2,FALSE)+VLOOKUP(AH101,Group,4,FALSE),0)","v":0},{"$f":"IF(VLOOKUP(AH101,Group,5,FALSE)=\"\",0,ROUND(AL101-0.04999,1)-AL101+AO101)","v":0},{"$f":"IF(VLOOKUP(AH101,Group,5,FALSE)=\"\",\"\",VLOOKUP(AH101,Group,5,FALSE))","v":""},null,"X"]
["SPC18T",null,"RS","RTC - All Other",null,"RSSPSPC18T",null,"1/8\"  T",null,"SPC18T Ulimate Spacers",null,null,null,"- 1100 Count",null,null,"RTC",null,"Stock","new",{"$f":"IF(Suggested=\"Yes\",'Price List'!AC102,'Price List'!AI102)","v":17.2},"EA",{"$f":"+Instructions!$B$3","v":"N"},null,{"$f":"+Instructions!$D$22","v":0},{"$f":"ROUND($AC102*(1-Y102)+0.004999,2)","v":17.2},null,"new",17.2,0,17.2,{"$f":"(AI102-AE102)/AI102","v":0},null,{"$f":"+C102","v":"RS"},{"$f":"SUM(AL102:AN102)+AG102","v":17.2},null,null,{"$f":"ROUND(AE102/(1-VLOOKUP(AH102,Group,2,FALSE)),2)","v":17.2},{"$f":"IF(VLOOKUP(AH102,Group,3,FALSE)=\"YES\",VLOOKUP(ROUND(ROUND(AL102,1)-AL102,2),Round,2,FALSE)+VLOOKUP(AH102,Group,4,FALSE),0)","v":0},{"$f":"IF(VLOOKUP(AH102,Group,5,FALSE)=\"\",0,ROUND(AL102-0.04999,1)-AL102+AO102)","v":0},{"$f":"IF(VLOOKUP(AH102,Group,5,FALSE)=\"\",\"\",VLOOKUP(AH102,Group,5,FALSE))","v":""},null,"X"]
["SPC316T",null,"RS","RTC - All Other",null,"RSSPSPC316T",null,"3/16\"  T",null,"SPC316T Ulimate Spacers",null,null,null,"- 800 Count",null,null,"RTC",null,"Stock","new",{"$f":"IF(Suggested=\"Yes\",'Price List'!AC103,'Price List'!AI103)","v":17.2},"EA",{"$f":"+Instructions!$B$3","v":"N"},null,{"$f":"+Instructions!$D$22","v":0},{"$f":"ROUND($AC103*(1-Y103)+0.004999,2)","v":17.2},null,"new",17.2,0,17.2,{"$f":"(AI103-AE103)/AI103","v":0},null,{"$f":"+C103","v":"RS"},{"$f":"SUM(AL103:AN103)+AG103","v":17.2},null,null,{"$f":"ROUND(AE103/(1-VLOOKUP(AH103,Group,2,FALSE)),2)","v":17.2},{"$f":"IF(VLOOKUP(AH103,Group,3,FALSE)=\"YES\",VLOOKUP(ROUND(ROUND(AL103,1)-AL103,2),Round,2,FALSE)+VLOOKUP(AH103,Group,4,FALSE),0)","v":0},{"$f":"IF(VLOOKUP(AH103,Group,5,FALSE)=\"\",0,ROUND(AL103-0.04999,1)-AL103+AO103)","v":0},{"$f":"IF(VLOOKUP(AH103,Group,5,FALSE)=\"\",\"\",VLOOKUP(AH103,Group,5,FALSE))","v":""},null,"X"]
["SPC14T",null,"RS","RTC - All Other",null,"RSSPSPC14T",null,"1/4\"  T",null,"SPC14T Ulimate Spacers",null,null,null,"- 300 Count",null,null,"RTC",null,null,"new",{"$f":"IF(Suggested=\"Yes\",'Price List'!AC104,'Price List'!AI104)","v":17.2},"EA",{"$f":"+Instructions!$B$3","v":"N"},null,{"$f":"+Instructions!$D$22","v":0},{"$f":"ROUND($AC104*(1-Y104)+0.004999,2)","v":17.2},null,"new",17.2,0,17.2,{"$f":"(AI104-AE104)/AI104","v":0},null,{"$f":"+C104","v":"RS"},{"$f":"SUM(AL104:AN104)+AG104","v":17.2},null,null,{"$f":"ROUND(AE104/(1-VLOOKUP(AH104,Group,2,FALSE)),2)","v":17.2},{"$f":"IF(VLOOKUP(AH104,Group,3,FALSE)=\"YES\",VLOOKUP(ROUND(ROUND(AL104,1)-AL104,2),Round,2,FALSE)+VLOOKUP(AH104,Group,4,FALSE),0)","v":0},{"$f":"IF(VLOOKUP(AH104,Group,5,FALSE)=\"\",0,ROUND(AL104-0.04999,1)-AL104+AO104)","v":0},{"$f":"IF(VLOOKUP(AH104,Group,5,FALSE)=\"\",\"\",VLOOKUP(AH104,Group,5,FALSE))","v":""},null,"X"]
[null,null,null,null,null,null,null,null,null,null,null,null,null,null,null,null,null,null,null,null,null,null,null,null,null,null,null,null,null,null,null,null,null,null,null,null,null,null,null,null,null,null,"X"]
[null,null,null,null,null,"Tavy 2-Sided Spacers - two-sided design for muliple uses",null,null,null,null,null,null,null,null,null,null,null,null,null,null,null,null,null,null,null,null,null,null,null,null,null,null,null,null,null,null,null,null,null,null,null,null,"X"]
[4004,null,"RS","RTC - All Other",null,"RSSP4004",null,"1/8\"  + 2-side",null,"4004 - Tavy 2-sided Cross Spacer",null,null,null,"- 500 Count",null,null,"RTC",null,"Stock","new",{"$f":"IF(Suggested=\"Yes\",'Price List'!AC107,'Price List'!AI107)","v":26.9},"EA",{"$f":"+Instructions!$B$3","v":"N"},null,{"$f":"+Instructions!$D$22","v":0},{"$f":"ROUND($AC107*(1-Y107)+0.004999,2)","v":26.9},null,"new",26.9,{"$f":"+Y107","v":0},{"$f":"+Z107","v":26.9},{"$f":"(AI107-AE107)/AI107","v":0},null,{"$f":"+C107","v":"RS"},{"$f":"SUM(AL107:AN107)+AG107","v":26.9},null,null,{"$f":"ROUND(AE107/(1-VLOOKUP(AH107,Group,2,FALSE)),2)","v":26.9},{"$f":"IF(VLOOKUP(AH107,Group,3,FALSE)=\"YES\",VLOOKUP(ROUND(ROUND(AL107,1)-AL107,2),Round,2,FALSE)+VLOOKUP(AH107,Group,4,FALSE),0)","v":0},{"$f":"IF(VLOOKUP(AH107,Group,5,FALSE)=\"\",0,ROUND(AL107-0.04999,1)-AL107+AO107)","v":0},{"$f":"IF(VLOOKUP(AH107,Group,5,FALSE)=\"\",\"\",VLOOKUP(AH107,Group,5,FALSE))","v":""},null,"X"]
[5004,null,"RS","RTC - All Other",null,"RSSP5004",null,"1/8\"  T - 2-side",null,"5004 - Tavy 2-sided \"T\" Spacer",null,null,null,"- 100 Count",null,null,"RTC",null,"Stock","new",{"$f":"IF(Suggested=\"Yes\",'Price List'!AC108,'Price List'!AI108)","v":5.75},"EA",{"$f":"+Instructions!$B$3","v":"N"},null,{"$f":"+Instructions!$D$22","v":0},{"$f":"ROUND($AC108*(1-Y108)+0.004999,2)","v":5.75},null,"new",5.75,{"$f":"+Y108","v":0},{"$f":"+Z108","v":5.75},{"$f":"(AI108-AE108)/AI108","v":0},null,{"$f":"+C108","v":"RS"},{"$f":"SUM(AL108:AN108)+AG108","v":5.75},null,null,{"$f":"ROUND(AE108/(1-VLOOKUP(AH108,Group,2,FALSE)),2)","v":5.75},{"$f":"IF(VLOOKUP(AH108,Group,3,FALSE)=\"YES\",VLOOKUP(ROUND(ROUND(AL108,1)-AL108,2),Round,2,FALSE)+VLOOKUP(AH108,Group,4,FALSE),0)","v":0},{"$f":"IF(VLOOKUP(AH108,Group,5,FALSE)=\"\",0,ROUND(AL108-0.04999,1)-AL108+AO108)","v":0},{"$f":"IF(VLOOKUP(AH108,Group,5,FALSE)=\"\",\"\",VLOOKUP(AH108,Group,5,FALSE))","v":""},null,"X"]
[null,null,null,null,null,null,null,null,null,null,null,null,null,null,null,null,null,null,null,null,null,null,null,null,null,null,null,null,null,null,null,null,null,null,null,null,null,null,null,null,null,null,"X"]
[null,null,null,null,null,"Horseshoe Shim Spacers",null,null,null,null,null,null,null,null,null,null,null,null,null,null,null,null,null,null,null,null,null,null,null,null,null,null,null,null,null,null,null,null,null,null,null,null,"X"]
["SPC116SHIM",null,"RS","RTC - All Other",null,"RSSPSPC116SHIM",null,"1/16\" U",null,"SPC116SHIM Horseshoe Spacer",null,null,null,"- 400 Count",null,null,"RTC",null,"Stock","new",{"$f":"IF(Suggested=\"Yes\",'Price List'!AC111,'Price List'!AI111)","v":15.45},"EA",{"$f":"+Instructions!$B$3","v":"N"},null,{"$f":"+Instructions!$D$22","v":0},{"$f":"ROUND($AC111*(1-Y111)+0.004999,2)","v":15.45},null,"new",15.45,{"$f":"+Y111","v":0},{"$f":"+Z111","v":15.45},{"$f":"(AI111-AE111)/AI111","v":0},null,{"$f":"+C111","v":"RS"},{"$f":"SUM(AL111:AN111)+AG111","v":15.45},null,null,{"$f":"ROUND(AE111/(1-VLOOKUP(AH111,Group,2,FALSE)),2)","v":15.45},{"$f":"IF(VLOOKUP(AH111,Group,3,FALSE)=\"YES\",VLOOKUP(ROUND(ROUND(AL111,1)-AL111,2),Round,2,FALSE)+VLOOKUP(AH111,Group,4,FALSE),0)","v":0},{"$f":"IF(VLOOKUP(AH111,Group,5,FALSE)=\"\",0,ROUND(AL111-0.04999,1)-AL111+AO111)","v":0},{"$f":"IF(VLOOKUP(AH111,Group,5,FALSE)=\"\",\"\",VLOOKUP(AH111,Group,5,FALSE))","v":""},null,"X"]
["SPC18SHIM",null,"RS","RTC - All Other",null,"RSSPSPC18SHIM",null,"1/8\" U",null,"SPC18SHIM Horseshoe Spacer",null,null,null,"- 300 Count",null,null,"RTC",null,"Stock","new",{"$f":"IF(Suggested=\"Yes\",'Price List'!AC112,'Price List'!AI112)","v":17.05},"EA",{"$f":"+Instructions!$B$3","v":"N"},null,{"$f":"+Instructions!$D$22","v":0},{"$f":"ROUND($AC112*(1-Y112)+0.004999,2)","v":17.05},null,"new",17.05,{"$f":"+Y112","v":0},{"$f":"+Z112","v":17.05},{"$f":"(AI112-AE112)/AI112","v":0},null,{"$f":"+C112","v":"RS"},{"$f":"SUM(AL112:AN112)+AG112","v":17.05},null,null,{"$f":"ROUND(AE112/(1-VLOOKUP(AH112,Group,2,FALSE)),2)","v":17.05},0,0,"",null,"X"]
[null,null,null,null,null,null,null,null,null,null,null,null,null,null,null,null,null,null,null,null,null,null,null,null,null,null,null,null,null,null,null,null,null,null,null,null,null,null,null,null,null,null,"X"]
[null,null,null,null,null,"Wedges",null,null,null,null,null,null,null,null,null,null,null,null,null,null,null,null,null,null,null,null,null,null,null,null,null,null,null,null,null,null,null,null,null,null,null,null,"X"]
[5104,null,"RS","RTC - All Other",null,"RSSP5104",null,"1/8\" Wedge",null,"5104 Wedge Spacers",null,null,null,"- 100 Count",null,null,"RTC",null,"Stock","new",{"$f":"IF(Suggested=\"Yes\",'Price List'!AC115,'Price List'!AI115)","v":5.65},"EA",{"$f":"+Instructions!$B$3","v":"N"},null,{"$f":"+Instructions!$D$22","v":0},{"$f":"ROUND($AC115*(1-Y115)+0.004999,2)","v":5.65},null,"new",5.65,{"$f":"+Y115","v":0},{"$f":"+Z115","v":5.65},{"$f":"(AI115-AE115)/AI115","v":0},null,{"$f":"+C115","v":"RS"},{"$f":"SUM(AL115:AN115)+AG115","v":5.65},null,null,{"$f":"ROUND(AE115/(1-VLOOKUP(AH115,Group,2,FALSE)),2)","v":5.65},{"$f":"IF(VLOOKUP(AH115,Group,3,FALSE)=\"YES\",VLOOKUP(ROUND(ROUND(AL115,1)-AL115,2),Round,2,FALSE)+VLOOKUP(AH115,Group,4,FALSE),0)","v":0},{"$f":"IF(VLOOKUP(AH115,Group,5,FALSE)=\"\",0,ROUND(AL115-0.04999,1)-AL115+AO115)","v":0},{"$f":"IF(VLOOKUP(AH115,Group,5,FALSE)=\"\",\"\",VLOOKUP(AH115,Group,5,FALSE))","v":""},null,"X"]
[5106,null,"RS","RTC - All Other",null,"RSSP5106",null,"1/4\" Wedge",null,"5106 Wedge Spacers",null,null,null,"- 100 Count",null,null,"RTC",null,"Stock","new",{"$f":"IF(Suggested=\"Yes\",'Price List'!AC116,'Price List'!AI116)","v":5.65},"EA",{"$f":"+Instructions!$B$3","v":"N"},null,{"$f":"+Instructions!$D$22","v":0},{"$f":"ROUND($AC116*(1-Y116)+0.004999,2)","v":5.65},null,"new",5.65,{"$f":"+Y116","v":0},{"$f":"+Z116","v":5.65},{"$f":"(AI116-AE116)/AI116","v":0},null,{"$f":"+C116","v":"RS"},{"$f":"SUM(AL116:AN116)+AG116","v":5.65},null,null,{"$f":"ROUND(AE116/(1-VLOOKUP(AH116,Group,2,FALSE)),2)","v":5.65},{"$f":"IF(VLOOKUP(AH116,Group,3,FALSE)=\"YES\",VLOOKUP(ROUND(ROUND(AL116,1)-AL116,2),Round,2,FALSE)+VLOOKUP(AH116,Group,4,FALSE),0)","v":0},{"$f":"IF(VLOOKUP(AH116,Group,5,FALSE)=\"\",0,ROUND(AL116-0.04999,1)-AL116+AO116)","v":0},{"$f":"IF(VLOOKUP(AH116,Group,5,FALSE)=\"\",\"\",VLOOKUP(AH116,Group,5,FALSE))","v":""},null,"X"]
[null,null,null,null,null,null,null,null,null,null,null,null,null,null,null,null,null,null,null,null,null,null,null,null,null,null,null,null,null,null,null,null,null,null,null,null,null,null,null,null,null,null,"X"]
[null,null,null,null,"Lippage Reduction Systems",null,null,null,null,null,null,null,null,null,null,null,null,null,null,null,null,null,null,null,null,null,null,null,null,null,null,null,null,null,null,null,null,null,null,null,null,null,"X"]
[null,null,null,null,null,null,null,null,null,null,null,null,null,null,null,null,null,null,null,null,null,null,null,null,null,null,null,null,null,null,null,null,null,null,null,null,null,null,null,null,null,null,"X"]
[null,null,null,null,null,"ProLeveling System",null,null,null,null,null,null,null,null,null,null,null,null,null,null,null,null,null,null,null,null,null,null,null,null,null,null,null,null,null,null,null,null,null,null,null,null,"X"]
[null,null,null,null,null,null,null,null,null,null,null,null,null,null,null,null,null,null,null,null,null,null,null,null,null,null,null,null,null,null,null,null,null,null,null,null,null,null,null,null,null,null,"X"]
["PRSL1",null,"PP","Progress Profiles - All",null,"PPPRSL1",null,"1 mm - 1/16\"",null,"PRSL1","Linear Levelers",null,null,null,"- 100 Count",null,"Progress",null,"Stock",null,{"$f":"IF(Suggested=\"Yes\",'Price List'!AC122,'Price List'!AI122)","v":32.75},"EA",{"$f":"+Instructions!$B$3","v":"N"},null,{"$f":"+Instructions!$D$22","v":0},{"$f":"ROUND($AC122*(1-Y122)+0.004999,2)","v":32.75},null,"YES",32.75,{"$f":"+Y122","v":0},{"$f":"+Z122","v":32.75},{"$f":"(AI122-AE122)/AI122","v":0},null,{"$f":"+C122","v":"PP"},{"$f":"SUM(AL122:AN122)+AG122","v":32.75},null,null,{"$f":"ROUND(AE122/(1-VLOOKUP(AH122,Group,2,FALSE)),2)","v":32.75},{"$f":"IF(VLOOKUP(AH122,Group,3,FALSE)=\"YES\",VLOOKUP(ROUND(ROUND(AL122,1)-AL122,2),Round,2,FALSE)+VLOOKUP(AH122,Group,4,FALSE),0)","v":0},{"$f":"IF(VLOOKUP(AH122,Group,5,FALSE)=\"\",0,ROUND(AL122-0.04999,1)-AL122+AO122)","v":0},{"$f":"IF(VLOOKUP(AH122,Group,5,FALSE)=\"\",\"\",VLOOKUP(AH122,Group,5,FALSE))","v":""},null,"X"]
["PRSL2",null,"PP","Progress Profiles - All",null,"PPPRSL2",null,"2 mm - 3/32\"",null,"PRSL2","Linear Levelers",null,null,null,"- 100 Count",null,"Progress",null,"Stock",null,{"$f":"IF(Suggested=\"Yes\",'Price List'!AC123,'Price List'!AI123)","v":32.75},"EA",{"$f":"+Instructions!$B$3","v":"N"},null,{"$f":"+Instructions!$D$22","v":0},32.75,null,"YES",32.75,0,32.75,0,null,{"$f":"+C123","v":"PP"},32.75,null,null,32.75,{"$f":"IF(VLOOKUP(AH123,Group,3,FALSE)=\"YES\",VLOOKUP(ROUND(ROUND(AL123,1)-AL123,2),Round,2,FALSE)+VLOOKUP(AH123,Group,4,FALSE),0)","v":0},{"$f":"IF(VLOOKUP(AH123,Group,5,FALSE)=\"\",0,ROUND(AL123-0.04999,1)-AL123+AO123)","v":0},{"$f":"IF(VLOOKUP(AH123,Group,5,FALSE)=\"\",\"\",VLOOKUP(AH123,Group,5,FALSE))","v":""},null,"X"]
["PRSL3",null,"PP","Progress Profiles - All",null,"PPPRSL3",null,"3 mm - 1/8\"",null,"PRSL3","Linear Levelers",null,null,null,"- 100 Count",null,"Progress",null,"Stock",null,{"$f":"IF(Suggested=\"Yes\",'Price List'!AC124,'Price List'!AI124)","v":32.75},"EA",{"$f":"+Instructions!$B$3","v":"N"},null,{"$f":"+Instructions!$D$22","v":0},32.75,null,"YES",32.75,0,32.75,0,null,{"$f":"+C124","v":"PP"},32.75,null,null,32.75,{"$f":"IF(VLOOKUP(AH124,Group,3,FALSE)=\"YES\",VLOOKUP(ROUND(ROUND(AL124,1)-AL124,2),Round,2,FALSE)+VLOOKUP(AH124,Group,4,FALSE),0)","v":0},{"$f":"IF(VLOOKUP(AH124,Group,5,FALSE)=\"\",0,ROUND(AL124-0.04999,1)-AL124+AO124)","v":0},{"$f":"IF(VLOOKUP(AH124,Group,5,FALSE)=\"\",\"\",VLOOKUP(AH124,Group,5,FALSE))","v":""},null,"X"]
["PRSL5",null,"PP","Progress Profiles - All",null,"PPPRSL5",null,"5 mm - 3/16\"",null,"PRSL5","Linear Levelers",null,null,null,"- 100 Count",null,"Progress",null,"n/s",null,{"$f":"IF(Suggested=\"Yes\",'Price List'!AC125,'Price List'!AI125)","v":32.75},"EA",{"$f":"+Instructions!$B$3","v":"N"},null,{"$f":"+Instructions!$D$22","v":0},32.75,null,"YES",32.75,0,32.75,0,null,{"$f":"+C125","v":"PP"},32.75,null,null,32.75,{"$f":"IF(VLOOKUP(AH125,Group,3,FALSE)=\"YES\",VLOOKUP(ROUND(ROUND(AL125,1)-AL125,2),Round,2,FALSE)+VLOOKUP(AH125,Group,4,FALSE),0)","v":0},{"$f":"IF(VLOOKUP(AH125,Group,5,FALSE)=\"\",0,ROUND(AL125-0.04999,1)-AL125+AO125)","v":0},{"$f":"IF(VLOOKUP(AH125,Group,5,FALSE)=\"\",\"\",VLOOKUP(AH125,Group,5,FALSE))","v":""},null,"X"]
[null,null,null,null,null,null,null,null,null,null,null,null,null,null,null,null,null,null,null,null,null,null,null,null,null,null,null,null,null,null,null,null,null,null,null,null,null,null,null,null,null,null,"X"]
["PRST1",null,"PP","Progress Profiles - All",null,"PPPRST1",null,"1 mm - 1/16\"",null,"PRST1","T-Shaped Levelers",null,null,null,"- 100 Count",null,"Progress",null,"Stock",null,{"$f":"IF(Suggested=\"Yes\",'Price List'!AC127,'Price List'!AI127)","v":38.75},"EA",{"$f":"+Instructions!$B$3","v":"N"},null,{"$f":"+Instructions!$D$22","v":0},38.75,null,"YES",38.75,0,38.75,0,null,{"$f":"+C127","v":"PP"},38.75,null,null,38.75,{"$f":"IF(VLOOKUP(AH127,Group,3,FALSE)=\"YES\",VLOOKUP(ROUND(ROUND(AL127,1)-AL127,2),Round,2,FALSE)+VLOOKUP(AH127,Group,4,FALSE),0)","v":0},{"$f":"IF(VLOOKUP(AH127,Group,5,FALSE)=\"\",0,ROUND(AL127-0.04999,1)-AL127+AO127)","v":0},{"$f":"IF(VLOOKUP(AH127,Group,5,FALSE)=\"\",\"\",VLOOKUP(AH127,Group,5,FALSE))","v":""},null,"X"]
["PRST2",null,"PP","Progress Profiles - All",null,"PPPRST2",null,"2 mm - 3/32\"",null,"PRST2","T-Shaped Levelers",null,null,null,"- 100 Count",null,"Progress",null,"Stock",null,{"$f":"IF(Suggested=\"Yes\",'Price List'!AC128,'Price List'!AI128)","v":38.75},"EA",{"$f":"+Instructions!$B$3","v":"N"},null,{"$f":"+Instructions!$D$22","v":0},38.75,null,"YES",38.75,0,38.75,0,null,{"$f":"+C128","v":"PP"},38.75,null,null,38.75,{"$f":"IF(VLOOKUP(AH128,Group,3,FALSE)=\"YES\",VLOOKUP(ROUND(ROUND(AL128,1)-AL128,2),Round,2,FALSE)+VLOOKUP(AH128,Group,4,FALSE),0)","v":0},{"$f":"IF(VLOOKUP(AH128,Group,5,FALSE)=\"\",0,ROUND(AL128-0.04999,1)-AL128+AO128)","v":0},{"$f":"IF(VLOOKUP(AH128,Group,5,FALSE)=\"\",\"\",VLOOKUP(AH128,Group,5,FALSE))","v":""},null,"X"]
["PRST3",null,"PP","Progress Profiles - All",null,"PPPRST3",null,"3 mm - 1/8\"",null,"PRST3","T-Shaped Levelers",null,null,null,"- 100 Count",null,"Progress",null,"Stock",null,{"$f":"IF(Suggested=\"Yes\",'Price List'!AC129,'Price List'!AI129)","v":38.75},"EA",{"$f":"+Instructions!$B$3","v":"N"},null,{"$f":"+Instructions!$D$22","v":0},38.75,null,"YES",38.75,0,38.75,0,null,{"$f":"+C129","v":"PP"},38.75,null,null,38.75,{"$f":"IF(VLOOKUP(AH129,Group,3,FALSE)=\"YES\",VLOOKUP(ROUND(ROUND(AL129,1)-AL129,2),Round,2,FALSE)+VLOOKUP(AH129,Group,4,FALSE),0)","v":0},{"$f":"IF(VLOOKUP(AH129,Group,5,FALSE)=\"\",0,ROUND(AL129-0.04999,1)-AL129+AO129)","v":0},{"$f":"IF(VLOOKUP(AH129,Group,5,FALSE)=\"\",\"\",VLOOKUP(AH129,Group,5,FALSE))","v":""},null,"X"]
["PRST5",null,"PP","Progress Profiles - All",null,"PPPRST5",null,"5 mm - 3/16\"",null,"PRST5","T-Shaped Levelers",null,null,null,"- 100 Count",null,"Progress",null,"n/s",null,{"$f":"IF(Suggested=\"Yes\",'Price List'!AC130,'Price List'!AI130)","v":38.75},"EA",{"$f":"+Instructions!$B$3","v":"N"},null,{"$f":"+Instructions!$D$22","v":0},38.75,null,"YES",38.75,0,38.75,0,null,{"$f":"+C130","v":"PP"},38.75,null,null,38.75,{"$f":"IF(VLOOKUP(AH130,Group,3,FALSE)=\"YES\",VLOOKUP(ROUND(ROUND(AL130,1)-AL130,2),Round,2,FALSE)+VLOOKUP(AH130,Group,4,FALSE),0)","v":0},{"$f":"IF(VLOOKUP(AH130,Group,5,FALSE)=\"\",0,ROUND(AL130-0.04999,1)-AL130+AO130)","v":0},{"$f":"IF(VLOOKUP(AH130,Group,5,FALSE)=\"\",\"\",VLOOKUP(AH130,Group,5,FALSE))","v":""},null,"X"]
[null,null,null,null,null,null,null,null,null,null,null,null,null,null,null,null,null,null,null,null,null,null,null,null,null,null,null,null,null,null,null,null,null,null,null,null,null,null,null,null,null,null,"X"]
["PRSC1",null,"PP","Progress Profiles - All",null,"PPPRSC1",null,"1 mm - 1/16\"",null,"PRSC1","Cross-Shaped Levelers",null,null,null,"- 100 Count",null,"Progress",null,"Stock",null,{"$f":"IF(Suggested=\"Yes\",'Price List'!AC132,'Price List'!AI132)","v":38.75},"EA",{"$f":"+Instructions!$B$3","v":"N"},null,{"$f":"+Instructions!$D$22","v":0},38.75,null,"YES",38.75,0,38.75,0,null,{"$f":"+C132","v":"PP"},38.75,null,null,38.75,{"$f":"IF(VLOOKUP(AH132,Group,3,FALSE)=\"YES\",VLOOKUP(ROUND(ROUND(AL132,1)-AL132,2),Round,2,FALSE)+VLOOKUP(AH132,Group,4,FALSE),0)","v":0},{"$f":"IF(VLOOKUP(AH132,Group,5,FALSE)=\"\",0,ROUND(AL132-0.04999,1)-AL132+AO132)","v":0},{"$f":"IF(VLOOKUP(AH132,Group,5,FALSE)=\"\",\"\",VLOOKUP(AH132,Group,5,FALSE))","v":""},null,"X"]
["PRSC2",null,"PP","Progress Profiles - All",null,"PPPRSC2",null,"2 mm - 3/32\"",null,"PRSC2","Cross-Shaped Levelers",null,null,null,"- 100 Count",null,"Progress",null,"Stock",null,{"$f":"IF(Suggested=\"Yes\",'Price List'!AC133,'Price List'!AI133)","v":38.75},"EA",{"$f":"+Instructions!$B$3","v":"N"},null,{"$f":"+Instructions!$D$22","v":0},38.75,null,"YES",38.75,0,38.75,0,null,{"$f":"+C133","v":"PP"},38.75,null,null,38.75,{"$f":"IF(VLOOKUP(AH133,Group,3,FALSE)=\"YES\",VLOOKUP(ROUND(ROUND(AL133,1)-AL133,2),Round,2,FALSE)+VLOOKUP(AH133,Group,4,FALSE),0)","v":0},{"$f":"IF(VLOOKUP(AH133,Group,5,FALSE)=\"\",0,ROUND(AL133-0.04999,1)-AL133+AO133)","v":0},{"$f":"IF(VLOOKUP(AH133,Group,5,FALSE)=\"\",\"\",VLOOKUP(AH133,Group,5,FALSE))","v":""},null,"X"]
["PRSC3",null,"PP","Progress Profiles - All",null,"PPPRSC3",null,"3 mm - 1/8\"",null,"PRSC3","Cross-Shaped Levelers",null,null,null,"- 100 Count",null,"Progress",null,"Stock",null,{"$f":"IF(Suggested=\"Yes\",'Price List'!AC134,'Price List'!AI134)","v":38.75},"EA",{"$f":"+Instructions!$B$3","v":"N"},null,{"$f":"+Instructions!$D$22","v":0},38.75,null,"YES",38.75,0,38.75,0,null,{"$f":"+C134","v":"PP"},38.75,null,null,38.75,{"$f":"IF(VLOOKUP(AH134,Group,3,FALSE)=\"YES\",VLOOKUP(ROUND(ROUND(AL134,1)-AL134,2),Round,2,FALSE)+VLOOKUP(AH134,Group,4,FALSE),0)","v":0},{"$f":"IF(VLOOKUP(AH134,Group,5,FALSE)=\"\",0,ROUND(AL134-0.04999,1)-AL134+AO134)","v":0},{"$f":"IF(VLOOKUP(AH134,Group,5,FALSE)=\"\",\"\",VLOOKUP(AH134,Group,5,FALSE))","v":""},null,"X"]
["PRSC5",null,"PP","Progress Profiles - All",null,"PPPRSC5",null,"5 mm - 3/16\"",null,"PRSC5","Cross-Shaped Levelers",null,null,null,"- 100 Count",null,"Progress",null,"Stock",null,{"$f":"IF(Suggested=\"Yes\",'Price List'!AC135,'Price List'!AI135)","v":38.75},"EA",{"$f":"+Instructions!$B$3","v":"N"},null,{"$f":"+Instructions!$D$22","v":0},38.75,null,"YES",38.75,0,38.75,0,null,{"$f":"+C135","v":"PP"},38.75,null,null,38.75,{"$f":"IF(VLOOKUP(AH135,Group,3,FALSE)=\"YES\",VLOOKUP(ROUND(ROUND(AL135,1)-AL135,2),Round,2,FALSE)+VLOOKUP(AH135,Group,4,FALSE),0)","v":0},{"$f":"IF(VLOOKUP(AH135,Group,5,FALSE)=\"\",0,ROUND(AL135-0.04999,1)-AL135+AO135)","v":0},{"$f":"IF(VLOOKUP(AH135,Group,5,FALSE)=\"\",\"\",VLOOKUP(AH135,Group,5,FALSE))","v":""},null,"X"]
[null,null,null,null,null,null,null,null,null,null,null,null,null,null,null,null,null,null,null,null,null,null,null,null,null,null,null,null,null,null,null,null,null,null,null,null,null,null,null,null,null,null,"X"]
["PRST",null,"PP","Progress Profiles - All",null,"PPPRST",null,"PRST","Universal Rotating Pommel Cap (re-usable)",null,null,null,null,null,"- 50 Count",null,"Progress",null,"Stock",null,{"$f":"IF(Suggested=\"Yes\",'Price List'!AC137,'Price List'!AI137)","v":72.599999999999994},"EA",{"$f":"+Instructions!$B$3","v":"N"},null,{"$f":"+Instructions!$D$22","v":0},72.599999999999994,null,"YES",72.599999999999994,0,72.599999999999994,0,null,{"$f":"+C137","v":"PP"},72.599999999999994,null,null,72.599999999999994,{"$f":"IF(VLOOKUP(AH137,Group,3,FALSE)=\"YES\",VLOOKUP(ROUND(ROUND(AL137,1)-AL137,2),Round,2,FALSE)+VLOOKUP(AH137,Group,4,FALSE),0)","v":0},{"$f":"IF(VLOOKUP(AH137,Group,5,FALSE)=\"\",0,ROUND(AL137-0.04999,1)-AL137+AO137)","v":0},{"$f":"IF(VLOOKUP(AH137,Group,5,FALSE)=\"\",\"\",VLOOKUP(AH137,Group,5,FALSE))","v":""},null,"X"]
["PRSTT",null,"PP","Progress Profiles - All",null,"PPPRSTT",null,"PRSTT","Transparent Rotating Pommel Cap (re-usable)",null,null,null,null,null,"- 50 Count",null,"Progress",null,"n/s",null,{"$f":"IF(Suggested=\"Yes\",'Price List'!AC138,'Price List'!AI138)","v":72.599999999999994},"EA",{"$f":"+Instructions!$B$3","v":"N"},null,{"$f":"+Instructions!$D$22","v":0},{"$f":"ROUND($AC138*(1-Y138)+0.004999,2)","v":72.599999999999994},null,"YES",72.599999999999994,{"$f":"+Y138","v":0},{"$f":"+Z138","v":72.599999999999994},{"$f":"(AI138-AE138)/AI138","v":0},null,{"$f":"+C138","v":"PP"},{"$f":"SUM(AL138:AN138)+AG138","v":72.599999999999994},null,null,{"$f":"ROUND(AE138/(1-VLOOKUP(AH138,Group,2,FALSE)),2)","v":72.599999999999994},{"$f":"IF(VLOOKUP(AH138,Group,3,FALSE)=\"YES\",VLOOKUP(ROUND(ROUND(AL138,1)-AL138,2),Round,2,FALSE)+VLOOKUP(AH138,Group,4,FALSE),0)","v":0},{"$f":"IF(VLOOKUP(AH138,Group,5,FALSE)=\"\",0,ROUND(AL138-0.04999,1)-AL138+AO138)","v":0},{"$f":"IF(VLOOKUP(AH138,Group,5,FALSE)=\"\",\"\",VLOOKUP(AH138,Group,5,FALSE))","v":""},null,"X"]
["PRSPC",null,"PP","Progress Profiles - All",null,"PPPRSPC",null,"PRSPC","System Protection Cap (re-usable)",null,null,null,null,null,"- 50 Count",null,"Progress",null,"Stock",null,{"$f":"IF(Suggested=\"Yes\",'Price List'!AC139,'Price List'!AI139)","v":68.75},"EA",{"$f":"+Instructions!$B$3","v":"N"},null,{"$f":"+Instructions!$D$22","v":0},68.75,null,"YES",68.75,0,68.75,0,null,{"$f":"+C139","v":"PP"},68.75,null,null,68.75,{"$f":"IF(VLOOKUP(AH139,Group,3,FALSE)=\"YES\",VLOOKUP(ROUND(ROUND(AL139,1)-AL139,2),Round,2,FALSE)+VLOOKUP(AH139,Group,4,FALSE),0)","v":0},{"$f":"IF(VLOOKUP(AH139,Group,5,FALSE)=\"\",0,ROUND(AL139-0.04999,1)-AL139+AO139)","v":0},{"$f":"IF(VLOOKUP(AH139,Group,5,FALSE)=\"\",\"\",VLOOKUP(AH139,Group,5,FALSE))","v":""},null,"X"]
["PRSSV",null,"PP","Progress Profiles - All",null,"PPPRSSV",null,"PRSSV","Pommel Remover",null,null,null,null,null,null,null,"Progress",null,"Stock",null,{"$f":"IF(Suggested=\"Yes\",'Price List'!AC140,'Price List'!AI140)","v":1.6},"EA",{"$f":"+Instructions!$B$3","v":"N"},null,{"$f":"+Instructions!$D$22","v":0},1.6,null,"",1.6,0,1.6,0,null,{"$f":"+C140","v":"PP"},1.6,null,null,1.6,{"$f":"IF(VLOOKUP(AH140,Group,3,FALSE)=\"YES\",VLOOKUP(ROUND(ROUND(AL140,1)-AL140,2),Round,2,FALSE)+VLOOKUP(AH140,Group,4,FALSE),0)","v":0},{"$f":"IF(VLOOKUP(AH140,Group,5,FALSE)=\"\",0,ROUND(AL140-0.04999,1)-AL140+AO140)","v":0},{"$f":"IF(VLOOKUP(AH140,Group,5,FALSE)=\"\",\"\",VLOOKUP(AH140,Group,5,FALSE))","v":""},null,"X"]
[null,null,null,null,null,null,null,null,null,null,null,null,null,null,null,null,null,null,null,null,null,null,null,null,null,null,null,null,null,null,null,null,null,null,null,null,null,null,null,null,null,null,"X"]
[null,null,null,null,null,"Delta Leveling System",null,null,null,null,null,null,null,null,null,null,null,null,null,null,null,null,null,null,null,null,null,null,null,null,null,null,null,null,null,null,null,null,null,null,null,null,"X"]
[null,null,null,null,null,null,null,null,null,null,null,null,null,null,null,null,null,null,null,null,null,null,null,null,null,null,null,null,null,null,null,null,null,null,null,null,null,null,null,null,null,null,"X"]
[3938,null,"RU","Rubi - All Other",null,"RU03938",null,"1/16\" Clip",null,"03938 Delta Leveling System",null,null,null,null,"- 400 Count",null,"Rubi",null,"Stock",null,{"$f":"IF(Suggested=\"Yes\",'Price List'!AC144,'Price List'!AI144)","v":25.7},"EA",{"$f":"+Instructions!$B$3","v":"N"},null,{"$f":"+Instructions!$D$22","v":0},{"$f":"ROUND($AC144*(1-Y144)+0.004999,2)","v":25.7},null,"YES",25.7,{"$f":"+Y144","v":0},25.7,{"$f":"(AI144-AE144)/AI144","v":0},null,{"$f":"+C144","v":"RU"},{"$f":"SUM(AL144:AN144)+AG144","v":25.7},null,null,{"$f":"ROUND(AE144/(1-VLOOKUP(AH144,Group,2,FALSE)),2)","v":25.7},{"$f":"IF(VLOOKUP(AH144,Group,3,FALSE)=\"YES\",VLOOKUP(ROUND(ROUND(AL144,1)-AL144,2),Round,2,FALSE)+VLOOKUP(AH144,Group,4,FALSE),0)","v":0},{"$f":"IF(VLOOKUP(AH144,Group,5,FALSE)=\"\",0,ROUND(AL144-0.04999,1)-AL144+AO144)","v":0},{"$f":"IF(VLOOKUP(AH144,Group,5,FALSE)=\"\",\"\",VLOOKUP(AH144,Group,5,FALSE))","v":""},null,"X"]
[3950,null,"RU","Rubi - All Other",null,"RU03950",null,"Wedge",null,"03950 Delta Leveling System",null,null,null,null,"- 400 Count",null,"Rubi",null,"Stock",null,{"$f":"IF(Suggested=\"Yes\",'Price List'!AC145,'Price List'!AI145)","v":56.55},"EA",{"$f":"+Instructions!$B$3","v":"N"},null,{"$f":"+Instructions!$D$22","v":0},56.55,null,"YES",56.55,0,56.55,0,null,{"$f":"+C145","v":"RU"},56.55,null,null,56.55,0,0,"",null,"X"]
[3901,null,"RU","Rubi - All Other",null,"RU03901",null,"Pliers",null,"03901 Tile Level Pliers Fast-Fix",null,null,null,null,null,null,"Rubi",null,"Stock",null,{"$f":"IF(Suggested=\"Yes\",'Price List'!AC146,'Price List'!AI146)","v":39.25},"EA",{"$f":"+Instructions!$B$3","v":"N"},null,{"$f":"+Instructions!$D$22","v":0},39.25,null,"YES",39.25,0,39.25,0,null,{"$f":"+C146","v":"RU"},39.25,null,null,39.25,0,0,"",null,"X"]
[null,null,null,null,null,null,null,null,null,null,null,null,null,null,null,null,null,null,null,null,null,null,null,null,null,null,null,null,null,null,null,null,null,null,null,null,null,null,null,null,null,null,"X"]
[null,null,null,null,"Knee Pads",null,null,null,null,null,null,null,null,null,null,null,null,null,null,null,null,null,null,null,null,null,null,null,null,null,null,null,null,null,null,null,null,null,null,null,null,null,"X"]
[null,null,null,null,null,null,null,null,null,null,null,null,null,null,null,null,null,null,null,null,null,null,null,null,null,null,null,null,null,null,null,null,null,null,null,null,null,null,null,null,null,null,"X"]
[null,null,"TR","Troxell - All Other",null,"TX17809",null,"17-809 Elite Professional Rubber Knee Pad (similar to KN-1)",null,null,null,null,null,null,null,null,"Troxell",null,"Stock","new",{"$f":"IF(Suggested=\"Yes\",'Price List'!AC150,'Price List'!AI150)","v":21.55},"EA",{"$f":"+Instructions!$B$3","v":"N"},null,{"$f":"+Instructions!$D$22","v":0},{"$f":"ROUND($AC150*(1-Y150)+0.004999,2)","v":21.55},null,"YES",21.55,{"$f":"+Y150","v":0},{"$f":"+Z150","v":21.55},{"$f":"(AI150-AE150)/AI150","v":0},null,{"$f":"+C150","v":"TR"},{"$f":"SUM(AL150:AN150)+AG150","v":21.55},null,null,{"$f":"ROUND(AE150/(1-VLOOKUP(AH150,Group,2,FALSE)),2)","v":21.55},{"$f":"IF(VLOOKUP(AH150,Group,3,FALSE)=\"YES\",VLOOKUP(ROUND(ROUND(AL150,1)-AL150,2),Round,2,FALSE)+VLOOKUP(AH150,Group,4,FALSE),0)","v":0},{"$f":"IF(VLOOKUP(AH150,Group,5,FALSE)=\"\",0,ROUND(AL150-0.04999,1)-AL150+AO150)","v":0},{"$f":"IF(VLOOKUP(AH150,Group,5,FALSE)=\"\",\"\",VLOOKUP(AH150,Group,5,FALSE))","v":""},null,"X"]
[null,null,null,null,null,null,null,null,null,null,null,null,null,null,null,null,null,null,null,null,null,null,null,null,null,null,null,null,null,null,null,null,null,null,null,null,null,null,null,null,null,null,"X"]
["17-209",null,"TR","Troxell - All Other",null,"TX17209",null,"17-209","Super Soft Knee Pads",null,null,null,null,null,null,null,"Troxell",null,"Stock",null,{"$f":"IF(Suggested=\"Yes\",'Price List'!AC152,'Price List'!AI152)","v":34.450000000000003},"EA",{"$f":"+Instructions!$B$3","v":"N"},null,{"$f":"+Instructions!$D$22","v":0},{"$f":"ROUND($AC152*(1-Y152)+0.004999,2)","v":34.450000000000003},null,"YES",34.450000000000003,0,34.450000000000003,{"$f":"(AI152-AE152)/AI152","v":0},null,{"$f":"+C152","v":"TR"},{"$f":"SUM(AL152:AN152)+AG152","v":34.450000000000003},null,null,{"$f":"ROUND(AE152/(1-VLOOKUP(AH152,Group,2,FALSE)),2)","v":34.450000000000003},{"$f":"IF(VLOOKUP(AH152,Group,3,FALSE)=\"YES\",VLOOKUP(ROUND(ROUND(AL152,1)-AL152,2),Round,2,FALSE)+VLOOKUP(AH152,Group,4,FALSE),0)","v":0},{"$f":"IF(VLOOKUP(AH152,Group,5,FALSE)=\"\",0,ROUND(AL152-0.04999,1)-AL152+AO152)","v":0},{"$f":"IF(VLOOKUP(AH152,Group,5,FALSE)=\"\",\"\",VLOOKUP(AH152,Group,5,FALSE))","v":""},null,"X"]
["17-209L",null,"TR","Troxell - All Other",null,"TX17209L",null,"17-209L","Super Soft Knee Pads - Large",null,null,null,null,null,null,null,"Troxell",null,"Stock",null,{"$f":"IF(Suggested=\"Yes\",'Price List'!AC153,'Price List'!AI153)","v":44.95},"EA",{"$f":"+Instructions!$B$3","v":"N"},null,{"$f":"+Instructions!$D$22","v":0},44.95,null,"YES",44.95,0,44.95,0,null,{"$f":"+C153","v":"TR"},44.95,null,null,44.95,0,0,"",null,"X"]
[null,null,null,null,null,null,null,null,null,null,null,null,null,null,null,null,null,null,null,null,null,null,null,null,null,null,null,null,null,null,null,null,null,null,null,null,null,null,null,null,null,null,"X"]
["F280150",null,"RS","RTC - All Other",null,"RSKNF280150",null,"F280150 Fento Home Knee Pads",null,null,null,null,null,null,null,null,"RTC",null,null,"new",{"$f":"IF(Suggested=\"Yes\",'Price List'!AC155,'Price List'!AI155)","v":33.950000000000003},"EA",{"$f":"+Instructions!$B$3","v":"N"},null,{"$f":"+Instructions!$D$22","v":0},{"$f":"ROUND($AC155*(1-Y155)+0.004999,2)","v":33.950000000000003},null,"new",33.950000000000003,{"$f":"+Y155","v":0},{"$f":"+Z155","v":33.950000000000003},{"$f":"(AI155-AE155)/AI155","v":0},null,{"$f":"+C155","v":"RS"},{"$f":"SUM(AL155:AN155)+AG155","v":33.950000000000003},null,null,{"$f":"ROUND(AE155/(1-VLOOKUP(AH155,Group,2,FALSE)),2)","v":33.950000000000003},{"$f":"IF(VLOOKUP(AH155,Group,3,FALSE)=\"YES\",VLOOKUP(ROUND(ROUND(AL155,1)-AL155,2),Round,2,FALSE)+VLOOKUP(AH155,Group,4,FALSE),0)","v":0},{"$f":"IF(VLOOKUP(AH155,Group,5,FALSE)=\"\",0,ROUND(AL155-0.04999,1)-AL155+AO155)","v":0},{"$f":"IF(VLOOKUP(AH155,Group,5,FALSE)=\"\",\"\",VLOOKUP(AH155,Group,5,FALSE))","v":""},null,"X"]
[null,null,null,null,null,null,null,null,null,null,null,null,null,null,null,null,null,null,null,null,null,null,null,null,null,null,null,null,null,null,null,null,null,null,null,null,null,null,null,null,null,null,"X"]
["F280220",null,"RS","RTC - All Other",null,"RSKNF280220",null,"F280220 Fento Knee Pads",null,null,null,null,null,null,null,null,"RTC",null,"Stock","new",{"$f":"IF(Suggested=\"Yes\",'Price List'!AC157,'Price List'!AI157)","v":89},"EA",{"$f":"+Instructions!$B$3","v":"N"},null,{"$f":"+Instructions!$D$22","v":0},{"$f":"ROUND($AC157*(1-Y157)+0.004999,2)","v":89},null,"new",89,{"$f":"+Y157","v":0},{"$f":"+Z157","v":89},{"$f":"(AI157-AE157)/AI157","v":0},null,{"$f":"+C157","v":"RS"},{"$f":"SUM(AL157:AN157)+AG157","v":89},null,null,{"$f":"ROUND(AE157/(1-VLOOKUP(AH157,Group,2,FALSE)),2)","v":89},{"$f":"IF(VLOOKUP(AH157,Group,3,FALSE)=\"YES\",VLOOKUP(ROUND(ROUND(AL157,1)-AL157,2),Round,2,FALSE)+VLOOKUP(AH157,Group,4,FALSE),0)","v":0},{"$f":"IF(VLOOKUP(AH157,Group,5,FALSE)=\"\",0,ROUND(AL157-0.04999,1)-AL157+AO157)","v":0},{"$f":"IF(VLOOKUP(AH157,Group,5,FALSE)=\"\",\"\",VLOOKUP(AH157,Group,5,FALSE))","v":""},null,"X"]
["P280003",null,"RS","RTC - All Other",null,"RSKNP280003",null,null,"P280003 Replacement Knee Pad Inlay for Fento F280220",null,null,null,null,null,null,null,"RTC",null,null,"new",{"$f":"IF(Suggested=\"Yes\",'Price List'!AC158,'Price List'!AI158)","v":31.05},"EA",{"$f":"+Instructions!$B$3","v":"N"},null,{"$f":"+Instructions!$D$22","v":0},31.05,null,"new",31.05,{"$f":"+Y158","v":0},{"$f":"+Z158","v":31.05},{"$f":"(AI158-AE158)/AI158","v":0},null,{"$f":"+C158","v":"RS"},{"$f":"SUM(AL158:AN158)+AG158","v":31.05},null,null,31.05,0,0,"",null,"X"]
["E280201",null,"RS","RTC - All Other",null,"RSKNE280201",null,null,"E280201 Replacement Elastic Straps for Fento F280220",null,null,null,null,null,null,null,"RTC",null,null,"new",{"$f":"IF(Suggested=\"Yes\",'Price List'!AC159,'Price List'!AI159)","v":15},"EA",{"$f":"+Instructions!$B$3","v":"N"},null,{"$f":"+Instructions!$D$22","v":0},15,null,"new",15,0,15,0,null,{"$f":"+C159","v":"RS"},15,null,null,15,0,0,"",null,"X"]
[null,null,null,null,null,null,null,null,null,null,null,null,null,null,null,null,null,null,null,null,null,null,null,null,null,null,null,null,null,null,null,null,null,null,null,null,null,null,null,null,null,null,"X"]
["F280440",null,"RS","RTC - All Other",null,"RSKNF280440",null,"F280440 Max Knee Pads",null,null,null,null,null,null,null,null,"RTC",null,null,"new",{"$f":"IF(Suggested=\"Yes\",'Price List'!AC161,'Price List'!AI161)","v":129.94999999999999},"EA",{"$f":"+Instructions!$B$3","v":"N"},null,{"$f":"+Instructions!$D$22","v":0},129.94999999999999,null,"new",129.94999999999999,{"$f":"+Y161","v":0},{"$f":"+Z161","v":129.94999999999999},{"$f":"(AI161-AE161)/AI161","v":0},null,{"$f":"+C161","v":"RS"},{"$f":"SUM(AL161:AN161)+AG161","v":129.94999999999999},null,null,129.94999999999999,0,0,"",null,"X"]
["P280004",null,"RS","RTC - All Other",null,"RSKNP280004",null,null,"P280004 Replacement Knee Pad Inlay for Fento F280440",null,null,null,null,null,null,null,"RTC",null,null,"new",{"$f":"IF(Suggested=\"Yes\",'Price List'!AC162,'Price List'!AI162)","v":42.85},"EA",{"$f":"+Instructions!$B$3","v":"N"},null,{"$f":"+Instructions!$D$22","v":0},42.85,null,"new",42.85,{"$f":"+Y162","v":0},{"$f":"+Z162","v":42.85},{"$f":"(AI162-AE162)/AI162","v":0},null,{"$f":"+C162","v":"RS"},{"$f":"SUM(AL162:AN162)+AG162","v":42.85},null,null,42.85,0,0,"",null,"X"]
["E280401",null,"RS","RTC - All Other",null,"RSKNE280401",null,null,"E280401 Replacement Elastic Straps for Fento F280440",null,null,null,null,null,null,null,"RTC",null,null,"new",{"$f":"IF(Suggested=\"Yes\",'Price List'!AC163,'Price List'!AI163)","v":30},"EA",{"$f":"+Instructions!$B$3","v":"N"},null,{"$f":"+Instructions!$D$22","v":0},30,null,"new",30,0,30,0,null,{"$f":"+C163","v":"RS"},30,null,null,30,0,0,"",null,"X"]
[null,null,null,null,null,null,null,null,null,null,null,null,null,null,null,null,null,null,null,null,null,null,null,null,null,null,null,null,null,null,null,null,null,null,null,null,null,null,null,null,null,null,"X"]
[null,null,null,null,"Wet Saws",null,null,null,null,null,null,null,null,null,null,null,null,null,null,null,null,null,null,null,null,null,null,null,null,null,null,null,null,null,null,null,null,null,null,null,null,null,"X"]
[null,null,null,null,null,null,null,null,null,null,null,null,null,null,null,null,null,null,null,null,null,null,null,null,null,null,null,null,null,null,null,null,null,null,null,null,null,null,null,null,null,null,"X"]
[null,null,null,null,null,"Saws - Cutting Length 48\" and greater",null,null,null,null,null,null,null,null,null,null,null,null,null,null,null,null,null,null,null,null,null,null,null,null,null,null,null,null,null,null,null,null,null,null,null,null,"X"]
["DS2501500",null,"RU1","Rubi - Saws/Cutters",null,"RUDS2501500",null,"DS250N 1500 Bridge Saw w/ Folding Legs - ZERO DUST",null,null,null,null,null,null,null,null,"Rubi",null,"n/s",null,{"$f":"IF(Suggested=\"Yes\",'Price List'!AC168,'Price List'!AI168)","v":3359},"EA",{"$f":"+Instructions!$B$3","v":"N"},null,{"$f":"+Instructions!$D$22","v":0},{"$f":"ROUND($AC168*(1-Y168)+0.004999,2)","v":3359},null,"YES",3359,{"$f":"+Y168","v":0},{"$f":"+Z168","v":3359},{"$f":"(AI168-AE168)/AI168","v":0},null,{"$f":"+C168","v":"RU1"},{"$f":"SUM(AL168:AN168)+AG168","v":3359},null,null,{"$f":"ROUND(AE168/(1-VLOOKUP(AH168,Group,2,FALSE)),2)","v":3359},{"$f":"IF(VLOOKUP(AH168,Group,3,FALSE)=\"YES\",VLOOKUP(ROUND(ROUND(AL168,1)-AL168,2),Round,2,FALSE)+VLOOKUP(AH168,Group,4,FALSE),0)","v":0},{"$f":"IF(VLOOKUP(AH168,Group,5,FALSE)=\"\",0,ROUND(AL168-0.04999,1)-AL168+AO168)","v":0},{"$f":"IF(VLOOKUP(AH168,Group,5,FALSE)=\"\",\"\",VLOOKUP(AH168,Group,5,FALSE))","v":""},null,"X"]
[null,null,null,null,null,null,"- 61\" cutting length / 42\" diagonal",null,null,null,null,"- Dimensions: 87\" x 29\" x 51\" "]
[null,null,null,null,null,null,"- Weight = 242 lbs",null,null,null,null,"- Precise Miter Cuts",null,null,null,null,null,null,null,null,null,null,null,null,null,null,null,null,null,null,null,null,null,null,null,null,null,null,null,null,null,null,"X"]
[null,null,null,null,null,null,"- 10\" Saw Blade Capacity - 1\" Arbor",null,null,null,null,"- Plunge Cuts",null,null,null,null,null,null,null,null,null,null,null,null,null,null,null,null,null,null,null,null,null,null,null,null,null,null,null,null,null,null,"X"]
[null,null,null,null,null,null,"- Horsepower = 3 hp",null,null,null,null,"- Folding Legs w/ Wheels for easy transportation",null,null,null,null,null,null,null,null,null,null,null,null,null,null,null,null,null,null,null,null,null,null,null,null,null,null,null,null,null,null,"X"]
[null,null,null,null,null,null,null,null,null,null,null,null,null,null,null,null,null,null,null,null,null,null,null,null,null,null,null,null,null,null,null,null,null,null,null,null,null,null,null,null,null,null,"X"]
["DS2501300",null,"RU1","Rubi - Saws/Cutters",null,"RUDS2501300",null,"DS250N 1300 Bridge Saw w/ Folding Legs - ZERO DUST",null,null,null,null,null,null,null,null,"Rubi",null,"n/s",null,{"$f":"IF(Suggested=\"Yes\",'Price List'!AC174,'Price List'!AI174)","v":3159},"EA",{"$f":"+Instructions!$B$3","v":"N"},null,{"$f":"+Instructions!$D$22","v":0},{"$f":"ROUND($AC174*(1-Y174)+0.004999,2)","v":3159},null,"YES",3159,{"$f":"+Y174","v":0},{"$f":"+Z174","v":3159},{"$f":"(AI174-AE174)/AI174","v":0},null,{"$f":"+C174","v":"RU1"},{"$f":"SUM(AL174:AN174)+AG174","v":3159},null,null,{"$f":"ROUND(AE174/(1-VLOOKUP(AH174,Group,2,FALSE)),2)","v":3159},{"$f":"IF(VLOOKUP(AH174,Group,3,FALSE)=\"YES\",VLOOKUP(ROUND(ROUND(AL174,1)-AL174,2),Round,2,FALSE)+VLOOKUP(AH174,Group,4,FALSE),0)","v":0},{"$f":"IF(VLOOKUP(AH174,Group,5,FALSE)=\"\",0,ROUND(AL174-0.04999,1)-AL174+AO174)","v":0},{"$f":"IF(VLOOKUP(AH174,Group,5,FALSE)=\"\",\"\",VLOOKUP(AH174,Group,5,FALSE))","v":""},null,"X"]
[null,null,null,null,null,null,"- 51\" cutting length / 37\" diag cut",null,null,null,null,"- Dimensions: 79\" x 29\" x 51\" "]
[null,null,null,null,null,null,"- Weight = 275 lbs",null,null,null,null,"- Precise Miter Cuts",null,null,null,null,null,null,null,null,null,null,null,null,null,null,null,null,null,null,null,null,null,null,null,null,null,null,null,null,null,null,"X"]
[null,null,null,null,null,null,"- 10\" Saw Blade Capacity - 1\" Arbor",null,null,null,null,"- Plunge Cuts",null,null,null,null,null,null,null,null,null,null,null,null,null,null,null,null,null,null,null,null,null,null,null,null,null,null,null,null,null,null,"X"]
[null,null,null,null,null,null,"- Horsepower = 3 hp",null,null,null,null,"- Folding Legs w/ Wheels for easy transportation",null,null,null,null,null,null,null,null,null,null,null,null,null,null,null,null,null,null,null,null,null,null,null,null,null,null,null,null,null,null,"X"]
[null,null,null,null,null,null,null,null,null,null,null,null,null,null,null,null,null,null,null,null,null,null,null,null,null,null,null,null,null,null,null,null,null,null,null,null,null,null,null,null,null,null,"X"]
["DC2501200",null,"RU1","Rubi - Saws/Cutters",null,"RUDC2501200",null,"DC250 1200 Python Bridge Saw w/ Folding Legs",null,null,null,null,null,null,null,null,"Rubi",null,"Stock",null,{"$f":"IF(Suggested=\"Yes\",'Price List'!AC180,'Price List'!AI180)","v":1699},"EA",{"$f":"+Instructions!$B$3","v":"N"},null,{"$f":"+Instructions!$D$22","v":0},{"$f":"ROUND($AC180*(1-Y180)+0.004999,2)","v":1699},null,"YES",1699,{"$f":"+Y180","v":0},{"$f":"+Z180","v":1699},{"$f":"(AI180-AE180)/AI180","v":0},null,{"$f":"+C180","v":"RU1"},{"$f":"SUM(AL180:AN180)+AG180","v":1699},null,null,{"$f":"ROUND(AE180/(1-VLOOKUP(AH180,Group,2,FALSE)),2)","v":1699},{"$f":"IF(VLOOKUP(AH180,Group,3,FALSE)=\"YES\",VLOOKUP(ROUND(ROUND(AL180,1)-AL180,2),Round,2,FALSE)+VLOOKUP(AH180,Group,4,FALSE),0)","v":0},{"$f":"IF(VLOOKUP(AH180,Group,5,FALSE)=\"\",0,ROUND(AL180-0.04999,1)-AL180+AO180)","v":0},{"$f":"IF(VLOOKUP(AH180,Group,5,FALSE)=\"\",\"\",VLOOKUP(AH180,Group,5,FALSE))","v":""},null,"X"]
[null,null,null,null,null,null,"- 48\" cutting length / 33\" diag cut",null,null,null,null,"- Dimensions: 67\" x 31\" x 51\" "]
[null,null,null,null,null,null,"- Weight = 132 lbs",null,null,null,null,"- Precise Miter Cuts",null,null,null,null,null,null,null,null,null,null,null,null,null,null,null,null,null,null,null,null,null,null,null,null,null,null,null,null,null,null,"X"]
[null,null,null,null,null,null,"- 10\" Saw Blade Capacity - 5/8\" Arbor",null,null,null,null,"- Plunge Cuts",null,null,null,null,null,null,null,null,null,null,null,null,null,null,null,null,null,null,null,null,null,null,null,null,null,null,null,null,null,null,"X"]
[null,null,null,null,null,null,"- Horsepower = 1.5 hp",null,null,null,null,"- Folding Legs w/ Wheels for easy transportation",null,null,null,null,null,null,null,null,null,null,null,null,null,null,null,null,null,null,null,null,null,null,null,null,null,null,null,null,null,null,"X"]
[null,null,null,null,null,null,"- Removable Table for easy cleaning",null,null,null,null,null,null,null,null,null,null,null,null,null,null,null,null,null,null,null,null,null,null,null,null,null,null,null,null,null,null,null,null,null,null,null,"X"]
[null,null,null,null,null,null,null,null,null,null,null,null,null,null,null,null,null,null,null,null,null,null,null,null,null,null,null,null,null,null,null,null,null,null,null,null,null,null,null,null,null,null,"X"]
[null,null,null,null,null,"Saws - Cutting Length 36\" to 48\"",null,null,null,null,null,null,null,null,null,null,null,null,null,null,null,null,null,null,null,null,null,null,null,null,null,null,null,null,null,null,null,null,null,null,null,null,"X"]
["DC250/850",null,"RU1","Rubi - Saws/Cutters",null,"RUDC250/850",null,"DC250 850 Bridge Saw w/ Folding Legs",null,null,null,null,null,null,null,null,"Rubi",null,"n/s",null,{"$f":"IF(Suggested=\"Yes\",'Price List'!AC188,'Price List'!AI188)","v":1359},"EA",{"$f":"+Instructions!$B$3","v":"N"},null,{"$f":"+Instructions!$D$22","v":0},{"$f":"ROUND($AC188*(1-Y188)+0.004999,2)","v":1359},null,"YES",1359,{"$f":"+Y188","v":0},{"$f":"+Z188","v":1359},{"$f":"(AI188-AE188)/AI188","v":0},null,{"$f":"+C188","v":"RU1"},{"$f":"SUM(AL188:AN188)+AG188","v":1359},null,null,{"$f":"ROUND(AE188/(1-VLOOKUP(AH188,Group,2,FALSE)),2)","v":1359},{"$f":"IF(VLOOKUP(AH188,Group,3,FALSE)=\"YES\",VLOOKUP(ROUND(ROUND(AL188,1)-AL188,2),Round,2,FALSE)+VLOOKUP(AH188,Group,4,FALSE),0)","v":0},{"$f":"IF(VLOOKUP(AH188,Group,5,FALSE)=\"\",0,ROUND(AL188-0.04999,1)-AL188+AO188)","v":0},{"$f":"IF(VLOOKUP(AH188,Group,5,FALSE)=\"\",\"\",VLOOKUP(AH188,Group,5,FALSE))","v":""},null,"X"]
[null,null,null,null,null,null,"- 38\" cutting length / 27\" diag cut",null,null,null,null,"- Dimensions: 58\" x 31\" x 51\" "]
[null,null,null,null,null,null,"- Weight = 121 lbs",null,null,null,null,"- Precise Miter Cuts",null,null,null,null,null,null,null,null,null,null,null,null,null,null,null,null,null,null,null,null,null,null,null,null,null,null,null,null,null,null,"X"]
[null,null,null,null,null,null,"- 10\" Saw Blade Capacity - 5/8\" Arbor",null,null,null,null,"- Plunge Cuts",null,null,null,null,null,null,null,null,null,null,null,null,null,null,null,null,null,null,null,null,null,null,null,null,null,null,null,null,null,null,"X"]
[null,null,null,null,null,null,"- Horsepower = 1.5 hp",null,null,null,null,"- Folding Legs w/ Wheels for easy transportation",null,null,null,null,null,null,null,null,null,null,null,null,null,null,null,null,null,null,null,null,null,null,null,null,null,null,null,null,null,null,"X"]
[null,null,null,null,null,null,"- Removable Table for easy cleaning",null,null,null,null,null,null,null,null,null,null,null,null,null,null,null,null,null,null,null,null,null,null,null,null,null,null,null,null,null,null,null,null,null,null,null,"X"]
[null,null,null,null,null,null,null,null,null,null,null,null,null,null,null,null,null,null,null,null,null,null,null,null,null,null,null,null,null,null,null,null,null,null,null,null,null,null,null,null,null,null,"X"]
[null,null,null,null,null,"Saws - Cutting Length between 20\" to 36\"",null,null,null,null,null,null,null,null,null,null,null,null,null,null,null,null,null,null,null,null,null,null,null,null,null,null,null,null,null,null,null,null,null,null,null,null,"X"]
["DT10MAX",null,"RU1","Rubi - Saws/Cutters",null,"RUDT10MAX",null,"DT-10 MAX Wet Saw w/ Folding Legs",null,null,null,null,null,null,null,null,"Rubi",null,"Stock",null,{"$f":"IF(Suggested=\"Yes\",'Price List'!AC196,'Price List'!AI196)","v":1099},"EA",{"$f":"+Instructions!$B$3","v":"N"},null,{"$f":"+Instructions!$D$22","v":0},{"$f":"ROUND($AC196*(1-Y196)+0.004999,2)","v":1099},null,"",1099,{"$f":"+Y196","v":0},{"$f":"+Z196","v":1099},{"$f":"(AI196-AE196)/AI196","v":0},null,{"$f":"+C196","v":"RU1"},{"$f":"SUM(AL196:AN196)+AG196","v":1099},null,null,{"$f":"ROUND(AE196/(1-VLOOKUP(AH196,Group,2,FALSE)),2)","v":1099},{"$f":"IF(VLOOKUP(AH196,Group,3,FALSE)=\"YES\",VLOOKUP(ROUND(ROUND(AL196,1)-AL196,2),Round,2,FALSE)+VLOOKUP(AH196,Group,4,FALSE),0)","v":0},{"$f":"IF(VLOOKUP(AH196,Group,5,FALSE)=\"\",0,ROUND(AL196-0.04999,1)-AL196+AO196)","v":0},{"$f":"IF(VLOOKUP(AH196,Group,5,FALSE)=\"\",\"\",VLOOKUP(AH196,Group,5,FALSE))","v":""},null,"X"]
[null,null,null,null,null,null,"- 36\" cutting length / 24\" diag cut",null,null,null,null,"- Dimensions: 63\" x 37\" x 48\" "]
[null,null,null,null,null,null,"- Weight = 105 lbs",null,null,null,null,"- Precise Miter Cuts",null,null,null,null,null,null,null,null,null,null,null,null,null,null,null,null,null,null,null,null,null,null,null,null,null,null,null,null,null,null,"X"]
[null,null,null,null,null,null,"- 10\" Saw Blade Capacity - 5/8\" Arbor",null,null,null,null,"- Plunge Cuts",null,null,null,null,null,null,null,null,null,null,null,null,null,null,null,null,null,null,null,null,null,null,null,null,null,null,null,null,null,null,"X"]
[null,null,null,null,null,null,"- Horsepower = 2.0 hp",null,null,null,null,"- Folding Legs w/ Wheels for easy transportation",null,null,null,null,null,null,null,null,null,null,null,null,null,null,null,null,null,null,null,null,null,null,null,null,null,null,null,null,null,null,"X"]
[null,null,null,null,null,null,"- Removable Table for easy cleaning",null,null,null,null,"- cuts up to 1.1\" thick",null,null,null,null,null,null,null,null,null,null,null,null,null,null,null,null,null,null,null,null,null,null,null,null,null,null,null,null,null,null,"X"]
[null,null,null,null,null,null,null,null,null,null,null,null,null,null,null,null,null,null,null,null,null,null,null,null,null,null,null,null,null,null,null,null,null,null,null,null,null,null,null,null,null,null,"X"]
["IQTS244",null,"IQ1","IQ Tools - Saws/Cutters",null,"IQIQTS244",null,"IQTS244 Dry Cut Tile Saw w/ Integrated Dust Containment",null,null,null,null,null,null,null,null,"IQ Tools",null,"Stock",null,{"$f":"+#REF!+#REF!","v":{"$error":"#REF!"}},"EA",{"$f":"+Instructions!$B$3","v":"N"},null,{"$f":"+Instructions!$D$22","v":0},{"$f":"ROUND($AC203*(1-Y203)+0.004999,2)","v":1907},null,"YES",1907,{"$f":"+Y203","v":0},1907,{"$f":"(AI203-AE203)/AI203","v":0},null,{"$f":"+C203","v":"IQ1"},{"$f":"SUM(AL203:AN203)+AG203","v":1907},null,null,{"$f":"ROUND(AE203/(1-VLOOKUP(AH203,Group,2,FALSE)),2)","v":1907},{"$f":"IF(VLOOKUP(AH203,Group,3,FALSE)=\"YES\",VLOOKUP(ROUND(ROUND(AL203,1)-AL203,2),Round,2,FALSE)+VLOOKUP(AH203,Group,4,FALSE),0)","v":0},{"$f":"IF(VLOOKUP(AH203,Group,5,FALSE)=\"\",0,ROUND(AL203-0.04999,1)-AL203+AO203)","v":0},{"$f":"IF(VLOOKUP(AH203,Group,5,FALSE)=\"\",\"\",VLOOKUP(AH203,Group,5,FALSE))","v":""},null,"X"]
["IQTS244STAND",null,"IQ","IQ Tools - All Other",null,"IQIQTS244STAND",null,null,"IQTS244 Stand",null,"(Saw & Stand are only sold as a set)",null,null,null,null,null,"IQ Tools",null,"Stock",null,null,"EA",{"$f":"+Instructions!$B$3","v":"N"},null,{"$f":"+Instructions!$D$22","v":0},{"$f":"ROUND($AC204*(1-Y204)+0.004999,2)","v":155},null,"YES",155,0,155,{"$f":"(AI204-AE204)/AI204","v":0},null,{"$f":"+C204","v":"IQ"},{"$f":"SUM(AL204:AN204)+AG204","v":155},null,null,{"$f":"ROUND(AE204/(1-VLOOKUP(AH204,Group,2,FALSE)),2)","v":155},{"$f":"IF(VLOOKUP(AH204,Group,3,FALSE)=\"YES\",VLOOKUP(ROUND(ROUND(AL204,1)-AL204,2),Round,2,FALSE)+VLOOKUP(AH204,Group,4,FALSE),0)","v":0},{"$f":"IF(VLOOKUP(AH204,Group,5,FALSE)=\"\",0,ROUND(AL204-0.04999,1)-AL204+AO204)","v":0},{"$f":"IF(VLOOKUP(AH204,Group,5,FALSE)=\"\",\"\",VLOOKUP(AH204,Group,5,FALSE))","v":""},null,"X"]
[null,null,null,null,null,null,"- 24\" cutting length / 18\" diag cut",null,null,null,null,"- Dimensions: 34\" x 27\" x 28\" "]
[null,null,null,null,null,null,"- Dust Containment System",null,null,null,null,"- Meets OSHA 2017 Silica Standard"]
[null,null,null,null,null,null,"- Horsepower = 1.5 hp",null,null,null,null,"- Adjustable Cutting Head - Cuts up to 1\""]
[null,null,null,null,null,null,"- Weight = 92 lbs",null,null,null,null,"- Includes Stand & Blade"]
[null,null,null,null,null,null,"- 10\" Saw Blade Capacity (must use their blade - Q-Drive Blade with Cool Cut Technology)"]
[null,null,null,null,null,null,null,null,null,null,null,null,null,null,null,null,null,null,null,null,null,null,null,null,null,null,null,null,null,null,null,null,null,null,null,null,null,null,null,null,null,null,"X"]
["IQTS244TABLEEXT",null,"IQ","IQ Tools - All Other",null,"     IQIQTS244TABLEEXT",null,null,"iQTS244 Extension Table Accessory",null,null,null,null,null,null,null,"IQ Tools",null,"Stock",null,{"$f":"IF(Suggested=\"Yes\",'Price List'!AC211,'Price List'!AI211)","v":299},"EA",{"$f":"+Instructions!$B$3","v":"N"},null,{"$f":"+Instructions!$D$22","v":0},{"$f":"ROUND($AC211*(1-Y211)+0.004999,2)","v":299},null,"YES",299,{"$f":"+Y211","v":0},299,{"$f":"(AI211-AE211)/AI211","v":0},null,{"$f":"+C211","v":"IQ"},{"$f":"SUM(AL211:AN211)+AG211","v":299},null,null,{"$f":"ROUND(AE211/(1-VLOOKUP(AH211,Group,2,FALSE)),2)","v":299},{"$f":"IF(VLOOKUP(AH211,Group,3,FALSE)=\"YES\",VLOOKUP(ROUND(ROUND(AL211,1)-AL211,2),Round,2,FALSE)+VLOOKUP(AH211,Group,4,FALSE),0)","v":0},{"$f":"IF(VLOOKUP(AH211,Group,5,FALSE)=\"\",0,ROUND(AL211-0.04999,1)-AL211+AO211)","v":0},{"$f":"IF(VLOOKUP(AH211,Group,5,FALSE)=\"\",\"\",VLOOKUP(AH211,Group,5,FALSE))","v":""},null,"X"]
[null,null,null,null,null,null,null,null,"- Extension table allows you to rip cut any length plank tile"]
["IQTS244MITER",null,"IQ","IQ Tools - All Other",null,"     IQIQTS244MITER",null,null,"iQTS244 Miter Attachment Accessory",null,null,null,null,null,null,null,"IQ Tools",null,null,null,{"$f":"IF(Suggested=\"Yes\",'Price List'!AC213,'Price List'!AI213)","v":215},"EA",{"$f":"+Instructions!$B$3","v":"N"},null,{"$f":"+Instructions!$D$22","v":0},{"$f":"ROUND($AC213*(1-Y213)+0.004999,2)","v":215},null,"YES",215,0,215,{"$f":"(AI213-AE213)/AI213","v":0},null,{"$f":"+C213","v":"IQ"},{"$f":"SUM(AL213:AN213)+AG213","v":215},null,null,{"$f":"ROUND(AE213/(1-VLOOKUP(AH213,Group,2,FALSE)),2)","v":215},{"$f":"IF(VLOOKUP(AH213,Group,3,FALSE)=\"YES\",VLOOKUP(ROUND(ROUND(AL213,1)-AL213,2),Round,2,FALSE)+VLOOKUP(AH213,Group,4,FALSE),0)","v":0},{"$f":"IF(VLOOKUP(AH213,Group,5,FALSE)=\"\",0,ROUND(AL213-0.04999,1)-AL213+AO213)","v":0},{"$f":"IF(VLOOKUP(AH213,Group,5,FALSE)=\"\",\"\",VLOOKUP(AH213,Group,5,FALSE))","v":""},null,"X"]
["IQTS244FILTER",null,"IQ","IQ Tools - All Other",null,"     IQIQTS244FILTER",null,null,"iQTS244 Replacement Vacuum Filter Kit",null,null,null,null,null,null,null,"IQ Tools",null,null,null,{"$f":"IF(Suggested=\"Yes\",'Price List'!AC214,'Price List'!AI214)","v":125.25},"EA",{"$f":"+Instructions!$B$3","v":"N"},null,{"$f":"+Instructions!$D$22","v":0},{"$f":"ROUND($AC214*(1-Y214)+0.004999,2)","v":125.25},null,"YES",125.25,{"$f":"+Y214","v":0},{"$f":"+Z214","v":125.25},{"$f":"(AI214-AE214)/AI214","v":0},null,{"$f":"+C214","v":"IQ"},{"$f":"SUM(AL214:AN214)+AG214","v":125.25},null,null,{"$f":"ROUND(AE214/(1-VLOOKUP(AH214,Group,2,FALSE)),2)","v":125.25},{"$f":"IF(VLOOKUP(AH214,Group,3,FALSE)=\"YES\",VLOOKUP(ROUND(ROUND(AL214,1)-AL214,2),Round,2,FALSE)+VLOOKUP(AH214,Group,4,FALSE),0)","v":0},{"$f":"IF(VLOOKUP(AH214,Group,5,FALSE)=\"\",0,ROUND(AL214-0.04999,1)-AL214+AO214)","v":0},{"$f":"IF(VLOOKUP(AH214,Group,5,FALSE)=\"\",\"\",VLOOKUP(AH214,Group,5,FALSE))","v":""},null,"X"]
["IQTS24HOSE",null,"IQ","IQ Tools - All Other",null,"     IQIQTS24HOSE",null,null,"iQTS244 Vacuum Port Hose Kit",null,null,null,null,null,null,null,"IQ Tools",null,null,null,{"$f":"IF(Suggested=\"Yes\",'Price List'!AC215,'Price List'!AI215)","v":127.7},"EA",{"$f":"+Instructions!$B$3","v":"N"},null,{"$f":"+Instructions!$D$22","v":0},{"$f":"ROUND($AC215*(1-Y215)+0.004999,2)","v":127.7},null,"YES",127.7,0,127.7,{"$f":"(AI215-AE215)/AI215","v":0},null,{"$f":"+C215","v":"IQ"},{"$f":"SUM(AL215:AN215)+AG215","v":127.7},null,null,{"$f":"ROUND(AE215/(1-VLOOKUP(AH215,Group,2,FALSE)),2)","v":127.7},{"$f":"IF(VLOOKUP(AH215,Group,3,FALSE)=\"YES\",VLOOKUP(ROUND(ROUND(AL215,1)-AL215,2),Round,2,FALSE)+VLOOKUP(AH215,Group,4,FALSE),0)","v":0},{"$f":"IF(VLOOKUP(AH215,Group,5,FALSE)=\"\",0,ROUND(AL215-0.04999,1)-AL215+AO215)","v":0},{"$f":"IF(VLOOKUP(AH215,Group,5,FALSE)=\"\",\"\",VLOOKUP(AH215,Group,5,FALSE))","v":""},null,"X"]
["IQPDS00100",null,"IQ","IQ Tools - All Other",null,"     IQIQPDS00100",null,null,"iQPDS00100-TS 8\" Professional Dressing Stone",null,null,null,null,null,null,null,"IQ Tools",null,"Stock",null,{"$f":"IF(Suggested=\"Yes\",'Price List'!AC216,'Price List'!AI216)","v":16},"EA",{"$f":"+Instructions!$B$3","v":"N"},null,{"$f":"+Instructions!$D$22","v":0},{"$f":"ROUND($AC216*(1-Y216)+0.004999,2)","v":16},null,"YES",16,{"$f":"+Y216","v":0},{"$f":"+Z216","v":16},{"$f":"(AI216-AE216)/AI216","v":0},null,{"$f":"+C216","v":"IQ"},{"$f":"SUM(AL216:AN216)+AG216","v":16},null,null,{"$f":"ROUND(AE216/(1-VLOOKUP(AH216,Group,2,FALSE)),2)","v":16},{"$f":"IF(VLOOKUP(AH216,Group,3,FALSE)=\"YES\",VLOOKUP(ROUND(ROUND(AL216,1)-AL216,2),Round,2,FALSE)+VLOOKUP(AH216,Group,4,FALSE),0)","v":0},{"$f":"IF(VLOOKUP(AH216,Group,5,FALSE)=\"\",0,ROUND(AL216-0.04999,1)-AL216+AO216)","v":0},{"$f":"IF(VLOOKUP(AH216,Group,5,FALSE)=\"\",\"\",VLOOKUP(AH216,Group,5,FALSE))","v":""},null,"X"]
[null,null,null,null,null,null,null,null,null,null,null,null,null,null,null,null,null,null,null,null,null,null,null,null,null,null,null,null,null,null,null,null,null,null,null,null,null,null,null,null,null,null,"X"]
["DT07MAX",null,"RU1","Rubi - Saws/Cutters",null,"RUDT07MAX",null,"DT-7 MAX Wet Saw w/ Folding Legs",null,null,null,null,null,null,null,null,"Rubi",null,"Stock",null,{"$f":"IF(Suggested=\"Yes\",'Price List'!AC218,'Price List'!AI218)","v":499},"EA",{"$f":"+Instructions!$B$3","v":"N"},null,{"$f":"+Instructions!$D$22","v":0},{"$f":"ROUND($AC218*(1-Y218)+0.004999,2)","v":499},null,"YES",499,{"$f":"+Y218","v":0},{"$f":"+Z218","v":499},{"$f":"(AI218-AE218)/AI218","v":0},null,{"$f":"+C218","v":"RU1"},{"$f":"SUM(AL218:AN218)+AG218","v":499},null,null,{"$f":"ROUND(AE218/(1-VLOOKUP(AH218,Group,2,FALSE)),2)","v":499},{"$f":"IF(VLOOKUP(AH218,Group,3,FALSE)=\"YES\",VLOOKUP(ROUND(ROUND(AL218,1)-AL218,2),Round,2,FALSE)+VLOOKUP(AH218,Group,4,FALSE),0)","v":0},{"$f":"IF(VLOOKUP(AH218,Group,5,FALSE)=\"\",0,ROUND(AL218-0.04999,1)-AL218+AO218)","v":0},{"$f":"IF(VLOOKUP(AH218,Group,5,FALSE)=\"\",\"\",VLOOKUP(AH218,Group,5,FALSE))","v":""},null,"X"]
[null,null,null,null,null,null,"- 24\" cutting length / 18\" diag cut",null,null,null,null,"- Dimensions: 48\" x 23\" x 45\" "]
[null,null,null,null,null,null,"- Weight = 56 lbs",null,null,null,null,"- Precise Miter Cuts",null,null,null,null,null,null,null,null,null,null,null,null,null,null,null,null,null,null,null,null,null,null,null,null,null,null,null,null,null,null,"X"]
[null,null,null,null,null,null,"- 7\" Saw Blade Capacity - 5/8\" Arbor",null,null,null,null,"- Plunge Cuts",null,null,null,null,null,null,null,null,null,null,null,null,null,null,null,null,null,null,null,null,null,null,null,null,null,null,null,null,null,null,"X"]
[null,null,null,null,null,null,"- Horsepower = 1.5 hp",null,null,null,null,"- Folding Legs for easy transportation",null,null,null,null,null,null,null,null,null,null,null,null,null,null,null,null,null,null,null,null,null,null,null,null,null,null,null,null,null,null,"X"]
[null,null,null,null,null,null,"- Removable Table for easy cleaning",null,null,null,null,"- cuts up to 1.1\" thick",null,null,null,null,null,null,null,null,null,null,null,null,null,null,null,null,null,null,null,null,null,null,null,null,null,null,null,null,null,null,"X"]
[null,null,null,null,null,null,null,null,null,null,null,null,null,null,null,null,null,null,null,null,null,null,null,null,null,null,null,null,null,null,null,null,null,null,null,null,null,null,null,null,null,null,"X"]
[null,null,null,null,null,"Saws - Small Tabletop Saws",null,null,null,null,null,null,null,null,null,null,null,null,null,null,null,null,null,null,null,null,null,null,null,null,null,null,null,null,null,null,null,null,null,null,null,null,"X"]
["IQ228CYCLONE",null,"IQ1","IQ Tools - Saws/Cutters",null,"IQIQ228CYCLONE",null,"IQ228Cyclone Dry Cut Tabletop Tile Saw ",null,null,null,null,null,null,null,null,"IQ Tools",null,"n/s",null,{"$f":"IF(Suggested=\"Yes\",'Price List'!AC226,'Price List'!AI226)","v":618.79999999999995},"EA",{"$f":"+Instructions!$B$3","v":"N"},null,{"$f":"+Instructions!$D$22","v":0},{"$f":"ROUND($AC226*(1-Y226)+0.004999,2)","v":618.79999999999995},null,"YES",618.79999999999995,{"$f":"+Y226","v":0},{"$f":"+Z226","v":618.79999999999995},{"$f":"(AI226-AE226)/AI226","v":0},null,{"$f":"+C226","v":"IQ1"},{"$f":"SUM(AL226:AN226)+AG226","v":618.79999999999995},null,null,{"$f":"ROUND(AE226/(1-VLOOKUP(AH226,Group,2,FALSE)),2)","v":618.79999999999995},{"$f":"IF(VLOOKUP(AH226,Group,3,FALSE)=\"YES\",VLOOKUP(ROUND(ROUND(AL226,1)-AL226,2),Round,2,FALSE)+VLOOKUP(AH226,Group,4,FALSE),0)","v":0},{"$f":"IF(VLOOKUP(AH226,Group,5,FALSE)=\"\",0,ROUND(AL226-0.04999,1)-AL226+AO226)","v":0},{"$f":"IF(VLOOKUP(AH226,Group,5,FALSE)=\"\",\"\",VLOOKUP(AH226,Group,5,FALSE))","v":""},null,"X"]
[null,null,null,null,null,null,null,"w/ Integrated Dust Containment"]
[null,null,null,null,null,null,"- 18\" w/ Rolling Table / Lock the table in place to cut 24\"+ planks with IQ Micro Fence"]
[null,null,null,null,null,null,"- Dust Containment System",null,null,null,null,"- Dimensions: 17\" x 25\" x 10\""]
[null,null,null,null,null,null,"- Horsepower = ",null,null,null,null,"- Meets OSHA 2017 Silica Standard"]
[null,null,null,null,null,null,"- Weight = 36 lbs",null,null,null,null,"- 99.5% Dust- Free"]
[null,null,null,null,null,null,"- Adjustable Cutting Head - Cuts up to 1.25\"",null,null,null,null,"- Includes Blade & Dressing Stone"]
[null,null,null,null,null,null,"- Unique Rail System allows for easy 22.5 and 45 degree cuts"]
[null,null,null,null,null,null,"- 7\" Saw Blade Capacity (must use their blade - Q-Drive Blade with Cool Cut Technology)"]
[null,null,null,null,null,null,null,null,null,null,null,null,null,null,null,null,null,null,null,null,null,null,null,null,null,null,null,null,null,null,null,null,null,null,null,null,null,null,null,null,null,null,"X"]
[null,null,null,null,"Wet Saws - Diamond Blades",null,null,null,null,null,null,null,null,null,null,null,null,null,null,null,null,null,null,null,null,null,null,null,null,null,null,null,null,null,null,null,null,null,null,null,null,null,"X"]
[null,null,null,null,null,null,null,null,null,null,null,null,null,null,null,null,null,null,null,null,null,null,null,null,null,null,null,null,null,null,null,null,null,null,null,null,null,null,null,null,null,null,"X"]
[null,null,null,null,null,"Diamond Blades",null,null,null,null,null,null,null,null,null,null,null,null,null,null,null,null,null,null,null,null,null,null,null,null,null,null,null,null,null,null,null,null,null,null,null,null,"X"]
["DB4ROCK",null,"RS","RTC - All Other",null,"RSBLDB4ROCK",null,"4\" Blade",null,"DB4ROCK Rock Star Diamond Blade for Porcelain Tiles",null,null,null,null,null,null,"RTC",null,"Stock","new",{"$f":"IF(Suggested=\"Yes\",'Price List'!AC239,'Price List'!AI239)","v":15.95},"EA",{"$f":"+Instructions!$B$3","v":"N"},null,{"$f":"+Instructions!$D$22","v":0},{"$f":"ROUND($AC239*(1-Y239)+0.004999,2)","v":15.95},null,"new",15.95,{"$f":"+Y239","v":0},15.95,{"$f":"(AI239-AE239)/AI239","v":0},null,{"$f":"+C239","v":"RS"},{"$f":"SUM(AL239:AN239)+AG239","v":15.95},null,null,{"$f":"ROUND(AE239/(1-VLOOKUP(AH239,Group,2,FALSE)),2)","v":15.95},{"$f":"IF(VLOOKUP(AH239,Group,3,FALSE)=\"YES\",VLOOKUP(ROUND(ROUND(AL239,1)-AL239,2),Round,2,FALSE)+VLOOKUP(AH239,Group,4,FALSE),0)","v":0},{"$f":"IF(VLOOKUP(AH239,Group,5,FALSE)=\"\",0,ROUND(AL239-0.04999,1)-AL239+AO239)","v":0},{"$f":"IF(VLOOKUP(AH239,Group,5,FALSE)=\"\",\"\",VLOOKUP(AH239,Group,5,FALSE))","v":""},null,"X"]
[31914,null,"RU","Rubi - All Other",null,"RU31914",null,"4-1/2\" Blade",null,"31914 Dry/Wet Continuous Rim Blade for Porcelain Tiles",null,null,null,null,null,null,"Rubi",null,"Stock",null,{"$f":"IF(Suggested=\"Yes\",'Price List'!AC240,'Price List'!AI240)","v":13.95},"EA",{"$f":"+Instructions!$B$3","v":"N"},null,{"$f":"+Instructions!$D$22","v":0},{"$f":"ROUND($AC240*(1-Y240)+0.004999,2)","v":13.95},null,"YES",13.95,0,13.95,{"$f":"(AI240-AE240)/AI240","v":0},null,{"$f":"+C240","v":"RU"},{"$f":"SUM(AL240:AN240)+AG240","v":13.95},null,null,{"$f":"ROUND(AE240/(1-VLOOKUP(AH240,Group,2,FALSE)),2)","v":13.95},{"$f":"IF(VLOOKUP(AH240,Group,3,FALSE)=\"YES\",VLOOKUP(ROUND(ROUND(AL240,1)-AL240,2),Round,2,FALSE)+VLOOKUP(AH240,Group,4,FALSE),0)","v":0},{"$f":"IF(VLOOKUP(AH240,Group,5,FALSE)=\"\",0,ROUND(AL240-0.04999,1)-AL240+AO240)","v":0},{"$f":"IF(VLOOKUP(AH240,Group,5,FALSE)=\"\",\"\",VLOOKUP(AH240,Group,5,FALSE))","v":""},null,"X"]
[null,null,null,null,null,null,"- good performance, smooth continuous rim blades",null,null,null,null,null,null,null,null,null,null,null,null,null,null,null,null,null,null,null,null,null,null,null,null,null,null,null,null,null,null,null,null,null,null,null,"X"]
[null,null,null,null,null,null,null,null,null,null,null,null,null,null,null,null,null,null,null,null,null,null,null,null,null,null,null,null,null,null,null,null,null,null,null,null,null,null,null,null,null,null,"X"]
[null,null,null,null,null,"High-Performance - Diamond Blades",null,null,null,null,null,null,null,null,null,null,null,null,null,null,null,null,null,null,null,null,null,null,null,null,null,null,null,null,null,null,null,null,null,null,null,null,"X"]
[31926,null,"RU","Rubi - All Other",null,"RU31926",null,"4\" Blade",null,"31926 VIP Dry/Wet Blade",null,null,null,null,null,null,"Rubi",null,null,null,{"$f":"IF(Suggested=\"Yes\",'Price List'!AC244,'Price List'!AI244)","v":31.95},"EA",{"$f":"+Instructions!$B$3","v":"N"},null,{"$f":"+Instructions!$D$22","v":0},{"$f":"ROUND($AC244*(1-Y244)+0.004999,2)","v":31.95},null,"YES",31.95,{"$f":"+Y244","v":0},31.95,{"$f":"(AI244-AE244)/AI244","v":0},null,{"$f":"+C244","v":"RU"},{"$f":"SUM(AL244:AN244)+AG244","v":31.95},null,null,{"$f":"ROUND(AE244/(1-VLOOKUP(AH244,Group,2,FALSE)),2)","v":31.95},{"$f":"IF(VLOOKUP(AH244,Group,3,FALSE)=\"YES\",VLOOKUP(ROUND(ROUND(AL244,1)-AL244,2),Round,2,FALSE)+VLOOKUP(AH244,Group,4,FALSE),0)","v":0},{"$f":"IF(VLOOKUP(AH244,Group,5,FALSE)=\"\",0,ROUND(AL244-0.04999,1)-AL244+AO244)","v":0},{"$f":"IF(VLOOKUP(AH244,Group,5,FALSE)=\"\",\"\",VLOOKUP(AH244,Group,5,FALSE))","v":""},null,"X"]
[31929,null,"RU","Rubi - All Other",null,"RU31929",null,"7\" Blade",null,"31929 VIP Blade",null,null,null,null,null,null,"Rubi",null,"Stock",null,{"$f":"IF(Suggested=\"Yes\",'Price List'!AC245,'Price List'!AI245)","v":58.95},"EA",{"$f":"+Instructions!$B$3","v":"N"},null,{"$f":"+Instructions!$D$22","v":0},{"$f":"ROUND($AC245*(1-Y245)+0.004999,2)","v":58.95},null,"YES",58.95,0,58.95,{"$f":"(AI245-AE245)/AI245","v":0},null,{"$f":"+C245","v":"RU"},{"$f":"SUM(AL245:AN245)+AG245","v":58.95},null,null,{"$f":"ROUND(AE245/(1-VLOOKUP(AH245,Group,2,FALSE)),2)","v":58.95},{"$f":"IF(VLOOKUP(AH245,Group,3,FALSE)=\"YES\",VLOOKUP(ROUND(ROUND(AL245,1)-AL245,2),Round,2,FALSE)+VLOOKUP(AH245,Group,4,FALSE),0)","v":0},{"$f":"IF(VLOOKUP(AH245,Group,5,FALSE)=\"\",0,ROUND(AL245-0.04999,1)-AL245+AO245)","v":0},{"$f":"IF(VLOOKUP(AH245,Group,5,FALSE)=\"\",\"\",VLOOKUP(AH245,Group,5,FALSE))","v":""},null,"X"]
[31940,null,"RU","Rubi - All Other",null,"RU31940",null,"8\" Blade",null,"31940 VIP Blade",null,null,null,null,null,null,"Rubi",null,null,null,{"$f":"IF(Suggested=\"Yes\",'Price List'!AC246,'Price List'!AI246)","v":74.95},"EA",{"$f":"+Instructions!$B$3","v":"N"},null,{"$f":"+Instructions!$D$22","v":0},{"$f":"ROUND($AC246*(1-Y246)+0.004999,2)","v":74.95},null,"YES",74.95,0,74.95,{"$f":"(AI246-AE246)/AI246","v":0},null,{"$f":"+C246","v":"RU"},{"$f":"SUM(AL246:AN246)+AG246","v":74.95},null,null,{"$f":"ROUND(AE246/(1-VLOOKUP(AH246,Group,2,FALSE)),2)","v":74.95},{"$f":"IF(VLOOKUP(AH246,Group,3,FALSE)=\"YES\",VLOOKUP(ROUND(ROUND(AL246,1)-AL246,2),Round,2,FALSE)+VLOOKUP(AH246,Group,4,FALSE),0)","v":0},{"$f":"IF(VLOOKUP(AH246,Group,5,FALSE)=\"\",0,ROUND(AL246-0.04999,1)-AL246+AO246)","v":0},{"$f":"IF(VLOOKUP(AH246,Group,5,FALSE)=\"\",\"\",VLOOKUP(AH246,Group,5,FALSE))","v":""},null,"X"]
[31941,null,"RU","Rubi - All Other",null,"RU31941",null,"10\" Blade",null,"31941 VIP Blade",null,null,null,null,null,null,"Rubi",null,"Stock",null,{"$f":"IF(Suggested=\"Yes\",'Price List'!AC247,'Price List'!AI247)","v":78.95},"EA",{"$f":"+Instructions!$B$3","v":"N"},null,{"$f":"+Instructions!$D$22","v":0},{"$f":"ROUND($AC247*(1-Y247)+0.004999,2)","v":78.95},null,"YES",78.95,0,78.95,{"$f":"(AI247-AE247)/AI247","v":0},null,{"$f":"+C247","v":"RU"},{"$f":"SUM(AL247:AN247)+AG247","v":78.95},null,null,{"$f":"ROUND(AE247/(1-VLOOKUP(AH247,Group,2,FALSE)),2)","v":78.95},{"$f":"IF(VLOOKUP(AH247,Group,3,FALSE)=\"YES\",VLOOKUP(ROUND(ROUND(AL247,1)-AL247,2),Round,2,FALSE)+VLOOKUP(AH247,Group,4,FALSE),0)","v":0},{"$f":"IF(VLOOKUP(AH247,Group,5,FALSE)=\"\",0,ROUND(AL247-0.04999,1)-AL247+AO247)","v":0},{"$f":"IF(VLOOKUP(AH247,Group,5,FALSE)=\"\",\"\",VLOOKUP(AH247,Group,5,FALSE))","v":""},null,"X"]
[null,null,null,null,null,null,"- Thicker center to avoid vibrations and wobbling",null,null,null,null,null,null,null,null,null,null,null,null,null,null,null,null,null,null,null,null,null,null,null,null,null,null,null,null,null,null,null,null,null,null,null,"X"]
[null,null,null,null,null,null,"- Specifically designed to provide greater speed without sacrificing finish quality",null,null,null,null,null,null,null,null,null,null,null,null,null,null,null,null,null,null,null,null,null,null,null,null,null,null,null,null,null,null,null,null,null,null,null,"X"]
[null,null,null,null,null,null,"- for ceramic tile, porcelain tile, extra hard tiles and hard natural stones",null,null,null,null,null,null,null,null,null,null,null,null,null,null,null,null,null,null,null,null,null,null,null,null,null,null,null,null,null,null,null,null,null,null,null,"X"]
[null,null,null,null,null,null,null,null,null,null,null,null,null,null,null,null,null,null,null,null,null,null,null,null,null,null,null,null,null,null,null,null,null,null,null,null,null,null,null,null,null,null,"X"]
["DB45T3M",null,"RS","RTC - All Other",null,"RSBLDB45T3M",null,"4-1/2\" Blade",null,"DB45T3M T3 Mesh Dry/Wet Blade",null,null,null,null,null,null,"RTC",null,null,"new",{"$f":"IF(Suggested=\"Yes\",'Price List'!AC252,'Price List'!AI252)","v":22.95},"EA",{"$f":"+Instructions!$B$3","v":"N"},null,{"$f":"+Instructions!$D$22","v":0},{"$f":"ROUND($AC252*(1-Y252)+0.004999,2)","v":22.95},null,"new",22.95,0,22.95,{"$f":"(AI252-AE252)/AI252","v":0},null,{"$f":"+C252","v":"RS"},{"$f":"SUM(AL252:AN252)+AG252","v":22.95},null,null,{"$f":"ROUND(AE252/(1-VLOOKUP(AH252,Group,2,FALSE)),2)","v":22.95},{"$f":"IF(VLOOKUP(AH252,Group,3,FALSE)=\"YES\",VLOOKUP(ROUND(ROUND(AL252,1)-AL252,2),Round,2,FALSE)+VLOOKUP(AH252,Group,4,FALSE),0)","v":0},{"$f":"IF(VLOOKUP(AH252,Group,5,FALSE)=\"\",0,ROUND(AL252-0.04999,1)-AL252+AO252)","v":0},{"$f":"IF(VLOOKUP(AH252,Group,5,FALSE)=\"\",\"\",VLOOKUP(AH252,Group,5,FALSE))","v":""},null,"X"]
["DB7T3M",null,"RS","RTC - All Other",null,"RSBLDB7T3M",null,"7\" Blade",null,"DB7T3M T3 Mesh Blade",null,null,null,null,null,null,"RTC",null,null,"new",{"$f":"IF(Suggested=\"Yes\",'Price List'!AC253,'Price List'!AI253)","v":52.95},"EA",{"$f":"+Instructions!$B$3","v":"N"},null,{"$f":"+Instructions!$D$22","v":0},52.95,null,"new",52.95,0,52.95,0,null,{"$f":"+C253","v":"RS"},52.95,null,null,52.95,0,0,"",null,"X"]
["DB10T3M",null,"RS","RTC - All Other",null,"RSBLDB10T3M",null,"10\" Blade",null,"DB10T3M T3 Mesh Blade",null,null,null,null,null,null,"RTC",null,"Stock","new",{"$f":"IF(Suggested=\"Yes\",'Price List'!AC254,'Price List'!AI254)","v":95.95},"EA",{"$f":"+Instructions!$B$3","v":"N"},null,{"$f":"+Instructions!$D$22","v":0},95.95,null,"new",95.95,0,95.95,0,null,{"$f":"+C254","v":"RS"},95.95,null,null,95.95,0,0,"",null,"X"]
[null,null,null,null,null,null,"- Faster, Cleaner, Cooler - Supercore Technology - Reinforced core for added stability",null,null,null,null,null,null,null,null,null,null,null,null,null,null,null,null,null,null,null,null,null,null,null,null,null,null,null,null,null,null,null,null,null,null,null,"X"]
[null,null,null,null,null,null,"- Unique mesh design for faster cutting with less heat to reduce chipping",null,null,null,null,null,null,null,null,null,null,null,null,null,null,null,null,null,null,null,null,null,null,null,null,null,null,null,null,null,null,null,null,null,null,null,"X"]
[null,null,null,null,null,null,null,null,null,null,null,null,null,null,null,null,null,null,null,null,null,null,null,null,null,null,null,null,null,null,null,null,null,null,null,null,null,null,null,null,null,null,"X"]
[null,null,null,null,null,"Diamond Blades for cutting 2-cm Tiles",null,null,null,null,null,null,null,null,null,null,null,null,null,null,null,null,null,null,null,null,null,null,null,null,null,null,null,null,null,null,null,null,null,null,null,null,"X"]
[32962,null,"RU","Rubi - All Other",null,"RU32962",null,"10\" Blade",null,"32962 Thicker Segmented Blade",null,null,null,null,null,null,"Rubi",null,null,null,{"$f":"IF(Suggested=\"Yes\",'Price List'!AC259,'Price List'!AI259)","v":289},"EA",{"$f":"+Instructions!$B$3","v":"N"},null,{"$f":"+Instructions!$D$22","v":0},{"$f":"ROUND($AC259*(1-Y259)+0.004999,2)","v":289},null,"YES",289,{"$f":"+Y259","v":0},{"$f":"+Z259","v":289},{"$f":"(AI259-AE259)/AI259","v":0},null,{"$f":"+C259","v":"RU"},{"$f":"SUM(AL259:AN259)+AG259","v":289},null,null,{"$f":"ROUND(AE259/(1-VLOOKUP(AH259,Group,2,FALSE)),2)","v":289},{"$f":"IF(VLOOKUP(AH259,Group,3,FALSE)=\"YES\",VLOOKUP(ROUND(ROUND(AL259,1)-AL259,2),Round,2,FALSE)+VLOOKUP(AH259,Group,4,FALSE),0)","v":0},{"$f":"IF(VLOOKUP(AH259,Group,5,FALSE)=\"\",0,ROUND(AL259-0.04999,1)-AL259+AO259)","v":0},{"$f":"IF(VLOOKUP(AH259,Group,5,FALSE)=\"\",\"\",VLOOKUP(AH259,Group,5,FALSE))","v":""},null,"X"]
[null,null,null,null,null,null,null,null,null,null,null,null,null,null,null,null,null,null,null,null,null,null,null,null,null,null,null,null,null,null,null,null,null,null,null,null,null,null,null,null,null,null,"X"]
[null,null,null,null,null,"Q-Drive Blade with Cool Cut Technology for IQTS244 Dry Cut Tile Saw",null,null,null,null,null,null,null,null,null,null,null,null,null,null,null,null,null,null,null,null,null,null,null,null,null,null,null,null,null,null,null,null,null,null,null,null,"X"]
["BLADE07",null,"IQ","IQ Tools - All Other",null,"IQBLADE07",null,"7\" Blade",null,"Q-Drive Blade for IQ228Cyclone Saw",null,null,null,null,null,null,"IQ Tools",null,null,null,{"$f":"IF(Suggested=\"Yes\",'Price List'!AC262,'Price List'!AI262)","v":68},"EA",{"$f":"+Instructions!$B$3","v":"N"},null,{"$f":"+Instructions!$D$22","v":0},{"$f":"ROUND($AC262*(1-Y262)+0.004999,2)","v":68},null,"YES",68,{"$f":"+Y262","v":0},{"$f":"+Z262","v":68},{"$f":"(AI262-AE262)/AI262","v":0},null,{"$f":"+C262","v":"IQ"},{"$f":"SUM(AL262:AN262)+AG262","v":68},null,null,{"$f":"ROUND(AE262/(1-VLOOKUP(AH262,Group,2,FALSE)),2)","v":68},{"$f":"IF(VLOOKUP(AH262,Group,3,FALSE)=\"YES\",VLOOKUP(ROUND(ROUND(AL262,1)-AL262,2),Round,2,FALSE)+VLOOKUP(AH262,Group,4,FALSE),0)","v":0},{"$f":"IF(VLOOKUP(AH262,Group,5,FALSE)=\"\",0,ROUND(AL262-0.04999,1)-AL262+AO262)","v":0},{"$f":"IF(VLOOKUP(AH262,Group,5,FALSE)=\"\",\"\",VLOOKUP(AH262,Group,5,FALSE))","v":""},null,"X"]
["BLADE10",null,"IQ","IQ Tools - All Other",null,"IQBLADE10",null,"10\" Blade",null,"Q-Drive Blade for IQTS244 Saw",null,null,null,null,null,null,"IQ Tools",null,"Stock",null,{"$f":"IF(Suggested=\"Yes\",'Price List'!AC263,'Price List'!AI263)","v":109},"EA",{"$f":"+Instructions!$B$3","v":"N"},null,{"$f":"+Instructions!$D$22","v":0},{"$f":"ROUND($AC263*(1-Y263)+0.004999,2)","v":109},null,"YES",109,{"$f":"+Y263","v":0},{"$f":"+Z263","v":109},{"$f":"(AI263-AE263)/AI263","v":0},null,{"$f":"+C263","v":"IQ"},{"$f":"SUM(AL263:AN263)+AG263","v":109},null,null,{"$f":"ROUND(AE263/(1-VLOOKUP(AH263,Group,2,FALSE)),2)","v":109},{"$f":"IF(VLOOKUP(AH263,Group,3,FALSE)=\"YES\",VLOOKUP(ROUND(ROUND(AL263,1)-AL263,2),Round,2,FALSE)+VLOOKUP(AH263,Group,4,FALSE),0)","v":0},{"$f":"IF(VLOOKUP(AH263,Group,5,FALSE)=\"\",0,ROUND(AL263-0.04999,1)-AL263+AO263)","v":0},{"$f":"IF(VLOOKUP(AH263,Group,5,FALSE)=\"\",\"\",VLOOKUP(AH263,Group,5,FALSE))","v":""},null,"X"]
[null,null,null,null,null,null,null,null,null,null,null,null,null,null,null,null,null,null,null,null,null,null,null,null,null,null,null,null,null,null,null,null,null,null,null,null,null,null,null,null,null,null,"X"]
["BLADE07HARD",null,"IQ","IQ Tools - All Other",null,"IQBLADE07HARD",null,"7\" Blade",null,"Q-Drive Blade for 2-cm Thick",null,null,null,null,null,null,"IQ Tools",null,null,null,{"$f":"IF(Suggested=\"Yes\",'Price List'!AC265,'Price List'!AI265)","v":68},"EA",{"$f":"+Instructions!$B$3","v":"N"},null,{"$f":"+Instructions!$D$22","v":0},{"$f":"ROUND($AC265*(1-Y265)+0.004999,2)","v":68},null,"YES",68,{"$f":"+Y265","v":0},{"$f":"+Z265","v":68},{"$f":"(AI265-AE265)/AI265","v":0},null,{"$f":"+C265","v":"IQ"},{"$f":"SUM(AL265:AN265)+AG265","v":68},null,null,{"$f":"ROUND(AE265/(1-VLOOKUP(AH265,Group,2,FALSE)),2)","v":68},{"$f":"IF(VLOOKUP(AH265,Group,3,FALSE)=\"YES\",VLOOKUP(ROUND(ROUND(AL265,1)-AL265,2),Round,2,FALSE)+VLOOKUP(AH265,Group,4,FALSE),0)","v":0},{"$f":"IF(VLOOKUP(AH265,Group,5,FALSE)=\"\",0,ROUND(AL265-0.04999,1)-AL265+AO265)","v":0},{"$f":"IF(VLOOKUP(AH265,Group,5,FALSE)=\"\",\"\",VLOOKUP(AH265,Group,5,FALSE))","v":""},null,"X"]
["BLADE10HARD",null,"IQ","IQ Tools - All Other",null,"IQBLADE10HARD",null,"10\" Blade",null,"Q-Drive Blade for 2-cm Thick",null,null,null,null,null,null,"IQ Tools",null,"Stock",null,{"$f":"IF(Suggested=\"Yes\",'Price List'!AC266,'Price List'!AI266)","v":109},"EA",{"$f":"+Instructions!$B$3","v":"N"},null,{"$f":"+Instructions!$D$22","v":0},109,null,"YES",109,0,109,0,null,{"$f":"+C266","v":"IQ"},109,null,null,{"$f":"ROUND(AE266/(1-VLOOKUP(AH266,Group,2,FALSE)),2)","v":109},{"$f":"IF(VLOOKUP(AH266,Group,3,FALSE)=\"YES\",VLOOKUP(ROUND(ROUND(AL266,1)-AL266,2),Round,2,FALSE)+VLOOKUP(AH266,Group,4,FALSE),0)","v":0},{"$f":"IF(VLOOKUP(AH266,Group,5,FALSE)=\"\",0,ROUND(AL266-0.04999,1)-AL266+AO266)","v":0},{"$f":"IF(VLOOKUP(AH266,Group,5,FALSE)=\"\",\"\",VLOOKUP(AH266,Group,5,FALSE))","v":""},null,"X"]
[null,null,null,null,null,null,null,null,null,null,null,null,null,null,null,null,null,null,null,null,null,null,null,null,null,null,null,null,null,null,null,null,null,null,null,null,null,null,null,null,null,null,"X"]
[null,null,null,null,null,"Glass Diamond Blade",null,null,null,null,null,null,null,null,null,null,null,null,null,null,null,null,null,null,null,null,null,null,null,null,null,null,null,null,null,null,null,null,null,null,null,null,"X"]
[31920,null,"RU","Rubi - All Other",null,"RU31920",null,"7\" Blade",null,"31920 Glass Blade",null,null,null,null,null,null,"Rubi",null,null,null,{"$f":"IF(Suggested=\"Yes\",'Price List'!AC269,'Price List'!AI269)","v":53},"EA",{"$f":"+Instructions!$B$3","v":"N"},null,{"$f":"+Instructions!$D$22","v":0},{"$f":"ROUND($AC269*(1-Y269)+0.004999,2)","v":53},null,"YES",53,{"$f":"+Y269","v":0},{"$f":"+Z269","v":53},{"$f":"(AI269-AE269)/AI269","v":0},null,{"$f":"+C269","v":"RU"},{"$f":"SUM(AL269:AN269)+AG269","v":53},null,null,{"$f":"ROUND(AE269/(1-VLOOKUP(AH269,Group,2,FALSE)),2)","v":53},{"$f":"IF(VLOOKUP(AH269,Group,3,FALSE)=\"YES\",VLOOKUP(ROUND(ROUND(AL269,1)-AL269,2),Round,2,FALSE)+VLOOKUP(AH269,Group,4,FALSE),0)","v":0},{"$f":"IF(VLOOKUP(AH269,Group,5,FALSE)=\"\",0,ROUND(AL269-0.04999,1)-AL269+AO269)","v":0},{"$f":"IF(VLOOKUP(AH269,Group,5,FALSE)=\"\",\"\",VLOOKUP(AH269,Group,5,FALSE))","v":""},null,"X"]
[31919,null,"RU","Rubi - All Other",null,"RU31919",null,"10\" Blade",null,"31919 Glass Blade",null,null,null,null,null,null,"Rubi",null,"Stock",null,{"$f":"IF(Suggested=\"Yes\",'Price List'!AC270,'Price List'!AI270)","v":92},"EA",{"$f":"+Instructions!$B$3","v":"N"},null,{"$f":"+Instructions!$D$22","v":0},{"$f":"ROUND($AC270*(1-Y270)+0.004999,2)","v":92},null,"YES",92,{"$f":"+Y270","v":0},{"$f":"+Z270","v":92},{"$f":"(AI270-AE270)/AI270","v":0},null,{"$f":"+C270","v":"RU"},{"$f":"SUM(AL270:AN270)+AG270","v":92},null,null,{"$f":"ROUND(AE270/(1-VLOOKUP(AH270,Group,2,FALSE)),2)","v":92},{"$f":"IF(VLOOKUP(AH270,Group,3,FALSE)=\"YES\",VLOOKUP(ROUND(ROUND(AL270,1)-AL270,2),Round,2,FALSE)+VLOOKUP(AH270,Group,4,FALSE),0)","v":0},{"$f":"IF(VLOOKUP(AH270,Group,5,FALSE)=\"\",0,ROUND(AL270-0.04999,1)-AL270+AO270)","v":0},{"$f":"IF(VLOOKUP(AH270,Group,5,FALSE)=\"\",\"\",VLOOKUP(AH270,Group,5,FALSE))","v":""},null,"X"]
[null,null,null,null,null,null,"- Specialized wheel for cutting glass tiles to reduce chipping of glass edge",null,null,null,null,null,null,null,null,null,null,null,null,null,null,null,null,null,null,null,null,null,null,null,null,null,null,null,null,null,null,null,null,null,null,null,"X"]
[null,null,null,null,null,null,"- for glass tile, ceramic tile, porcelain tile and soft natural stones",null,null,null,null,null,null,null,null,null,null,null,null,null,null,null,null,null,null,null,null,null,null,null,null,null,null,null,null,null,null,null,null,null,null,null,"X"]
[null,null,null,null,null,null,null,null,null,null,null,null,null,null,null,null,null,null,null,null,null,null,null,null,null,null,null,null,null,null,null,null,null,null,null,null,null,null,null,null,null,null,"X"]
[null,null,null,null,null,"Rub Stones / Dressing Sticks",null,null,null,null,null,null,null,null,null,null,null,null,null,null,null,null,null,null,null,null,null,null,null,null,null,null,null,null,null,null,null,null,null,null,null,null,"X"]
["IQPDS00100",null,"IQ","IQ Tools - All Other",null,"IQIQPDS00100",null,null,"iQPDS00100 8\" Professional Dressing Stone",null,null,null,null,null,null,null,"IQ Tools",null,"Stock",null,{"$f":"IF(Suggested=\"Yes\",'Price List'!AC275,'Price List'!AI275)","v":16},"EA",{"$f":"+Instructions!$B$3","v":"N"},null,{"$f":"+Instructions!$D$22","v":0},{"$f":"ROUND($AC275*(1-Y275)+0.004999,2)","v":16},null,"YES",16,{"$f":"+Y275","v":0},{"$f":"+Z275","v":16},{"$f":"(AI275-AE275)/AI275","v":0},null,{"$f":"+C275","v":"IQ"},{"$f":"SUM(AL275:AN275)+AG275","v":16},null,null,{"$f":"ROUND(AE275/(1-VLOOKUP(AH275,Group,2,FALSE)),2)","v":16},{"$f":"IF(VLOOKUP(AH275,Group,3,FALSE)=\"YES\",VLOOKUP(ROUND(ROUND(AL275,1)-AL275,2),Round,2,FALSE)+VLOOKUP(AH275,Group,4,FALSE),0)","v":0},{"$f":"IF(VLOOKUP(AH275,Group,5,FALSE)=\"\",0,ROUND(AL275-0.04999,1)-AL275+AO275)","v":0},{"$f":"IF(VLOOKUP(AH275,Group,5,FALSE)=\"\",\"\",VLOOKUP(AH275,Group,5,FALSE))","v":""},null,"X"]
[null,null,null,null,null,null,null,null,null,null,null,null,null,null,null,null,null,null,null,null,null,null,null,null,null,null,null,null,null,null,null,null,null,null,null,null,null,null,null,null,null,null,"X"]
[null,null,null,null,"Tile Cutters"]
[null,null,null,null,null,null,null,null,null,null,null,null,null,null,null,null,null,null,null,null,null,null,null,null,null,null,null,null,null,null,null,null,null,null,null,null,null,null,null,null,null,null,"X"]
[null,null,null,null,null,"Sigma Technica Pull Tile Cutter"]
["2G",null,"RS1","RTC - Saws/Cutters",null,"RSTC2G",null,"2G - Sigma 14\" Pull Handle Tile Cutter",null,null,null,null,"- 14\" Straight - 10\" Diagonal",null,null,null,"Sigma",null,"Stock","new",{"$f":"IF(Suggested=\"Yes\",'Price List'!AC280,'Price List'!AI280)","v":245},"EA",{"$f":"+Instructions!$B$3","v":"N"},null,{"$f":"+Instructions!$D$22","v":0},{"$f":"ROUND($AC280*(1-Y280)+0.004999,2)","v":245},null,"YES",245,{"$f":"+Y280","v":0},{"$f":"+Z280","v":245},{"$f":"(AI280-AE280)/AI280","v":0},null,{"$f":"+C280","v":"RS1"},{"$f":"SUM(AL280:AN280)+AG280","v":245},null,null,{"$f":"ROUND(AE280/(1-VLOOKUP(AH280,Group,2,FALSE)),2)","v":245},{"$f":"IF(VLOOKUP(AH280,Group,3,FALSE)=\"YES\",VLOOKUP(ROUND(ROUND(AL280,1)-AL280,2),Round,2,FALSE)+VLOOKUP(AH280,Group,4,FALSE),0)","v":0},{"$f":"IF(VLOOKUP(AH280,Group,5,FALSE)=\"\",0,ROUND(AL280-0.04999,1)-AL280+AO280)","v":0},{"$f":"IF(VLOOKUP(AH280,Group,5,FALSE)=\"\",\"\",VLOOKUP(AH280,Group,5,FALSE))","v":""},null,"X"]
["14A",null,"RS","RTC - All Other",null,"RSTC14A",null,null,"14A (12mm) Tile Cutter Wheel for Sigma Technica Pull ",null,null,null,null,null,null,null,"Sigma",null,"Stock","new",{"$f":"IF(Suggested=\"Yes\",'Price List'!AC281,'Price List'!AI281)","v":27.85},"EA",{"$f":"+Instructions!$B$3","v":"N"},null,{"$f":"+Instructions!$D$22","v":0},{"$f":"ROUND($AC281*(1-Y281)+0.004999,2)","v":27.85},null,"YES",27.85,{"$f":"+Y281","v":0},{"$f":"+Z281","v":27.85},{"$f":"(AI281-AE281)/AI281","v":0},null,{"$f":"+C281","v":"RS"},{"$f":"SUM(AL281:AN281)+AG281","v":27.85},null,null,{"$f":"ROUND(AE281/(1-VLOOKUP(AH281,Group,2,FALSE)),2)","v":27.85},{"$f":"IF(VLOOKUP(AH281,Group,3,FALSE)=\"YES\",VLOOKUP(ROUND(ROUND(AL281,1)-AL281,2),Round,2,FALSE)+VLOOKUP(AH281,Group,4,FALSE),0)","v":0},{"$f":"IF(VLOOKUP(AH281,Group,5,FALSE)=\"\",0,ROUND(AL281-0.04999,1)-AL281+AO281)","v":0},{"$f":"IF(VLOOKUP(AH281,Group,5,FALSE)=\"\",\"\",VLOOKUP(AH281,Group,5,FALSE))","v":""},null,"X"]
[null,null,null,null,null,null,null,null,null,null,null,null,null,null,null,null,null,null,null,null,null,null,null,null,null,null,null,null,null,null,null,null,null,null,null,null,null,null,null,null,null,null,"X"]
[null,null,null,null,null,"Sigma Series 4 \"UP\" Pulling Incision Tile Cutter"]
["4BU",null,"RS1","RTC - Saws/Cutters",null,"RSTC4BU",null,"4BU - Sigma 27.5\" Pull Handle Tile Cutter",null,null,null,null,"- 27.5\" Straight - 19.5\" Diagonal",null,null,null,"Sigma",null,"Stock","new",{"$f":"IF(Suggested=\"Yes\",'Price List'!AC284,'Price List'!AI284)","v":549},"EA",{"$f":"+Instructions!$B$3","v":"N"},null,{"$f":"+Instructions!$D$22","v":0},{"$f":"ROUND($AC284*(1-Y284)+0.004999,2)","v":549},null,"new",549,{"$f":"+Y284","v":0},{"$f":"+Z284","v":549},{"$f":"(AI284-AE284)/AI284","v":0},null,{"$f":"+C284","v":"RS1"},{"$f":"SUM(AL284:AN284)+AG284","v":549},null,null,{"$f":"ROUND(AE284/(1-VLOOKUP(AH284,Group,2,FALSE)),2)","v":549},{"$f":"IF(VLOOKUP(AH284,Group,3,FALSE)=\"YES\",VLOOKUP(ROUND(ROUND(AL284,1)-AL284,2),Round,2,FALSE)+VLOOKUP(AH284,Group,4,FALSE),0)","v":0},{"$f":"IF(VLOOKUP(AH284,Group,5,FALSE)=\"\",0,ROUND(AL284-0.04999,1)-AL284+AO284)","v":0},{"$f":"IF(VLOOKUP(AH284,Group,5,FALSE)=\"\",\"\",VLOOKUP(AH284,Group,5,FALSE))","v":""},null,"X"]
["4CU",null,"RS1","RTC - Saws/Cutters",null,"RSTC4CU",null,"4CU - Sigma 33\" Pull Handle Tile Cutter",null,null,null,null,"- 33\" Straight - 23.4\" Diagonal",null,null,null,"Sigma",null,null,"new",{"$f":"IF(Suggested=\"Yes\",'Price List'!AC285,'Price List'!AI285)","v":679},"EA",{"$f":"+Instructions!$B$3","v":"N"},null,{"$f":"+Instructions!$D$22","v":0},{"$f":"ROUND($AC285*(1-Y285)+0.004999,2)","v":679},null,"new",679,{"$f":"+Y285","v":0},{"$f":"+Z285","v":679},{"$f":"(AI285-AE285)/AI285","v":0},null,{"$f":"+C285","v":"RS1"},{"$f":"SUM(AL285:AN285)+AG285","v":679},null,null,{"$f":"ROUND(AE285/(1-VLOOKUP(AH285,Group,2,FALSE)),2)","v":679},{"$f":"IF(VLOOKUP(AH285,Group,3,FALSE)=\"YES\",VLOOKUP(ROUND(ROUND(AL285,1)-AL285,2),Round,2,FALSE)+VLOOKUP(AH285,Group,4,FALSE),0)","v":0},{"$f":"IF(VLOOKUP(AH285,Group,5,FALSE)=\"\",0,ROUND(AL285-0.04999,1)-AL285+AO285)","v":0},{"$f":"IF(VLOOKUP(AH285,Group,5,FALSE)=\"\",\"\",VLOOKUP(AH285,Group,5,FALSE))","v":""},null,"X"]
["4DU",null,"RS1","RTC - Saws/Cutters",null,"RSTC4DU",null,"4DU - Sigma 40.5\" Pull Handle Tile Cutter",null,null,null,null,"- 40.5\" Straight - 28.6\" Diagonal",null,null,null,"Sigma",null,null,"new",{"$f":"IF(Suggested=\"Yes\",'Price List'!AC286,'Price List'!AI286)","v":829},"EA",{"$f":"+Instructions!$B$3","v":"N"},null,{"$f":"+Instructions!$D$22","v":0},829,null,"new",829,0,829,0,null,{"$f":"+C286","v":"RS1"},829,null,null,{"$f":"ROUND(AE286/(1-VLOOKUP(AH286,Group,2,FALSE)),2)","v":829},{"$f":"IF(VLOOKUP(AH286,Group,3,FALSE)=\"YES\",VLOOKUP(ROUND(ROUND(AL286,1)-AL286,2),Round,2,FALSE)+VLOOKUP(AH286,Group,4,FALSE),0)","v":0},{"$f":"IF(VLOOKUP(AH286,Group,5,FALSE)=\"\",0,ROUND(AL286-0.04999,1)-AL286+AO286)","v":0},{"$f":"IF(VLOOKUP(AH286,Group,5,FALSE)=\"\",\"\",VLOOKUP(AH286,Group,5,FALSE))","v":""},null,"X"]
["14U",null,"RS","RTC - All Other",null,"RSTC14U",null,null,"14U Sigma Scoring Wheel for 24U Pull Handle",null,null,null,null,null,null,null,"Sigma",null,"Stock","new",{"$f":"IF(Suggested=\"Yes\",'Price List'!AC287,'Price List'!AI287)","v":26.75},"EA",{"$f":"+Instructions!$B$3","v":"N"},null,{"$f":"+Instructions!$D$22","v":0},{"$f":"ROUND($AC287*(1-Y287)+0.004999,2)","v":26.75},null,"new",26.75,0,26.75,0,null,{"$f":"+C287","v":"RS"},26.75,null,null,{"$f":"ROUND(AE287/(1-VLOOKUP(AH287,Group,2,FALSE)),2)","v":26.75},{"$f":"IF(VLOOKUP(AH287,Group,3,FALSE)=\"YES\",VLOOKUP(ROUND(ROUND(AL287,1)-AL287,2),Round,2,FALSE)+VLOOKUP(AH287,Group,4,FALSE),0)","v":0},{"$f":"IF(VLOOKUP(AH287,Group,5,FALSE)=\"\",0,ROUND(AL287-0.04999,1)-AL287+AO287)","v":0},{"$f":"IF(VLOOKUP(AH287,Group,5,FALSE)=\"\",\"\",VLOOKUP(AH287,Group,5,FALSE))","v":""},null,"X"]
["14UT",null,"RS","RTC - All Other",null,"RSTC14UT",null,null,"14UT Sigma Titanium Scoring Wheel for 24U Pull Handle",null,null,null,null,null,null,null,"Sigma",null,null,"new",{"$f":"IF(Suggested=\"Yes\",'Price List'!AC288,'Price List'!AI288)","v":0},"EA",{"$f":"+Instructions!$B$3","v":"N"},null,{"$f":"+Instructions!$D$22","v":0},{"$f":"ROUND($AC288*(1-Y288)+0.004999,2)","v":0},null,"new",0,{"$f":"+Y288","v":0},{"$f":"+Z288","v":0},{"$f":"(AI288-AE288)/AI288","v":{"$error":"#DIV/0!"}},null,{"$f":"+C288","v":"RS"},{"$f":"SUM(AL288:AN288)+AG288","v":0},null,null,{"$f":"ROUND(AE288/(1-VLOOKUP(AH288,Group,2,FALSE)),2)","v":0},{"$f":"IF(VLOOKUP(AH288,Group,3,FALSE)=\"YES\",VLOOKUP(ROUND(ROUND(AL288,1)-AL288,2),Round,2,FALSE)+VLOOKUP(AH288,Group,4,FALSE),0)","v":0},{"$f":"IF(VLOOKUP(AH288,Group,5,FALSE)=\"\",0,ROUND(AL288-0.04999,1)-AL288+AO288)","v":0},{"$f":"IF(VLOOKUP(AH288,Group,5,FALSE)=\"\",\"\",VLOOKUP(AH288,Group,5,FALSE))","v":""},null,"X"]
[null,null,null,null,null,null,null,null,null,null,null,null,null,null,null,null,null,null,null,null,null,null,null,null,null,null,null,null,null,null,null,null,null,null,null,null,null,null,null,null,null,null,"X"]
[null,null,null,null,null,"Sigma Series 4 NEX Push Tile Cutter"]
["4BN",null,"RS1","RTC - Saws/Cutters",null,"RSTC4BN",null,"4BN - Sigma 24\" Push Handle Tile Cutter",null,null,null,null,"- 24\" Straight - 17\" Diagonal",null,null,null,"Sigma",null,null,"new",{"$f":"IF(Suggested=\"Yes\",'Price List'!AC291,'Price List'!AI291)","v":639},"EA",{"$f":"+Instructions!$B$3","v":"N"},null,{"$f":"+Instructions!$D$22","v":0},{"$f":"ROUND($AC291*(1-Y291)+0.004999,2)","v":639},null,"new",639,{"$f":"+Y291","v":0},639,{"$f":"(AI291-AE291)/AI291","v":0},null,{"$f":"+C291","v":"RS1"},{"$f":"SUM(AL291:AN291)+AG291","v":639},null,null,{"$f":"ROUND(AE291/(1-VLOOKUP(AH291,Group,2,FALSE)),2)","v":639},{"$f":"IF(VLOOKUP(AH291,Group,3,FALSE)=\"YES\",VLOOKUP(ROUND(ROUND(AL291,1)-AL291,2),Round,2,FALSE)+VLOOKUP(AH291,Group,4,FALSE),0)","v":0},{"$f":"IF(VLOOKUP(AH291,Group,5,FALSE)=\"\",0,ROUND(AL291-0.04999,1)-AL291+AO291)","v":0},{"$f":"IF(VLOOKUP(AH291,Group,5,FALSE)=\"\",\"\",VLOOKUP(AH291,Group,5,FALSE))","v":""},null,"X"]
["4CN",null,"RS1","RTC - Saws/Cutters",null,"RSTC4CN",null,"4CN - Sigma 29\" Push Handle Tile Cutter",null,null,null,null,"- 29\" Straight - 21\" Diagonal",null,null,null,"Sigma",null,null,"new",{"$f":"IF(Suggested=\"Yes\",'Price List'!AC292,'Price List'!AI292)","v":725},"EA",{"$f":"+Instructions!$B$3","v":"N"},null,{"$f":"+Instructions!$D$22","v":0},725,null,"new",725,0,725,{"$f":"(AI292-AE292)/AI292","v":0},null,"RS1",{"$f":"SUM(AL292:AN292)+AG292","v":725},null,null,{"$f":"ROUND(AE292/(1-VLOOKUP(AH292,Group,2,FALSE)),2)","v":725},{"$f":"IF(VLOOKUP(AH292,Group,3,FALSE)=\"YES\",VLOOKUP(ROUND(ROUND(AL292,1)-AL292,2),Round,2,FALSE)+VLOOKUP(AH292,Group,4,FALSE),0)","v":0},{"$f":"IF(VLOOKUP(AH292,Group,5,FALSE)=\"\",0,ROUND(AL292-0.04999,1)-AL292+AO292)","v":0},{"$f":"IF(VLOOKUP(AH292,Group,5,FALSE)=\"\",\"\",VLOOKUP(AH292,Group,5,FALSE))","v":""},null,"X"]
["4DN",null,"RS1","RTC - Saws/Cutters",null,"RSTC4DN",null,"4DN - Sigma 37\" Push Handle Tile Cutter",null,null,null,null,"- 37\" Straight - 26\" Diagonal",null,null,null,"Sigma",null,null,"new",{"$f":"IF(Suggested=\"Yes\",'Price List'!AC293,'Price List'!AI293)","v":885},"EA",{"$f":"+Instructions!$B$3","v":"N"},null,{"$f":"+Instructions!$D$22","v":0},885,null,"new",885,0,885,{"$f":"(AI293-AE293)/AI293","v":0},null,"RS1",{"$f":"SUM(AL293:AN293)+AG293","v":885},null,null,{"$f":"ROUND(AE293/(1-VLOOKUP(AH293,Group,2,FALSE)),2)","v":885},{"$f":"IF(VLOOKUP(AH293,Group,3,FALSE)=\"YES\",VLOOKUP(ROUND(ROUND(AL293,1)-AL293,2),Round,2,FALSE)+VLOOKUP(AH293,Group,4,FALSE),0)","v":0},{"$f":"IF(VLOOKUP(AH293,Group,5,FALSE)=\"\",0,ROUND(AL293-0.04999,1)-AL293+AO293)","v":0},{"$f":"IF(VLOOKUP(AH293,Group,5,FALSE)=\"\",\"\",VLOOKUP(AH293,Group,5,FALSE))","v":""},null,"X"]
["4EN",null,"RS1","RTC - Saws/Cutters",null,"RSTC4EN",null,"4EN - Sigma 49\" Push Handle Tile Cutter",null,null,null,null,"- 49\" Straight - 34\" Diagonal",null,null,null,"Sigma",null,"Stock","new",{"$f":"IF(Suggested=\"Yes\",'Price List'!AC294,'Price List'!AI294)","v":1145},"EA",{"$f":"+Instructions!$B$3","v":"N"},null,{"$f":"+Instructions!$D$22","v":0},1145,null,"new",1145,0,1145,{"$f":"(AI294-AE294)/AI294","v":0},null,"RS1",{"$f":"SUM(AL294:AN294)+AG294","v":1145},null,null,{"$f":"ROUND(AE294/(1-VLOOKUP(AH294,Group,2,FALSE)),2)","v":1145},{"$f":"IF(VLOOKUP(AH294,Group,3,FALSE)=\"YES\",VLOOKUP(ROUND(ROUND(AL294,1)-AL294,2),Round,2,FALSE)+VLOOKUP(AH294,Group,4,FALSE),0)","v":0},{"$f":"IF(VLOOKUP(AH294,Group,5,FALSE)=\"\",0,ROUND(AL294-0.04999,1)-AL294+AO294)","v":0},{"$f":"IF(VLOOKUP(AH294,Group,5,FALSE)=\"\",\"\",VLOOKUP(AH294,Group,5,FALSE))","v":""},null,"X"]
["4FN",null,"RS1","RTC - Saws/Cutters",null,"RSTC4FN",null,"4FN - Sigma 61\" Push Handle Tile Cutter",null,null,null,null,"- 61\" Straight - 43\" Diagonal",null,null,null,"Sigma",null,null,"new",{"$f":"IF(Suggested=\"Yes\",'Price List'!AC295,'Price List'!AI295)","v":1585},"EA",{"$f":"+Instructions!$B$3","v":"N"},null,{"$f":"+Instructions!$D$22","v":0},1585,null,"new",1585,0,1585,{"$f":"(AI295-AE295)/AI295","v":0},null,"RS1",{"$f":"SUM(AL295:AN295)+AG295","v":1585},null,null,{"$f":"ROUND(AE295/(1-VLOOKUP(AH295,Group,2,FALSE)),2)","v":1585},{"$f":"IF(VLOOKUP(AH295,Group,3,FALSE)=\"YES\",VLOOKUP(ROUND(ROUND(AL295,1)-AL295,2),Round,2,FALSE)+VLOOKUP(AH295,Group,4,FALSE),0)","v":0},{"$f":"IF(VLOOKUP(AH295,Group,5,FALSE)=\"\",0,ROUND(AL295-0.04999,1)-AL295+AO295)","v":0},{"$f":"IF(VLOOKUP(AH295,Group,5,FALSE)=\"\",\"\",VLOOKUP(AH295,Group,5,FALSE))","v":""},null,"X"]
["14N",null,"RS","RTC - All Other",null,"RSTC14N",null,null,"14N Sigma Scoring Wheel for 24N Push Handle",null,null,null,null,null,null,null,"Sigma",null,"Stock","new",{"$f":"IF(Suggested=\"Yes\",'Price List'!AC296,'Price List'!AI296)","v":28.9},"EA",{"$f":"+Instructions!$B$3","v":"N"},null,{"$f":"+Instructions!$D$22","v":0},28.9,null,"new",28.9,{"$f":"+Y296","v":0},{"$f":"+Z296","v":28.9},{"$f":"(AI296-AE296)/AI296","v":0},null,"RS",{"$f":"SUM(AL296:AN296)+AG296","v":28.9},null,null,{"$f":"ROUND(AE296/(1-VLOOKUP(AH296,Group,2,FALSE)),2)","v":28.9},{"$f":"IF(VLOOKUP(AH296,Group,3,FALSE)=\"YES\",VLOOKUP(ROUND(ROUND(AL296,1)-AL296,2),Round,2,FALSE)+VLOOKUP(AH296,Group,4,FALSE),0)","v":0},{"$f":"IF(VLOOKUP(AH296,Group,5,FALSE)=\"\",0,ROUND(AL296-0.04999,1)-AL296+AO296)","v":0},{"$f":"IF(VLOOKUP(AH296,Group,5,FALSE)=\"\",\"\",VLOOKUP(AH296,Group,5,FALSE))","v":""},null,"X"]
[null,null,null,null,null,null,null,null,null,null,null,null,null,null,null,null,null,null,null,null,null,null,null,null,null,null,null,null,null,null,null,null,null,null,null,null,null,null,null,null,null,null,"X"]
[null,null,null,null,null,"Rubi TX MAX"]
["TX0710",null,"RU1","Rubi - Saws/Cutters",null,"RUTX0710",null,"17910 - TX-710 MAX Rubi Tile Cutter",null,null,null,null,"- 28\" Straight - 20\" Diagonal",null,null,null,"Rubi",null,null,null,{"$f":"IF(Suggested=\"Yes\",'Price List'!AC299,'Price List'!AI299)","v":739},"EA",{"$f":"+Instructions!$B$3","v":"N"},null,{"$f":"+Instructions!$D$22","v":0},{"$f":"ROUND($AC299*(1-Y299)+0.004999,2)","v":739},null,"YES",739,{"$f":"+Y299","v":0},739,{"$f":"(AI299-AE299)/AI299","v":0},null,{"$f":"+C299","v":"RU1"},{"$f":"SUM(AL299:AN299)+AG299","v":739},null,null,{"$f":"ROUND(AE299/(1-VLOOKUP(AH299,Group,2,FALSE)),2)","v":739},{"$f":"IF(VLOOKUP(AH299,Group,3,FALSE)=\"YES\",VLOOKUP(ROUND(ROUND(AL299,1)-AL299,2),Round,2,FALSE)+VLOOKUP(AH299,Group,4,FALSE),0)","v":0},{"$f":"IF(VLOOKUP(AH299,Group,5,FALSE)=\"\",0,ROUND(AL299-0.04999,1)-AL299+AO299)","v":0},{"$f":"IF(VLOOKUP(AH299,Group,5,FALSE)=\"\",\"\",VLOOKUP(AH299,Group,5,FALSE))","v":""},null,"X"]
["TX1020",null,"RU1","Rubi - Saws/Cutters",null,"RUTX1020",null,"17916 - TX-1020 MAX Rubi Tile Cutter",null,null,null,null,"- 40\" Straight - 28\" Diagonal",null,null,null,"Rubi",null,null,null,{"$f":"IF(Suggested=\"Yes\",'Price List'!AC300,'Price List'!AI300)","v":819},"EA",{"$f":"+Instructions!$B$3","v":"N"},null,{"$f":"+Instructions!$D$22","v":0},{"$f":"ROUND($AC300*(1-Y300)+0.004999,2)","v":819},null,"YES",819,0,819,{"$f":"(AI300-AE300)/AI300","v":0},null,{"$f":"+C300","v":"RU1"},{"$f":"SUM(AL300:AN300)+AG300","v":819},null,null,{"$f":"ROUND(AE300/(1-VLOOKUP(AH300,Group,2,FALSE)),2)","v":819},{"$f":"IF(VLOOKUP(AH300,Group,3,FALSE)=\"YES\",VLOOKUP(ROUND(ROUND(AL300,1)-AL300,2),Round,2,FALSE)+VLOOKUP(AH300,Group,4,FALSE),0)","v":0},{"$f":"IF(VLOOKUP(AH300,Group,5,FALSE)=\"\",0,ROUND(AL300-0.04999,1)-AL300+AO300)","v":0},{"$f":"IF(VLOOKUP(AH300,Group,5,FALSE)=\"\",\"\",VLOOKUP(AH300,Group,5,FALSE))","v":""},null,"X"]
["TX1250",null,"RU1","Rubi - Saws/Cutters",null,"RUTX1250",null,"17922 - TX-1250 MAX Rubi Tile Cutter",null,null,null,null,"- 49\" Straight - 33\" Diagonal",null,null,null,"Rubi",null,null,null,{"$f":"IF(Suggested=\"Yes\",'Price List'!AC301,'Price List'!AI301)","v":1345},"EA",{"$f":"+Instructions!$B$3","v":"N"},null,{"$f":"+Instructions!$D$22","v":0},{"$f":"ROUND($AC301*(1-Y301)+0.004999,2)","v":1345},null,"YES",1345,0,1345,{"$f":"(AI301-AE301)/AI301","v":0},null,{"$f":"+C301","v":"RU1"},{"$f":"SUM(AL301:AN301)+AG301","v":1345},null,null,{"$f":"ROUND(AE301/(1-VLOOKUP(AH301,Group,2,FALSE)),2)","v":1345},{"$f":"IF(VLOOKUP(AH301,Group,3,FALSE)=\"YES\",VLOOKUP(ROUND(ROUND(AL301,1)-AL301,2),Round,2,FALSE)+VLOOKUP(AH301,Group,4,FALSE),0)","v":0},{"$f":"IF(VLOOKUP(AH301,Group,5,FALSE)=\"\",0,ROUND(AL301-0.04999,1)-AL301+AO301)","v":0},{"$f":"IF(VLOOKUP(AH301,Group,5,FALSE)=\"\",\"\",VLOOKUP(AH301,Group,5,FALSE))","v":""},null,"X"]
[null,null,null,null,null,null,null,null,null,null,null,null,null,null,null,null,null,null,null,null,null,null,null,null,null,null,null,null,null,null,null,null,null,null,null,null,null,null,null,null,null,null,"X"]
[null,null,null,null,null,"Rubi TZ"]
["TZ0850",null,"RU1","Rubi - Saws/Cutters",null,"RUTZ0850",null,"17956 - TZ-850 Rubi Tile Cutter",null,null,null,null,"- 33\" Straight - 24\" Diagonal",null,null,null,"Rubi",null,null,null,{"$f":"IF(Suggested=\"Yes\",'Price List'!AC304,'Price List'!AI304)","v":925},"EA",{"$f":"+Instructions!$B$3","v":"N"},null,{"$f":"+Instructions!$D$22","v":0},{"$f":"ROUND($AC304*(1-Y304)+0.004999,2)","v":925},null,"YES",925,{"$f":"+Y304","v":0},925,{"$f":"(AI304-AE304)/AI304","v":0},null,{"$f":"+C304","v":"RU1"},{"$f":"SUM(AL304:AN304)+AG304","v":925},null,null,{"$f":"ROUND(AE304/(1-VLOOKUP(AH304,Group,2,FALSE)),2)","v":925},{"$f":"IF(VLOOKUP(AH304,Group,3,FALSE)=\"YES\",VLOOKUP(ROUND(ROUND(AL304,1)-AL304,2),Round,2,FALSE)+VLOOKUP(AH304,Group,4,FALSE),0)","v":0},{"$f":"IF(VLOOKUP(AH304,Group,5,FALSE)=\"\",0,ROUND(AL304-0.04999,1)-AL304+AO304)","v":0},{"$f":"IF(VLOOKUP(AH304,Group,5,FALSE)=\"\",\"\",VLOOKUP(AH304,Group,5,FALSE))","v":""},null,"X"]
["TZ1020",null,"RU1","Rubi - Saws/Cutters",null,"RUTZ1020",null,"17955 - TZ-1020 Rubi Tile Cutter",null,null,null,null,"- 40\" Straight - 28\" Diagonal",null,null,null,"Rubi",null,null,null,{"$f":"IF(Suggested=\"Yes\",'Price List'!AC305,'Price List'!AI305)","v":965},"EA",{"$f":"+Instructions!$B$3","v":"N"},null,{"$f":"+Instructions!$D$22","v":0},965,null,"YES",965,0,965,0,null,{"$f":"+C305","v":"RU1"},965,null,null,965,0,0,"",null,"X"]
["TZ1300",null,"RU1","Rubi - Saws/Cutters",null,"RUTZ1300",null,"17957 - TZ-1300 Rubi Tile Cutter",null,null,null,null,"- 51\" Straight - 36\" Diagonal",null,null,null,"Rubi",null,null,null,{"$f":"IF(Suggested=\"Yes\",'Price List'!AC306,'Price List'!AI306)","v":1335},"EA",{"$f":"+Instructions!$B$3","v":"N"},null,{"$f":"+Instructions!$D$22","v":0},1335,null,"YES",1335,0,1335,0,null,{"$f":"+C306","v":"RU1"},1335,null,null,1335,0,0,"",null,"X"]
["TZ1550",null,"RU1","Rubi - Saws/Cutters",null,"RUTZ1550",null,"17958 - TZ-1550 Rubi Tile Cutter",null,null,null,null,"- 61\" Straight - 44\" Diagonal",null,null,null,"Rubi",null,null,null,{"$f":"IF(Suggested=\"Yes\",'Price List'!AC307,'Price List'!AI307)","v":1495},"EA",{"$f":"+Instructions!$B$3","v":"N"},null,{"$f":"+Instructions!$D$22","v":0},1495,null,"YES",1495,0,1495,0,null,{"$f":"+C307","v":"RU1"},1495,null,null,1495,0,0,"",null,"X"]
["01900",null,"RU","Rubi - All Other",null,"RU01900",null,null,"01900 7/8\" (22mm) Extreme Tungsten Carbide Scoring Wheel",null,null,null,null,null,null,null,"Rubi",null,null,null,{"$f":"IF(Suggested=\"Yes\",'Price List'!AC308,'Price List'!AI308)","v":76.55},"EA",{"$f":"+Instructions!$B$3","v":"N"},null,{"$f":"+Instructions!$D$22","v":0},76.55,null,"YES",76.55,{"$f":"+Y308","v":0},76.55,{"$f":"(AI308-AE308)/AI308","v":0},null,{"$f":"+C308","v":"RU"},{"$f":"SUM(AL308:AN308)+AG308","v":76.55},null,null,{"$f":"ROUND(AE308/(1-VLOOKUP(AH308,Group,2,FALSE)),2)","v":76.55},{"$f":"IF(VLOOKUP(AH308,Group,3,FALSE)=\"YES\",VLOOKUP(ROUND(ROUND(AL308,1)-AL308,2),Round,2,FALSE)+VLOOKUP(AH308,Group,4,FALSE),0)","v":0},{"$f":"IF(VLOOKUP(AH308,Group,5,FALSE)=\"\",0,ROUND(AL308-0.04999,1)-AL308+AO308)","v":0},{"$f":"IF(VLOOKUP(AH308,Group,5,FALSE)=\"\",\"\",VLOOKUP(AH308,Group,5,FALSE))","v":""},null,"X"]
[null,null,null,null,null,null,null,null,null,null,null,null,null,null,null,null,null,null,null,null,null,null,null,null,null,null,null,null,null,null,null,null,null,null,null,null,null,null,null,null,null,null,"X"]
[null,null,null,null,"Marble Polishing Tools",null,null,null,null,null,null,null,null,null,null,null,null,null,null,null,null,null,null,null,null,null,null,null,null,null,null,null,null,null,null,null,null,null,null,null,null,null,"X"]
[null,null,null,null,null,null,null,null,null,null,null,null,null,null,null,null,null,null,null,null,null,null,null,null,null,null,null,null,null,null,null,null,null,null,null,null,null,null,null,null,null,null,"X"]
["GP4BACKA",null,"RS","RTC - All Other",null,"RSPOGP4BACKA",null,"GP4BACKA",null,"4\" Rigid Aluminum Backer Pad w/ Velcro",null,null,null,null,null,null,"RTC",null,null,"new",{"$f":"IF(Suggested=\"Yes\",'Price List'!AC312,'Price List'!AI312)","v":26.8},"EA",{"$f":"+Instructions!$B$3","v":"N"},null,{"$f":"+Instructions!$D$22","v":0},{"$f":"ROUND($AC312*(1-Y312)+0.004999,2)","v":26.8},null,"new",26.8,{"$f":"+Y312","v":0},{"$f":"+Z312","v":26.8},{"$f":"(AI312-AE312)/AI312","v":0},null,{"$f":"+C312","v":"RS"},{"$f":"SUM(AL312:AN312)+AG312","v":26.8},null,null,{"$f":"ROUND(AE312/(1-VLOOKUP(AH312,Group,2,FALSE)),2)","v":26.8},{"$f":"IF(VLOOKUP(AH312,Group,3,FALSE)=\"YES\",VLOOKUP(ROUND(ROUND(AL312,1)-AL312,2),Round,2,FALSE)+VLOOKUP(AH312,Group,4,FALSE),0)","v":0},{"$f":"IF(VLOOKUP(AH312,Group,5,FALSE)=\"\",0,ROUND(AL312-0.04999,1)-AL312+AO312)","v":0},{"$f":"IF(VLOOKUP(AH312,Group,5,FALSE)=\"\",\"\",VLOOKUP(AH312,Group,5,FALSE))","v":""},null,"X"]
["GP4BACKF",null,"RS","RTC - All Other",null,"RSPOGP4BACKF",null,"GP4BACKF",null,"4\" Flexible Backer Pad w/ Velcro",null,null,null,null,null,null,"RTC",null,"Stock","new",{"$f":"IF(Suggested=\"Yes\",'Price List'!AC313,'Price List'!AI313)","v":21.45},"EA",{"$f":"+Instructions!$B$3","v":"N"},null,{"$f":"+Instructions!$D$22","v":0},21.45,null,"new",21.45,0,21.45,0,null,{"$f":"+C313","v":"RS"},21.45,null,null,21.45,0,0,"",null,"X"]
["GP4BACKUF",null,"RS","RTC - All Other",null,"RSPOGP4BACKUF",null,"GP4BACKUF",null,"4\" Ultra Flexible Backer Pad w/ Velcro",null,null,null,null,null,null,"RTC",null,null,"new",{"$f":"IF(Suggested=\"Yes\",'Price List'!AC314,'Price List'!AI314)","v":21.45},"EA",{"$f":"+Instructions!$B$3","v":"N"},null,{"$f":"+Instructions!$D$22","v":0},21.45,null,"new",21.45,0,21.45,0,null,{"$f":"+C314","v":"RS"},21.45,null,null,21.45,0,0,"",null,"X"]
[null,null,null,null,null,null,null,null,null,null,null,null,null,null,null,null,null,null,null,null,null,null,null,null,null,null,null,null,null,null,null,null,null,null,null,null,null,null,null,null,null,null,"X"]
["GP4DRY50",null,"RS","RTC - All Other",null,"RSPOGP4DRY50",null,"GP4DRY50",null,"50 Grit",null,"Killer Bee Dry/Wet 4\" Dry Diamond Pad",null,null,null,null,"RTC",null,null,"new",{"$f":"IF(Suggested=\"Yes\",'Price List'!AC316,'Price List'!AI316)","v":13.9},"EA",{"$f":"+Instructions!$B$3","v":"N"},null,{"$f":"+Instructions!$D$22","v":0},{"$f":"ROUND($AC316*(1-Y316)+0.004999,2)","v":13.9},null,"new",13.9,{"$f":"+Y316","v":0},{"$f":"+Z316","v":13.9},{"$f":"(AI316-AE316)/AI316","v":0},null,{"$f":"+C316","v":"RS"},{"$f":"SUM(AL316:AN316)+AG316","v":13.9},null,null,{"$f":"ROUND(AE316/(1-VLOOKUP(AH316,Group,2,FALSE)),2)","v":13.9},{"$f":"IF(VLOOKUP(AH316,Group,3,FALSE)=\"YES\",VLOOKUP(ROUND(ROUND(AL316,1)-AL316,2),Round,2,FALSE)+VLOOKUP(AH316,Group,4,FALSE),0)","v":0},{"$f":"IF(VLOOKUP(AH316,Group,5,FALSE)=\"\",0,ROUND(AL316-0.04999,1)-AL316+AO316)","v":0},{"$f":"IF(VLOOKUP(AH316,Group,5,FALSE)=\"\",\"\",VLOOKUP(AH316,Group,5,FALSE))","v":""},null,"X"]
["GP4DRY100",null,"RS","RTC - All Other",null,"RSPOGP4DRY100",null,"GP4DRY100",null,"100 Grit",null,"Killer Bee Dry/Wet 4\" Dry Diamond Pad",null,null,null,null,"RTC",null,"Stock","new",{"$f":"IF(Suggested=\"Yes\",'Price List'!AC317,'Price List'!AI317)","v":13.9},"EA",{"$f":"+Instructions!$B$3","v":"N"},null,{"$f":"+Instructions!$D$22","v":0},{"$f":"ROUND($AC317*(1-Y317)+0.004999,2)","v":13.9},null,"new",13.9,{"$f":"+Y317","v":0},{"$f":"+Z317","v":13.9},{"$f":"(AI317-AE317)/AI317","v":0},null,"RS",{"$f":"SUM(AL317:AN317)+AG317","v":13.9},null,null,{"$f":"ROUND(AE317/(1-VLOOKUP(AH317,Group,2,FALSE)),2)","v":13.9},{"$f":"IF(VLOOKUP(AH317,Group,3,FALSE)=\"YES\",VLOOKUP(ROUND(ROUND(AL317,1)-AL317,2),Round,2,FALSE)+VLOOKUP(AH317,Group,4,FALSE),0)","v":0},{"$f":"IF(VLOOKUP(AH317,Group,5,FALSE)=\"\",0,ROUND(AL317-0.04999,1)-AL317+AO317)","v":0},{"$f":"IF(VLOOKUP(AH317,Group,5,FALSE)=\"\",\"\",VLOOKUP(AH317,Group,5,FALSE))","v":""},null,"X"]
["GP4DRY200",null,"RS","RTC - All Other",null,"RSPOGP4DRY200",null,"GP4DRY200",null,"200 Grit",null,"Killer Bee Dry/Wet 4\" Dry Diamond Pad",null,null,null,null,"RTC",null,"Stock","new",{"$f":"IF(Suggested=\"Yes\",'Price List'!AC318,'Price List'!AI318)","v":13.9},"EA",{"$f":"+Instructions!$B$3","v":"N"},null,{"$f":"+Instructions!$D$22","v":0},{"$f":"ROUND($AC318*(1-Y318)+0.004999,2)","v":13.9},null,"new",13.9,{"$f":"+Y318","v":0},13.9,{"$f":"(AI318-AE318)/AI318","v":0},null,"RS",{"$f":"SUM(AL318:AN318)+AG318","v":13.9},null,null,{"$f":"ROUND(AE318/(1-VLOOKUP(AH318,Group,2,FALSE)),2)","v":13.9},{"$f":"IF(VLOOKUP(AH318,Group,3,FALSE)=\"YES\",VLOOKUP(ROUND(ROUND(AL318,1)-AL318,2),Round,2,FALSE)+VLOOKUP(AH318,Group,4,FALSE),0)","v":0},{"$f":"IF(VLOOKUP(AH318,Group,5,FALSE)=\"\",0,ROUND(AL318-0.04999,1)-AL318+AO318)","v":0},{"$f":"IF(VLOOKUP(AH318,Group,5,FALSE)=\"\",\"\",VLOOKUP(AH318,Group,5,FALSE))","v":""},null,"X"]
["GP4DRY400",null,"RS","RTC - All Other",null,"RSPOGP4DRY400",null,"GP4DRY400",null,"400 Grit",null,"Killer Bee Dry/Wet 4\" Dry Diamond Pad",null,null,null,null,"RTC",null,"Stock","new",{"$f":"IF(Suggested=\"Yes\",'Price List'!AC319,'Price List'!AI319)","v":13.9},"EA",{"$f":"+Instructions!$B$3","v":"N"},null,{"$f":"+Instructions!$D$22","v":0},{"$f":"ROUND($AC319*(1-Y319)+0.004999,2)","v":13.9},null,"new",13.9,0,13.9,{"$f":"(AI319-AE319)/AI319","v":0},null,"RS",{"$f":"SUM(AL319:AN319)+AG319","v":13.9},null,null,{"$f":"ROUND(AE319/(1-VLOOKUP(AH319,Group,2,FALSE)),2)","v":13.9},{"$f":"IF(VLOOKUP(AH319,Group,3,FALSE)=\"YES\",VLOOKUP(ROUND(ROUND(AL319,1)-AL319,2),Round,2,FALSE)+VLOOKUP(AH319,Group,4,FALSE),0)","v":0},{"$f":"IF(VLOOKUP(AH319,Group,5,FALSE)=\"\",0,ROUND(AL319-0.04999,1)-AL319+AO319)","v":0},{"$f":"IF(VLOOKUP(AH319,Group,5,FALSE)=\"\",\"\",VLOOKUP(AH319,Group,5,FALSE))","v":""},null,"X"]
["GP4DRY800",null,"RS","RTC - All Other",null,"RSPOGP4DRY800",null,"GP4DRY800",null,"800 Grit",null,"Killer Bee Dry/Wet 4\" Dry Diamond Pad",null,null,null,null,"RTC",null,"Stock","new",{"$f":"IF(Suggested=\"Yes\",'Price List'!AC320,'Price List'!AI320)","v":13.9},"EA",{"$f":"+Instructions!$B$3","v":"N"},null,{"$f":"+Instructions!$D$22","v":0},{"$f":"ROUND($AC320*(1-Y320)+0.004999,2)","v":13.9},null,"new",13.9,0,13.9,{"$f":"(AI320-AE320)/AI320","v":0},null,"RS",{"$f":"SUM(AL320:AN320)+AG320","v":13.9},null,null,{"$f":"ROUND(AE320/(1-VLOOKUP(AH320,Group,2,FALSE)),2)","v":13.9},{"$f":"IF(VLOOKUP(AH320,Group,3,FALSE)=\"YES\",VLOOKUP(ROUND(ROUND(AL320,1)-AL320,2),Round,2,FALSE)+VLOOKUP(AH320,Group,4,FALSE),0)","v":0},{"$f":"IF(VLOOKUP(AH320,Group,5,FALSE)=\"\",0,ROUND(AL320-0.04999,1)-AL320+AO320)","v":0},{"$f":"IF(VLOOKUP(AH320,Group,5,FALSE)=\"\",\"\",VLOOKUP(AH320,Group,5,FALSE))","v":""},null,"X"]
["GP4DRY1500",null,"RS","RTC - All Other",null,"RSPOGP4DRY1500",null,"GP4DRY1500",null,"1500 Grit",null,"Killer Bee Dry/Wet 4\" Dry Diamond Pad",null,null,null,null,"RTC",null,null,"new",{"$f":"IF(Suggested=\"Yes\",'Price List'!AC321,'Price List'!AI321)","v":13.9},"EA",{"$f":"+Instructions!$B$3","v":"N"},null,{"$f":"+Instructions!$D$22","v":0},13.9,null,"new",13.9,0,13.9,0,null,"RS",13.9,null,null,13.9,0,0,"",null,"X"]
["GP4DRY3000",null,"RS","RTC - All Other",null,"RSPOGP4DRY3000",null,"GP4DRY3000",null,"3000 Grit",null,"Killer Bee Dry/Wet 4\" Dry Diamond Pad",null,null,null,null,"RTC",null,null,"new",{"$f":"IF(Suggested=\"Yes\",'Price List'!AC322,'Price List'!AI322)","v":13.9},"EA",{"$f":"+Instructions!$B$3","v":"N"},null,{"$f":"+Instructions!$D$22","v":0},13.9,null,"new",13.9,0,13.9,0,null,"RS",13.9,null,null,13.9,0,0,"",null,"X"]
["GP4DBUFFB",null,"RS","RTC - All Other",null,"RSPOGP4DBUFFB",null,"GP4DBUFFB",null,"Buff",null,"Killer Bee Dry/Wet 4\" Final Buff Dry Black",null,null,null,null,"RTC",null,null,"new",{"$f":"IF(Suggested=\"Yes\",'Price List'!AC323,'Price List'!AI323)","v":13.9},"EA",{"$f":"+Instructions!$B$3","v":"N"},null,{"$f":"+Instructions!$D$22","v":0},{"$f":"ROUND($AC323*(1-Y323)+0.004999,2)","v":13.9},null,"new",13.9,{"$f":"+Y323","v":0},{"$f":"+Z323","v":13.9},{"$f":"(AI323-AE323)/AI323","v":0},null,"RS",{"$f":"SUM(AL323:AN323)+AG323","v":13.9},null,null,{"$f":"ROUND(AE323/(1-VLOOKUP(AH323,Group,2,FALSE)),2)","v":13.9},{"$f":"IF(VLOOKUP(AH323,Group,3,FALSE)=\"YES\",VLOOKUP(ROUND(ROUND(AL323,1)-AL323,2),Round,2,FALSE)+VLOOKUP(AH323,Group,4,FALSE),0)","v":0},{"$f":"IF(VLOOKUP(AH323,Group,5,FALSE)=\"\",0,ROUND(AL323-0.04999,1)-AL323+AO323)","v":0},{"$f":"IF(VLOOKUP(AH323,Group,5,FALSE)=\"\",\"\",VLOOKUP(AH323,Group,5,FALSE))","v":""},null,"X"]
["GP4DBUFFW",null,"RS","RTC - All Other",null,"RSPOGP4DBUFFW",null,"GP4DBUFFW",null,"Buff",null,"Killer Bee Dry/Wet 4\" Final Buff Dry White",null,null,null,null,"RTC",null,null,"new",{"$f":"IF(Suggested=\"Yes\",'Price List'!AC324,'Price List'!AI324)","v":13.9},"EA",{"$f":"+Instructions!$B$3","v":"N"},null,{"$f":"+Instructions!$D$22","v":0},{"$f":"ROUND($AC324*(1-Y324)+0.004999,2)","v":13.9},null,"new",13.9,{"$f":"+Y324","v":0},{"$f":"+Z324","v":13.9},{"$f":"(AI324-AE324)/AI324","v":0},null,"RS",{"$f":"SUM(AL324:AN324)+AG324","v":13.9},null,null,{"$f":"ROUND(AE324/(1-VLOOKUP(AH324,Group,2,FALSE)),2)","v":13.9},{"$f":"IF(VLOOKUP(AH324,Group,3,FALSE)=\"YES\",VLOOKUP(ROUND(ROUND(AL324,1)-AL324,2),Round,2,FALSE)+VLOOKUP(AH324,Group,4,FALSE),0)","v":0},{"$f":"IF(VLOOKUP(AH324,Group,5,FALSE)=\"\",0,ROUND(AL324-0.04999,1)-AL324+AO324)","v":0},{"$f":"IF(VLOOKUP(AH324,Group,5,FALSE)=\"\",\"\",VLOOKUP(AH324,Group,5,FALSE))","v":""},null,"X"]
[null,null,null,null,null,null,null,null,null,null,null,null,null,null,null,null,null,null,null,null,null,null,null,null,null,null,null,null,null,null,null,null,null,null,null,null,null,null,null,null,null,null,"X"]
[null,null,null,null,null,"Diamond Sponge",null,null,null,null,null,null,null,null,null,null,null,null,null,null,null,null,null,null,null,null,null,null,null,null,null,null,null,null,null,null,null,null,null,null,null,null,"X"]
["GPPAD60",null,"RS","RTC - All Other",null,"RSPOGPPAD060",null,"GPPAD60",null,"Diamond Polishing Pad",null,null,"60 Grit - Course",null,null,null,"RTC",null,null,"new",{"$f":"IF(Suggested=\"Yes\",'Price List'!AC327,'Price List'!AI327)","v":25.7},"EA",{"$f":"+Instructions!$B$3","v":"N"},null,{"$f":"+Instructions!$D$22","v":0},{"$f":"ROUND($AC327*(1-Y327)+0.004999,2)","v":25.7},null,"new",25.7,{"$f":"+Y327","v":0},{"$f":"+Z327","v":25.7},{"$f":"(AI327-AE327)/AI327","v":0},null,{"$f":"+C327","v":"RS"},{"$f":"SUM(AL327:AN327)+AG327","v":25.7},null,null,{"$f":"ROUND(AE327/(1-VLOOKUP(AH327,Group,2,FALSE)),2)","v":25.7},{"$f":"IF(VLOOKUP(AH327,Group,3,FALSE)=\"YES\",VLOOKUP(ROUND(ROUND(AL327,1)-AL327,2),Round,2,FALSE)+VLOOKUP(AH327,Group,4,FALSE),0)","v":0},{"$f":"IF(VLOOKUP(AH327,Group,5,FALSE)=\"\",0,ROUND(AL327-0.04999,1)-AL327+AO327)","v":0},{"$f":"IF(VLOOKUP(AH327,Group,5,FALSE)=\"\",\"\",VLOOKUP(AH327,Group,5,FALSE))","v":""},null,"X"]
["GPPAD120",null,"RS","RTC - All Other",null,"RSPOGPPAD120",null,"GPPAD120",null,"Diamond Polishing Pad",null,null,"120 Grit - Smooth",null,null,null,"RTC",null,"Stock","new",{"$f":"IF(Suggested=\"Yes\",'Price List'!AC328,'Price List'!AI328)","v":25.7},"EA",{"$f":"+Instructions!$B$3","v":"N"},null,{"$f":"+Instructions!$D$22","v":0},25.7,null,"new",25.7,0,25.7,0,null,{"$f":"+C328","v":"RS"},25.7,null,null,25.7,0,0,"",null,"X"]
["GPPAD200",null,"RS","RTC - All Other",null,"RSPOGPPAD200",null,"GPPAD200",null,"Diamond Polishing Pad",null,null,"200 Grit - Fine",null,null,null,"RTC",null,"Stock","new",{"$f":"IF(Suggested=\"Yes\",'Price List'!AC329,'Price List'!AI329)","v":25.7},"EA",{"$f":"+Instructions!$B$3","v":"N"},null,{"$f":"+Instructions!$D$22","v":0},25.7,null,"new",25.7,0,25.7,0,null,{"$f":"+C329","v":"RS"},25.7,null,null,25.7,0,0,"",null,"X"]
["GPPAD400",null,"RS","RTC - All Other",null,"RSPOGPPAD400",null,"GPPAD400",null,"Diamond Polishing Pad",null,null,"400 Grit - Extra Fine",null,null,null,"RTC",null,null,"new",{"$f":"IF(Suggested=\"Yes\",'Price List'!AC330,'Price List'!AI330)","v":25.7},"EA",{"$f":"+Instructions!$B$3","v":"N"},null,{"$f":"+Instructions!$D$22","v":0},25.7,null,"new",25.7,0,25.7,0,null,{"$f":"+C330","v":"RS"},25.7,null,null,25.7,0,0,"",null,"X"]
[null,null,null,null,null,null,null,null,null,null,null,null,null,null,null,null,null,null,null,null,null,null,null,null,null,null,null,null,null,null,null,null,null,null,null,null,null,null,null,null,null,null,"X"]
[null,null,null,null,"Other Cutting Tools & Markers"]
[null,null,null,null,null,null,null,null,null,null,null,null,null,null,null,null,null,null,null,null,null,null,null,null,null,null,null,null,null,null,null,null,null,null,null,null,null,null,null,null,null,null,"X"]
[null,null,null,null,null,"Hole Saws & Diamond Drill Bits",null,null,null,null,null,null,null,null,null,null,null,null,null,null,null,null,null,null,null,null,null,null,null,null,null,null,null,null,null,null,null,null,null,null,null,null,"X"]
["HSPB18",null,"RS","RTC - All Other",null,"RSDBPB013",null,"HSPB18",null,"1/8\"","Pro Bit Hole Saw Wet Diamond Bit (use w/ Drill)",null,null,null,null,null,"RTC",null,null,"new",{"$f":"IF(Suggested=\"Yes\",'Price List'!AC335,'Price List'!AI335)","v":26.75},"EA",{"$f":"+Instructions!$B$3","v":"N"},null,{"$f":"+Instructions!$D$22","v":0},{"$f":"ROUND($AC335*(1-Y335)+0.004999,2)","v":26.75},null,"new",26.75,{"$f":"+Y335","v":0},{"$f":"+Z335","v":26.75},{"$f":"(AI335-AE335)/AI335","v":0},null,{"$f":"+C335","v":"RS"},{"$f":"SUM(AL335:AN335)+AG335","v":26.75},null,null,{"$f":"ROUND(AE335/(1-VLOOKUP(AH335,Group,2,FALSE)),2)","v":26.75},{"$f":"IF(VLOOKUP(AH335,Group,3,FALSE)=\"YES\",VLOOKUP(ROUND(ROUND(AL335,1)-AL335,2),Round,2,FALSE)+VLOOKUP(AH335,Group,4,FALSE),0)","v":0},{"$f":"IF(VLOOKUP(AH335,Group,5,FALSE)=\"\",0,ROUND(AL335-0.04999,1)-AL335+AO335)","v":0},{"$f":"IF(VLOOKUP(AH335,Group,5,FALSE)=\"\",\"\",VLOOKUP(AH335,Group,5,FALSE))","v":""},null,"X"]
["HSPB316",null,"RS","RTC - All Other",null,"RSDBPB019",null,"HSPB316",null,"3/16\"","Pro Bit Hole Saw Wet Diamond Bit (use w/ Drill)",null,null,null,null,null,"RTC",null,null,"new",{"$f":"IF(Suggested=\"Yes\",'Price List'!AC336,'Price List'!AI336)","v":27.8},"EA",{"$f":"+Instructions!$B$3","v":"N"},null,{"$f":"+Instructions!$D$22","v":0},27.8,null,"new",27.8,0,27.8,0,null,"RS",27.8,null,null,27.8,0,0,"",null,"X"]
["HSPB14",null,"RS","RTC - All Other",null,"RSDBPB025",null,"HSPB14",null,"1/4\"","Pro Bit Hole Saw Wet Diamond Bit (use w/ Drill)",null,null,null,null,null,"RTC",null,"Stock","new",{"$f":"IF(Suggested=\"Yes\",'Price List'!AC337,'Price List'!AI337)","v":28.9},"EA",{"$f":"+Instructions!$B$3","v":"N"},null,{"$f":"+Instructions!$D$22","v":0},28.9,null,"new",28.9,0,28.9,0,null,"RS",28.9,null,null,28.9,0,0,"",null,"X"]
["HSPB516",null,"RS","RTC - All Other",null,"RSDBPB031",null,"HSPB516",null,"5/16\"","Pro Bit Hole Saw Wet Diamond Bit (use w/ Drill)",null,null,null,null,null,"RTC",null,null,"new",{"$f":"IF(Suggested=\"Yes\",'Price List'!AC338,'Price List'!AI338)","v":32.1},"EA",{"$f":"+Instructions!$B$3","v":"N"},null,{"$f":"+Instructions!$D$22","v":0},32.1,null,"new",32.1,0,32.1,0,null,"RS",32.1,null,null,32.1,0,0,"",null,"X"]
["HSPB38",null,"RS","RTC - All Other",null,"RSDBPB038",null,"HSPB38",null,"3/8\"","Pro Bit Hole Saw Wet Diamond Bit (use w/ Drill)",null,null,null,null,null,"RTC",null,null,"new",{"$f":"IF(Suggested=\"Yes\",'Price List'!AC339,'Price List'!AI339)","v":34.25},"EA",{"$f":"+Instructions!$B$3","v":"N"},null,{"$f":"+Instructions!$D$22","v":0},34.25,null,"new",34.25,0,34.25,0,null,"RS",34.25,null,null,34.25,0,0,"",null,"X"]
["HSPB12",null,"RS","RTC - All Other",null,"RSDBPB050",null,"HSPB12",null,"1/2\"","Pro Bit Hole Saw Wet Diamond Bit (use w/ Drill)",null,null,null,null,null,"RTC",null,null,"new",{"$f":"IF(Suggested=\"Yes\",'Price List'!AC340,'Price List'!AI340)","v":50.3},"EA",{"$f":"+Instructions!$B$3","v":"N"},null,{"$f":"+Instructions!$D$22","v":0},50.3,null,"new",50.3,0,50.3,0,null,"RS",50.3,null,null,50.3,0,0,"",null,"X"]
["HSPB34",null,"RS","RTC - All Other",null,"RSDBPB075",null,"HSPB34",null,"3/4\"","Pro Bit Hole Saw Wet Diamond Bit (use w/ Drill)",null,null,null,null,null,"RTC",null,null,"new",{"$f":"IF(Suggested=\"Yes\",'Price List'!AC341,'Price List'!AI341)","v":55.65},"EA",{"$f":"+Instructions!$B$3","v":"N"},null,{"$f":"+Instructions!$D$22","v":0},55.65,null,"new",55.65,0,55.65,0,null,"RS",55.65,null,null,55.65,0,0,"",null,"X"]
[null,null,null,null,null,null,null,null,null,null,null,null,null,null,null,null,null,null,null,null,null,null,null,null,null,null,null,null,null,null,null,null,null,null,null,null,null,null,null,null,null,null,"X"]
["HSPB1",null,"RS","RTC - All Other",null,"RSDBPB100",null,"HSPB1",null,"1\"","Pro Bit Hole Saw Wet Diamond Bit (use w/ Drill)",null,null,null,null,null,"RTC",null,"Stock","new",{"$f":"IF(Suggested=\"Yes\",'Price List'!AC343,'Price List'!AI343)","v":61},"EA",{"$f":"+Instructions!$B$3","v":"N"},null,{"$f":"+Instructions!$D$22","v":0},61,null,"new",61,0,61,0,null,{"$f":"+C343","v":"RS"},61,null,null,61,0,0,"",null,"X"]
["HSPB114",null,"RS","RTC - All Other",null,"RSDBPB125",null,"HSPB114",null,"1-1/4\"","Pro Bit Hole Saw Wet Diamond Bit (use w/ Drill)",null,null,null,null,null,"RTC",null,null,"new",{"$f":"IF(Suggested=\"Yes\",'Price List'!AC344,'Price List'!AI344)","v":69.599999999999994},"EA",{"$f":"+Instructions!$B$3","v":"N"},null,{"$f":"+Instructions!$D$22","v":0},69.599999999999994,null,"new",69.599999999999994,0,69.599999999999994,0,null,{"$f":"+C344","v":"RS"},69.599999999999994,null,null,69.599999999999994,0,0,"",null,"X"]
["HSPB138",null,"RS","RTC - All Other",null,"RSDBPB138",null,"HSPB138",null,"1-3/8\"","Pro Bit Hole Saw Wet Diamond Bit (use w/ Drill)",null,null,null,null,null,"RTC",null,"Stock","new",{"$f":"IF(Suggested=\"Yes\",'Price List'!AC345,'Price List'!AI345)","v":71.75},"EA",{"$f":"+Instructions!$B$3","v":"N"},null,{"$f":"+Instructions!$D$22","v":0},71.75,null,"new",71.75,0,71.75,0,null,{"$f":"+C345","v":"RS"},71.75,null,null,71.75,0,0,"",null,"X"]
["HSPB112",null,"RS","RTC - All Other",null,"RSDBPB150",null,"HSPB112",null,"1-1/2\"","Pro Bit Hole Saw Wet Diamond Bit (use w/ Drill)",null,null,null,null,null,"RTC",null,null,"new",{"$f":"IF(Suggested=\"Yes\",'Price List'!AC346,'Price List'!AI346)","v":73.849999999999994},"EA",{"$f":"+Instructions!$B$3","v":"N"},null,{"$f":"+Instructions!$D$22","v":0},73.849999999999994,null,"new",73.849999999999994,0,73.849999999999994,0,null,{"$f":"+C346","v":"RS"},73.849999999999994,null,null,73.849999999999994,0,0,"",null,"X"]
["HSPB134",null,"RS","RTC - All Other",null,"RSDBPB175",null,"HSPB134",null,"1-3/4\"","Pro Bit Hole Saw Wet Diamond Bit (use w/ Drill)",null,null,null,null,null,"RTC",null,null,"new",{"$f":"IF(Suggested=\"Yes\",'Price List'!AC347,'Price List'!AI347)","v":83.5},"EA",{"$f":"+Instructions!$B$3","v":"N"},null,{"$f":"+Instructions!$D$22","v":0},83.5,null,"new",83.5,0,83.5,0,null,{"$f":"+C347","v":"RS"},83.5,null,null,83.5,0,0,"",null,"X"]
[null,null,null,null,null,null,null,null,null,null,null,null,null,null,null,null,null,null,null,null,null,null,null,null,null,null,null,null,null,null,null,null,null,null,null,null,null,null,null,null,null,null,"X"]
["HSPB2",null,"RS","RTC - All Other",null,"RSDBPB200",null,"HSPB2",null,"2\"","Pro Bit Hole Saw Wet Diamond Bit (use w/ Drill)",null,null,null,null,null,"RTC",null,"Stock","new",{"$f":"IF(Suggested=\"Yes\",'Price List'!AC349,'Price List'!AI349)","v":92.1},"EA",{"$f":"+Instructions!$B$3","v":"N"},null,{"$f":"+Instructions!$D$22","v":0},92.1,null,"new",92.1,0,92.1,0,null,{"$f":"+C349","v":"RS"},92.1,null,null,92.1,0,0,"",null,"X"]
["HSPB214",null,"RS","RTC - All Other",null,"RSDBPB225",null,"HSPB214",null,"2-1/4\"","Pro Bit Hole Saw Wet Diamond Bit (use w/ Drill)",null,null,null,null,null,"RTC",null,null,"new",{"$f":"IF(Suggested=\"Yes\",'Price List'!AC350,'Price List'!AI350)","v":98.5},"EA",{"$f":"+Instructions!$B$3","v":"N"},null,{"$f":"+Instructions!$D$22","v":0},98.5,null,"new",98.5,{"$f":"+Y350","v":0},{"$f":"+Z350","v":98.5},{"$f":"(AI350-AE350)/AI350","v":0},null,{"$f":"+C350","v":"RS"},{"$f":"SUM(AL350:AN350)+AG350","v":98.5},null,null,{"$f":"ROUND(AE350/(1-VLOOKUP(AH350,Group,2,FALSE)),2)","v":98.5},{"$f":"IF(VLOOKUP(AH350,Group,3,FALSE)=\"YES\",VLOOKUP(ROUND(ROUND(AL350,1)-AL350,2),Round,2,FALSE)+VLOOKUP(AH350,Group,4,FALSE),0)","v":0},{"$f":"IF(VLOOKUP(AH350,Group,5,FALSE)=\"\",0,ROUND(AL350-0.04999,1)-AL350+AO350)","v":0},{"$f":"IF(VLOOKUP(AH350,Group,5,FALSE)=\"\",\"\",VLOOKUP(AH350,Group,5,FALSE))","v":""},null,"X"]
["HSPB234",null,"RS","RTC - All Other",null,"RSDBPB250",null,"HSPB234",null,"2-3/4\"","Pro Bit Hole Saw Wet Diamond Bit (use w/ Drill)",null,null,null,null,null,"RTC",null,null,"new",{"$f":"IF(Suggested=\"Yes\",'Price List'!AC351,'Price List'!AI351)","v":106},"EA",{"$f":"+Instructions!$B$3","v":"N"},null,{"$f":"+Instructions!$D$22","v":0},106,null,"new",106,0,106,0,null,{"$f":"+C351","v":"RS"},106,null,null,106,0,0,"",null,"X"]
[null,null,null,null,null,null,null,null,null,null,null,null,null,null,null,null,null,null,null,null,null,null,null,null,null,null,null,null,null,null,null,null,null,null,null,null,null,null,null,null,null,null,"X"]
["HSPB3",null,"RS","RTC - All Other",null,"RSDBPB300",null,"HSPB3",null,"3\"","Pro Bit Hole Saw Wet Diamond Bit (use w/ Drill)",null,null,null,null,null,"RTC",null,"Stock","new",{"$f":"IF(Suggested=\"Yes\",'Price List'!AC353,'Price List'!AI353)","v":112.5},"EA",{"$f":"+Instructions!$B$3","v":"N"},null,{"$f":"+Instructions!$D$22","v":0},112.5,null,"new",112.5,0,112.5,0,null,{"$f":"+C353","v":"RS"},112.5,null,null,112.5,0,0,"",null,"X"]
["HSPB312",null,"RS","RTC - All Other",null,"RSDBPB350",null,"HSPB312",null,"3-1/2\"","Pro Bit Hole Saw Wet Diamond Bit (use w/ Drill)",null,null,null,null,null,"RTC",null,null,"new",{"$f":"IF(Suggested=\"Yes\",'Price List'!AC354,'Price List'!AI354)","v":128.55000000000001},"EA",{"$f":"+Instructions!$B$3","v":"N"},null,{"$f":"+Instructions!$D$22","v":0},128.55000000000001,null,"new",128.55000000000001,0,128.55000000000001,0,null,{"$f":"+C354","v":"RS"},128.55000000000001,null,null,128.55000000000001,0,0,"",null,"X"]
[null,null,null,null,null,null,null,null,null,null,null,null,null,null,null,null,null,null,null,null,null,null,null,null,null,null,null,null,null,null,null,null,null,null,null,null,null,null,null,null,null,null,"X"]
["HSPB4",null,"RS","RTC - All Other",null,"RSDBPB400",null,"HSPB4",null,"4\"","Pro Bit Hole Saw Wet Diamond Bit (use w/ Drill)",null,null,null,null,null,"RTC",null,null,"new",{"$f":"IF(Suggested=\"Yes\",'Price List'!AC356,'Price List'!AI356)","v":155.15},"EA",{"$f":"+Instructions!$B$3","v":"N"},null,{"$f":"+Instructions!$D$22","v":0},155.15,null,"new",155.15,0,155.15,0,null,{"$f":"+C356","v":"RS"},155.15,null,null,155.15,0,0,"",null,"X"]
["HSPB414",null,"RS","RTC - All Other",null,"RSDBPB425",null,"HSPB414",null,"4-1/4\"","Pro Bit Hole Saw Wet Diamond Bit (use w/ Drill)",null,null,null,null,null,"RTC",null,null,"new",{"$f":"IF(Suggested=\"Yes\",'Price List'!AC357,'Price List'!AI357)","v":159.75},"EA",{"$f":"+Instructions!$B$3","v":"N"},null,{"$f":"+Instructions!$D$22","v":0},159.75,null,"new",159.75,0,159.75,0,null,{"$f":"+C357","v":"RS"},159.75,null,null,159.75,0,0,"",null,"X"]
["HSPB438",null,"RS","RTC - All Other",null,"RSDBPB438",null,"HSPB438",null,"4-3/8\"","Pro Bit Hole Saw Wet Diamond Bit (use w/ Drill)",null,null,null,null,null,"RTC",null,null,"new",{"$f":"IF(Suggested=\"Yes\",'Price List'!AC358,'Price List'!AI358)","v":163.19999999999999},"EA",{"$f":"+Instructions!$B$3","v":"N"},null,{"$f":"+Instructions!$D$22","v":0},163.19999999999999,null,"new",163.19999999999999,0,163.19999999999999,0,null,{"$f":"+C358","v":"RS"},163.19999999999999,null,null,163.19999999999999,0,0,"",null,"X"]
["HSPB412",null,"RS","RTC - All Other",null,"RSDBPB450",null,"HSPB412",null,"4-1/2\"","Pro Bit Hole Saw Wet Diamond Bit (use w/ Drill)",null,null,null,null,null,"RTC",null,null,"new",{"$f":"IF(Suggested=\"Yes\",'Price List'!AC359,'Price List'!AI359)","v":174.7},"EA",{"$f":"+Instructions!$B$3","v":"N"},null,{"$f":"+Instructions!$D$22","v":0},174.7,null,"new",174.7,0,174.7,0,null,{"$f":"+C359","v":"RS"},174.7,null,null,174.7,0,0,"",null,"X"]
[null,null,null,null,null,null,null,null,null,null,null,null,null,null,null,null,null,null,null,null,null,null,null,null,null,null,null,null,null,null,null,null,null,null,null,null,null,null,null,null,null,null,"X"]
["HSPB5",null,"RS","RTC - All Other",null,"RSDBPB500",null,"HSPB5",null,"5\"","Pro Bit Hole Saw Wet Diamond Bit (use w/ Drill)",null,null,null,null,null,"RTC",null,null,"new",{"$f":"IF(Suggested=\"Yes\",'Price List'!AC361,'Price List'!AI361)","v":192.85},"EA",{"$f":"+Instructions!$B$3","v":"N"},null,{"$f":"+Instructions!$D$22","v":0},192.85,null,"new",192.85,0,192.85,0,null,{"$f":"+C361","v":"RS"},192.85,null,null,192.85,0,0,"",null,"X"]
["HSPB6",null,"RS","RTC - All Other",null,"RSDBPB600",null,"HSPB6",null,"6\"","Pro Bit Hole Saw Wet Diamond Bit (use w/ Drill)",null,null,null,null,null,"RTC",null,"Stock","new",{"$f":"IF(Suggested=\"Yes\",'Price List'!AC362,'Price List'!AI362)","v":277.5},"EA",{"$f":"+Instructions!$B$3","v":"N"},null,{"$f":"+Instructions!$D$22","v":0},277.5,null,"new",277.5,0,277.5,0,null,{"$f":"+C362","v":"RS"},277.5,null,null,277.5,0,0,"",null,"X"]
[null,null,null,null,null,null,null,null,null,null,null,null,null,null,null,null,null,null,null,null,null,null,null,null,null,null,null,null,null,null,null,null,null,null,null,null,null,null,null,null,null,null,"X"]
[null,null,null,null,null,null,null,"RTC Porcelain Pro Bil stands out from its competition by offering up to 50 holes per bit!"]
[null,null,null,null,null,null,null,"The electroplated diamond grinds through material leaving you with a clean, fast and precise holes."]
[null,null,null,null,null,null,null,null,null,null,null,null,null,null,null,null,null,null,null,null,null,null,null,null,null,null,null,null,null,null,null,null,null,null,null,null,null,null,null,null,null,null,"X"]
["HSHS14T",null,"RU","Rubi - All Other",null,"RSDBHS025",null,"HSHS14T",null,"1/4\"","Hole Shot Dry Diamond Core Bit (use with Grinder)",null,null,null,null,null,"RTC",null,"Stock","new",{"$f":"IF(Suggested=\"Yes\",'Price List'!AC367,'Price List'!AI367)","v":18.8},"EA",{"$f":"+Instructions!$B$3","v":"N"},null,{"$f":"+Instructions!$D$22","v":0},{"$f":"ROUND($AC367*(1-Y367)+0.004999,2)","v":18.8},null,"new",18.8,{"$f":"+Y367","v":0},{"$f":"+Z367","v":18.8},{"$f":"(AI367-AE367)/AI367","v":0},null,{"$f":"+C367","v":"RU"},{"$f":"SUM(AL367:AN367)+AG367","v":18.8},null,null,{"$f":"ROUND(AE367/(1-VLOOKUP(AH367,Group,2,FALSE)),2)","v":18.8},{"$f":"IF(VLOOKUP(AH367,Group,3,FALSE)=\"YES\",VLOOKUP(ROUND(ROUND(AL367,1)-AL367,2),Round,2,FALSE)+VLOOKUP(AH367,Group,4,FALSE),0)","v":0},{"$f":"IF(VLOOKUP(AH367,Group,5,FALSE)=\"\",0,ROUND(AL367-0.04999,1)-AL367+AO367)","v":0},{"$f":"IF(VLOOKUP(AH367,Group,5,FALSE)=\"\",\"\",VLOOKUP(AH367,Group,5,FALSE))","v":""},null,"X"]
["HSHS516T",null,"RU","Rubi - All Other",null,"RSDBHS031",null,"HSHS516T",null,"5/16\"","Hole Shot Dry Diamond Core Bit (use with Grinder)",null,null,null,null,null,"RTC",null,null,"new",{"$f":"IF(Suggested=\"Yes\",'Price List'!AC368,'Price List'!AI368)","v":22.7},"EA",{"$f":"+Instructions!$B$3","v":"N"},null,{"$f":"+Instructions!$D$22","v":0},22.7,null,"new",22.7,{"$f":"+Y368","v":0},{"$f":"+Z368","v":22.7},{"$f":"(AI368-AE368)/AI368","v":0},null,"RU",{"$f":"SUM(AL368:AN368)+AG368","v":22.7},null,null,{"$f":"ROUND(AE368/(1-VLOOKUP(AH368,Group,2,FALSE)),2)","v":22.7},{"$f":"IF(VLOOKUP(AH368,Group,3,FALSE)=\"YES\",VLOOKUP(ROUND(ROUND(AL368,1)-AL368,2),Round,2,FALSE)+VLOOKUP(AH368,Group,4,FALSE),0)","v":0},{"$f":"IF(VLOOKUP(AH368,Group,5,FALSE)=\"\",0,ROUND(AL368-0.04999,1)-AL368+AO368)","v":0},{"$f":"IF(VLOOKUP(AH368,Group,5,FALSE)=\"\",\"\",VLOOKUP(AH368,Group,5,FALSE))","v":""},null,"X"]
["HSHS38T",null,"RU","Rubi - All Other",null,"RSDBHS038",null,"HSHS38T",null,"3/8\"","Hole Shot Dry Diamond Core Bit (use with Grinder)",null,null,null,null,null,"RTC",null,null,"new",{"$f":"IF(Suggested=\"Yes\",'Price List'!AC369,'Price List'!AI369)","v":23.3},"EA",{"$f":"+Instructions!$B$3","v":"N"},null,{"$f":"+Instructions!$D$22","v":0},23.3,null,"new",23.3,0,23.3,0,null,"RU",23.3,null,null,23.3,0,0,"",null,"X"]
["HSHS12T",null,"RU","Rubi - All Other",null,"RSDBHS050",null,"HSHS12T",null,"1/2\"","Hole Shot Dry Diamond Core Bit (use with Grinder)",null,null,null,null,null,"RTC",null,null,"new",{"$f":"IF(Suggested=\"Yes\",'Price List'!AC370,'Price List'!AI370)","v":24.2},"EA",{"$f":"+Instructions!$B$3","v":"N"},null,{"$f":"+Instructions!$D$22","v":0},24.2,null,"new",24.2,0,24.2,0,null,"RU",24.2,null,null,24.2,0,0,"",null,"X"]
["HSHS916T",null,"RU","Rubi - All Other",null,"RSDBHS056",null,"HSHS916T",null,"9/16\"","Hole Shot Dry Diamond Core Bit (use with Grinder)",null,null,null,null,null,"RTC",null,null,"new",{"$f":"IF(Suggested=\"Yes\",'Price List'!AC371,'Price List'!AI371)","v":24.7},"EA",{"$f":"+Instructions!$B$3","v":"N"},null,{"$f":"+Instructions!$D$22","v":0},24.7,null,"new",24.7,{"$f":"+Y371","v":0},{"$f":"+Z371","v":24.7},{"$f":"(AI371-AE371)/AI371","v":0},null,"RU",{"$f":"SUM(AL371:AN371)+AG371","v":24.7},null,null,{"$f":"ROUND(AE371/(1-VLOOKUP(AH371,Group,2,FALSE)),2)","v":24.7},{"$f":"IF(VLOOKUP(AH371,Group,3,FALSE)=\"YES\",VLOOKUP(ROUND(ROUND(AL371,1)-AL371,2),Round,2,FALSE)+VLOOKUP(AH371,Group,4,FALSE),0)","v":0},{"$f":"IF(VLOOKUP(AH371,Group,5,FALSE)=\"\",0,ROUND(AL371-0.04999,1)-AL371+AO371)","v":0},{"$f":"IF(VLOOKUP(AH371,Group,5,FALSE)=\"\",\"\",VLOOKUP(AH371,Group,5,FALSE))","v":""},null,"X"]
["HSHS34T",null,"RU","Rubi - All Other",null,"RSDBHS075",null,"HSHS34T",null,"3/4\"","Hole Shot Dry Diamond Core Bit (use with Grinder)",null,null,null,null,null,"RTC",null,null,"new",{"$f":"IF(Suggested=\"Yes\",'Price List'!AC372,'Price List'!AI372)","v":26.25},"EA",{"$f":"+Instructions!$B$3","v":"N"},null,{"$f":"+Instructions!$D$22","v":0},26.25,null,"new",26.25,0,26.25,0,null,"RU",26.25,null,null,26.25,0,0,"",null,"X"]
[null,null,null,null,null,null,null,null,null,null,null,null,null,null,null,null,null,null,null,null,null,null,null,null,null,null,null,null,null,null,null,null,null,null,null,null,null,null,null,null,null,null,"X"]
["HSHS138T",null,"RU","Rubi - All Other",null,"RSDBHS138",null,"HSHS138T",null,"1-3/8\"","Hole Shot Dry Diamond Core Bit (use with Grinder)",null,null,null,null,null,"RTC",null,"Stock","new",{"$f":"IF(Suggested=\"Yes\",'Price List'!AC374,'Price List'!AI374)","v":58.05},"EA",{"$f":"+Instructions!$B$3","v":"N"},null,{"$f":"+Instructions!$D$22","v":0},58.05,null,"new",58.05,0,58.05,0,null,{"$f":"+C374","v":"RU"},58.05,null,null,58.05,0,0,"",null,"X"]
["HSHS112T",null,"RU","Rubi - All Other",null,"RSDBHS150",null,"HSHS112T",null,"1-1/2\"","Hole Shot Dry Diamond Core Bit (use with Grinder)",null,null,null,null,null,"RTC",null,null,"new",{"$f":"IF(Suggested=\"Yes\",'Price List'!AC375,'Price List'!AI375)","v":63.95},"EA",{"$f":"+Instructions!$B$3","v":"N"},null,{"$f":"+Instructions!$D$22","v":0},63.95,null,"new",63.95,0,63.95,0,null,{"$f":"+C375","v":"RU"},63.95,null,null,63.95,0,0,"",null,"X"]
[null,null,null,null,null,null,null,null,null,null,null,null,null,null,null,null,null,null,null,null,null,null,null,null,null,null,null,null,null,null,null,null,null,null,null,null,null,null,null,null,null,null,"X"]
["HSHS2T",null,"RU","Rubi - All Other",null,"RSDBHS200",null,"HSHS2T",null,"2\"","Hole Shot Dry Diamond Core Bit (use with Grinder)",null,null,null,null,null,"RTC",null,null,"new",{"$f":"IF(Suggested=\"Yes\",'Price List'!AC377,'Price List'!AI377)","v":79.55},"EA",{"$f":"+Instructions!$B$3","v":"N"},null,{"$f":"+Instructions!$D$22","v":0},79.55,null,"new",79.55,0,79.55,0,null,{"$f":"+C377","v":"RU"},79.55,null,null,79.55,0,0,"",null,"X"]
["HSHS214T",null,"RU","Rubi - All Other",null,"RSDBHS225",null,"HSHS214T",null,"2-1/4\"","Hole Shot Dry Diamond Core Bit (use with Grinder)",null,null,null,null,null,"RTC",null,null,"new",{"$f":"IF(Suggested=\"Yes\",'Price List'!AC378,'Price List'!AI378)","v":86.65},"EA",{"$f":"+Instructions!$B$3","v":"N"},null,{"$f":"+Instructions!$D$22","v":0},86.65,null,"new",86.65,0,86.65,0,null,{"$f":"+C378","v":"RU"},86.65,null,null,86.65,0,0,"",null,"X"]
["HSHS234T",null,"RU","Rubi - All Other",null,"RSDBHS275",null,"HSHS234T",null,"2-3/4\"","Hole Shot Dry Diamond Core Bit (use with Grinder)",null,null,null,null,null,"RTC",null,null,"new",{"$f":"IF(Suggested=\"Yes\",'Price List'!AC379,'Price List'!AI379)","v":100.2},"EA",{"$f":"+Instructions!$B$3","v":"N"},null,{"$f":"+Instructions!$D$22","v":0},100.2,null,"new",100.2,0,100.2,0,null,{"$f":"+C379","v":"RU"},100.2,null,null,100.2,0,0,"",null,"X"]
[null,null,null,null,null,null,null,null,null,null,null,null,null,null,null,null,null,null,null,null,null,null,null,null,null,null,null,null,null,null,null,null,null,null,null,null,null,null,null,null,null,null,"X"]
["HSHS3T",null,"RU","Rubi - All Other",null,"RSDBHS300",null,"HSHS3T",null,"3\"","Hole Shot Dry Diamond Core Bit (use with Grinder)",null,null,null,null,null,"RTC",null,null,"new",{"$f":"IF(Suggested=\"Yes\",'Price List'!AC381,'Price List'!AI381)","v":96.45},"EA",{"$f":"+Instructions!$B$3","v":"N"},null,{"$f":"+Instructions!$D$22","v":0},96.45,null,"new",96.45,0,96.45,0,null,{"$f":"+C381","v":"RU"},96.45,null,null,96.45,0,0,"",null,"X"]
[null,null,null,null,null,null,null,null,null,null,null,null,null,null,null,null,null,null,null,null,null,null,null,null,null,null,null,null,null,null,null,null,null,null,null,null,null,null,null,null,null,null,"X"]
[null,null,null,null,null,null,null,"RTC Porcelain Hole Shot Bil is designed to be used with minimal to no water on a grinder"]
[null,null,null,null,null,null,null,"with a 5/8 - 11 threaded spindle.  These bits offer the ability to cut dry for up to 40 holes per bit."]
[null,null,null,null,null,null,null,null,null,null,null,null,null,null,null,null,null,null,null,null,null,null,null,null,null,null,null,null,null,null,null,null,null,null,null,null,null,null,null,null,null,null,"X"]
[null,null,null,null,null,"Diamond Grinding Bits - to enlarge or modify the diameter and shape of a previously drilled hole",null,null,null,null,null,null,null,null,null,null,null,null,null,null,null,null,null,null,null,null,null,null,null,null,null,null,null,null,null,null,null,null,null,null,null,null,"X"]
["06990",null,"RU","Rubi - All Other",null,"RU06990",null,6990,"3/8\"",null,"Cylindrical Diamond Milling Bit (use w/ Grinder)",null,null,null,null,null,"Rubi",null,null,"new",{"$f":"IF(Suggested=\"Yes\",'Price List'!AC387,'Price List'!AI387)","v":22.95},"EA",{"$f":"+Instructions!$B$3","v":"N"},null,{"$f":"+Instructions!$D$22","v":0},{"$f":"ROUND($AC387*(1-Y387)+0.004999,2)","v":22.95},null,"new",22.95,{"$f":"+Y387","v":0},{"$f":"+Z387","v":22.95},{"$f":"(AI387-AE387)/AI387","v":0},null,{"$f":"+C387","v":"RU"},{"$f":"SUM(AL387:AN387)+AG387","v":22.95},null,null,{"$f":"ROUND(AE387/(1-VLOOKUP(AH387,Group,2,FALSE)),2)","v":22.95},{"$f":"IF(VLOOKUP(AH387,Group,3,FALSE)=\"YES\",VLOOKUP(ROUND(ROUND(AL387,1)-AL387,2),Round,2,FALSE)+VLOOKUP(AH387,Group,4,FALSE),0)","v":0},{"$f":"IF(VLOOKUP(AH387,Group,5,FALSE)=\"\",0,ROUND(AL387-0.04999,1)-AL387+AO387)","v":0},{"$f":"IF(VLOOKUP(AH387,Group,5,FALSE)=\"\",\"\",VLOOKUP(AH387,Group,5,FALSE))","v":""},null,"X"]
["06991",null,"RU","Rubi - All Other",null,"RU06991",null,6991,"3/4\"",null,"Cylindrical Diamond Milling Bit (use w/ Grinder)",null,null,null,null,null,"Rubi",null,"Stock","new",{"$f":"IF(Suggested=\"Yes\",'Price List'!AC388,'Price List'!AI388)","v":27.8},"EA",{"$f":"+Instructions!$B$3","v":"N"},null,{"$f":"+Instructions!$D$22","v":0},{"$f":"ROUND($AC388*(1-Y388)+0.004999,2)","v":27.8},null,"new",27.8,{"$f":"+Y388","v":0},{"$f":"+Z388","v":27.8},{"$f":"(AI388-AE388)/AI388","v":0},null,{"$f":"+C388","v":"RU"},{"$f":"SUM(AL388:AN388)+AG388","v":27.8},null,null,{"$f":"ROUND(AE388/(1-VLOOKUP(AH388,Group,2,FALSE)),2)","v":27.8},{"$f":"IF(VLOOKUP(AH388,Group,3,FALSE)=\"YES\",VLOOKUP(ROUND(ROUND(AL388,1)-AL388,2),Round,2,FALSE)+VLOOKUP(AH388,Group,4,FALSE),0)","v":0},{"$f":"IF(VLOOKUP(AH388,Group,5,FALSE)=\"\",0,ROUND(AL388-0.04999,1)-AL388+AO388)","v":0},{"$f":"IF(VLOOKUP(AH388,Group,5,FALSE)=\"\",\"\",VLOOKUP(AH388,Group,5,FALSE))","v":""},null,"X"]
[null,null,null,null,null,null,null,null,null,null,null,null,null,null,null,null,null,null,null,null,null,null,null,null,null,null,null,null,null,null,null,null,null,null,null,null,null,null,null,null,null,null,"X"]
["06988",null,"RU","Rubi - All Other",null,"RU06988",null,6988,"0\" to 1-3/8\"",null,"Conical Diamond Milling Bit (use w/ Grinder)",null,null,null,null,null,"Rubi",null,"Stock","new",{"$f":"IF(Suggested=\"Yes\",'Price List'!AC390,'Price List'!AI390)","v":39.75},"EA",{"$f":"+Instructions!$B$3","v":"N"},null,{"$f":"+Instructions!$D$22","v":0},39.75,null,"new",39.75,0,39.75,0,null,{"$f":"+C390","v":"RU"},39.75,null,null,39.75,0,0,"",null,"X"]
["06989",null,"RU","Rubi - All Other",null,"RU06989",null,6989,"3/4\" to 1-7/8\"",null,"Conical Diamond Milling Bit (use w/ Grinder)",null,null,null,null,null,"Rubi",null,null,"new",{"$f":"IF(Suggested=\"Yes\",'Price List'!AC391,'Price List'!AI391)","v":55.65},"EA",{"$f":"+Instructions!$B$3","v":"N"},null,{"$f":"+Instructions!$D$22","v":0},55.65,null,"new",55.65,0,55.65,0,null,{"$f":"+C391","v":"RU"},55.65,null,null,55.65,0,0,"",null,"X"]
[null,null,null,null,null,null,null,null,null,null,null,null,null,null,null,null,null,null,null,null,null,null,null,null,null,null,null,null,null,null,null,null,null,null,null,null,null,null,null,null,null,null,"X"]
[null,null,null,null,null,"Nippers",null,null,null,null,null,null,null,null,null,null,null,null,null,null,null,null,null,null,null,null,null,null,null,null,null,null,null,null,null,null,null,null,null,null,null,null,"X"]
[83942,null,"RU","Rubi - All Other",null,"RU83942",null,"83942 Nippers for Porcelain and Glass Tiles",null,null,null,null,null,null,null,null,"Rubi",null,null,null,{"$f":"IF(Suggested=\"Yes\",'Price List'!AC394,'Price List'!AI394)","v":62.7},"EA",{"$f":"+Instructions!$B$3","v":"N"},null,{"$f":"+Instructions!$D$22","v":0},{"$f":"ROUND($AC394*(1-Y394)+0.004999,2)","v":62.7},null,"YES",62.7,{"$f":"+Y394","v":0},{"$f":"+Z394","v":62.7},{"$f":"(AI394-AE394)/AI394","v":0},null,{"$f":"+C394","v":"RU"},{"$f":"SUM(AL394:AN394)+AG394","v":62.7},null,null,{"$f":"ROUND(AE394/(1-VLOOKUP(AH394,Group,2,FALSE)),2)","v":62.7},{"$f":"IF(VLOOKUP(AH394,Group,3,FALSE)=\"YES\",VLOOKUP(ROUND(ROUND(AL394,1)-AL394,2),Round,2,FALSE)+VLOOKUP(AH394,Group,4,FALSE),0)","v":0},{"$f":"IF(VLOOKUP(AH394,Group,5,FALSE)=\"\",0,ROUND(AL394-0.04999,1)-AL394+AO394)","v":0},{"$f":"IF(VLOOKUP(AH394,Group,5,FALSE)=\"\",\"\",VLOOKUP(AH394,Group,5,FALSE))","v":""},null,"X"]
[null,null,null,null,null,null,null,null,null,null,null,null,null,null,null,null,null,null,null,null,null,null,null,null,null,null,null,null,null,null,null,null,null,null,null,null,null,null,null,null,null,null,"X"]
[null,null,null,null,"Mixers",null,null,null,null,null,null,null,null,null,null,null,null,null,null,null,null,null,null,null,null,null,null,null,null,null,null,null,null,null,null,null,null,null,null,null,null,null,"X"]
[null,null,null,null,null,null,null,null,null,null,null,null,null,null,null,null,null,null,null,null,null,null,null,null,null,null,null,null,null,null,null,null,null,null,null,null,null,null,null,null,null,null,"X"]
["MXDBM",null,"RS","RTC - All Other",null,"RSMXMXDBM",null,"MXDBM Double Box Mixing Paddle",null,null,null,null,null,null,null,null,"RTC",null,"Stock","new",{"$f":"IF(Suggested=\"Yes\",'Price List'!AC398,'Price List'!AI398)","v":14.05},"EA",{"$f":"+Instructions!$B$3","v":"N"},null,{"$f":"+Instructions!$D$22","v":0},{"$f":"ROUND($AC398*(1-Y398)+0.004999,2)","v":14.05},null,"new",14.05,{"$f":"+Y398","v":0},14.05,{"$f":"(AI398-AE398)/AI398","v":0},null,{"$f":"+C398","v":"RS"},{"$f":"SUM(AL398:AN398)+AG398","v":14.05},null,null,{"$f":"ROUND(AE398/(1-VLOOKUP(AH398,Group,2,FALSE)),2)","v":14.05},{"$f":"IF(VLOOKUP(AH398,Group,3,FALSE)=\"YES\",VLOOKUP(ROUND(ROUND(AL398,1)-AL398,2),Round,2,FALSE)+VLOOKUP(AH398,Group,4,FALSE),0)","v":0},{"$f":"IF(VLOOKUP(AH398,Group,5,FALSE)=\"\",0,ROUND(AL398-0.04999,1)-AL398+AO398)","v":0},{"$f":"IF(VLOOKUP(AH398,Group,5,FALSE)=\"\",\"\",VLOOKUP(AH398,Group,5,FALSE))","v":""},null,"X"]
[null,null,null,null,null,null,null,null,null,null,null,null,null,null,null,null,null,null,null,null,null,null,null,null,null,null,null,null,null,null,null,null,null,null,null,null,null,null,null,null,null,null,"X"]
[null,null,null,null,"Water Heaters",null,null,null,null,null,null,null,null,null,null,null,null,null,null,null,null,null,null,null,null,null,null,null,null,null,null,null,null,null,null,null,null,null,null,null,null,null,"X"]
[null,null,null,null,null,null,null,null,null,null,null,null,null,null,null,null,null,null,null,null,null,null,null,null,null,null,null,null,null,null,null,null,null,null,null,null,null,null,null,null,null,null,"X"]
["05-742G",null,"TR","Troxell - All Other",null,"TX05742G",null,"05-742G 12\" Bucket Water Heater",null,null,null,null,null,null,null,null,"Troxell",null,"Stock","new",{"$f":"IF(Suggested=\"Yes\",'Price List'!AC402,'Price List'!AI402)","v":55.55},"EA",{"$f":"+Instructions!$B$3","v":"N"},null,{"$f":"+Instructions!$D$22","v":0},{"$f":"ROUND($AC402*(1-Y402)+0.004999,2)","v":55.55},null,"new",55.55,{"$f":"+Y402","v":0},{"$f":"+Z402","v":55.55},{"$f":"(AI402-AE402)/AI402","v":0},null,{"$f":"+C402","v":"TR"},{"$f":"SUM(AL402:AN402)+AG402","v":55.55},null,null,{"$f":"ROUND(AE402/(1-VLOOKUP(AH402,Group,2,FALSE)),2)","v":55.55},{"$f":"IF(VLOOKUP(AH402,Group,3,FALSE)=\"YES\",VLOOKUP(ROUND(ROUND(AL402,1)-AL402,2),Round,2,FALSE)+VLOOKUP(AH402,Group,4,FALSE),0)","v":0},{"$f":"IF(VLOOKUP(AH402,Group,5,FALSE)=\"\",0,ROUND(AL402-0.04999,1)-AL402+AO402)","v":0},{"$f":"IF(VLOOKUP(AH402,Group,5,FALSE)=\"\",\"\",VLOOKUP(AH402,Group,5,FALSE))","v":""},null,"X"]
[null,null,null,null,null,null,null,null,null,null,null,null,null,null,null,null,null,null,null,null,null,null,null,null,null,null,null,null,null,null,null,null,null,null,null,null,null,null,null,null,null,null,"X"]
[null,null,null,null,"Floor Protection",null,null,null,null,null,null,null,null,null,null,null,null,null,null,null,null,null,null,null,null,null,null,null,null,null,null,null,null,null,null,null,null,null,null,null,null,null,"X"]
[null,null,null,null,null,null,null,null,null,null,null,null,null,null,null,null,null,null,null,null,null,null,null,null,null,null,null,null,null,null,null,null,null,null,null,null,null,null,null,null,null,null,"X"]
[null,null,"PA","Pamarva - All Other",null,"PAGUARDIA300SF",null,"36in x 100ft Guardia Surface Protection",null,null,null,null,null,null,null,null,"Pamarva",null,"Stock",null,{"$f":"IF(Suggested=\"Yes\",'Price List'!AC406,'Price List'!AI406)","v":65.25},"EA",{"$f":"+Instructions!$B$3","v":"N"},null,{"$f":"+Instructions!$D$22","v":0},{"$f":"ROUND($AC406*(1-Y406)+0.004999,2)","v":65.25},null,"YES",65.25,{"$f":"+Y406","v":0},{"$f":"+Z406","v":65.25},{"$f":"(AI406-AE406)/AI406","v":{"$error":"#N/A"}},null,{"$f":"+C406","v":"PA"},{"$f":"SUM(AL406:AN406)+AG406","v":{"$error":"#N/A"}},null,null,{"$f":"ROUND(AE406/(1-VLOOKUP(AH406,Group,2,FALSE)),2)","v":{"$error":"#N/A"}},{"$f":"IF(VLOOKUP(AH406,Group,3,FALSE)=\"YES\",VLOOKUP(ROUND(ROUND(AL406,1)-AL406,2),Round,2,FALSE)+VLOOKUP(AH406,Group,4,FALSE),0)","v":{"$error":"#N/A"}},{"$f":"IF(VLOOKUP(AH406,Group,5,FALSE)=\"\",0,ROUND(AL406-0.04999,1)-AL406+AO406)","v":{"$error":"#N/A"}},{"$f":"IF(VLOOKUP(AH406,Group,5,FALSE)=\"\",\"\",VLOOKUP(AH406,Group,5,FALSE))","v":{"$error":"#N/A"}},null,"X"]
[null,null,null,null,null,null,null,null,null,null,null,null,null,null,null,null,null,null,null,null,null,null,null,null,null,null,null,null,null,null,null,null,null,null,null,null,null,null,null,null,null,null,"X"]
[null,null,null,null,"Suction Cups",null,null,null,null,null,null,null,null,null,null,null,null,null,null,null,null,null,null,null,null,null,null,null,null,null,null,null,null,null,null,null,null,null,null,null,null,null,"X"]
[null,null,null,null,null,null,null,null,null,null,null,null,null,null,null,null,null,null,null,null,null,null,null,null,null,null,null,null,null,null,null,null,null,null,null,null,null,null,null,null,null,null,"X"]
["STPG",null,"RS","RTC - All Other",null,"RSSCSTPG",null,"Suction Cup",null,null,"STPG - Pistol Grip Suction Tile Lifter - up to 33 lbs",null,null,null,null,null,"RTC",null,"Stock","new",{"$f":"IF(Suggested=\"Yes\",'Price List'!AC410,'Price List'!AI410)","v":13.9},"EA",{"$f":"+Instructions!$B$3","v":"N"},null,{"$f":"+Instructions!$D$22","v":0},{"$f":"ROUND($AC410*(1-Y410)+0.004999,2)","v":13.9},null,"new",13.9,{"$f":"+Y410","v":0},13.9,{"$f":"(AI410-AE410)/AI410","v":0},null,{"$f":"+C410","v":"RS"},{"$f":"SUM(AL410:AN410)+AG410","v":13.9},null,null,{"$f":"ROUND(AE410/(1-VLOOKUP(AH410,Group,2,FALSE)),2)","v":13.9},{"$f":"IF(VLOOKUP(AH410,Group,3,FALSE)=\"YES\",VLOOKUP(ROUND(ROUND(AL410,1)-AL410,2),Round,2,FALSE)+VLOOKUP(AH410,Group,4,FALSE),0)","v":0},{"$f":"IF(VLOOKUP(AH410,Group,5,FALSE)=\"\",0,ROUND(AL410-0.04999,1)-AL410+AO410)","v":0},{"$f":"IF(VLOOKUP(AH410,Group,5,FALSE)=\"\",\"\",VLOOKUP(AH410,Group,5,FALSE))","v":""},null,"X"]
["STPPCUP",null,"RS","RTC - All Other",null,"RSSCSTPPCUP",null,"Suction Cup",null,null,"STPPCUP - RTC 8\" Power Pro Vacuum Cup ",null,null,null,null,null,"RTC",null,"Stock","new",{"$f":"IF(Suggested=\"Yes\",'Price List'!AC411,'Price List'!AI411)","v":87.85},"EA",{"$f":"+Instructions!$B$3","v":"N"},null,{"$f":"+Instructions!$D$22","v":0},{"$f":"ROUND($AC411*(1-Y411)+0.004999,2)","v":87.85},null,"new",87.85,{"$f":"+Y411","v":0},{"$f":"+Z411","v":87.85},{"$f":"(AI411-AE411)/AI411","v":0},null,{"$f":"+C411","v":"RS"},{"$f":"SUM(AL411:AN411)+AG411","v":87.85},null,null,87.85,0,0,"",null,"X"]
[null,null,null,null,null,null,null,null,null,null,null,"w/ Pressure Gauge & Carrying Case"]
["GRABO",null,"RS","RTC - All Other",null,"RSSCGRABO",null,"Suction Cup - Electric",null,null,"GRABO - Grabo Battery Suction Cup ",null,null,null,null,null,"RTC",null,null,"new",{"$f":"IF(Suggested=\"Yes\",'Price List'!AC413,'Price List'!AI413)","v":213.75},"EA",{"$f":"+Instructions!$B$3","v":"N"},null,{"$f":"+Instructions!$D$22","v":0},{"$f":"ROUND($AC413*(1-Y413)+0.004999,2)","v":213.75},null,"new",213.75,{"$f":"+Y413","v":0},{"$f":"+Z413","v":213.75},{"$f":"(AI413-AE413)/AI413","v":0},null,{"$f":"+C413","v":"RS"},{"$f":"SUM(AL413:AN413)+AG413","v":213.75},null,null,{"$f":"ROUND(AE413/(1-VLOOKUP(AH413,Group,2,FALSE)),2)","v":213.75},{"$f":"IF(VLOOKUP(AH413,Group,3,FALSE)=\"YES\",VLOOKUP(ROUND(ROUND(AL413,1)-AL413,2),Round,2,FALSE)+VLOOKUP(AH413,Group,4,FALSE),0)","v":0},{"$f":"IF(VLOOKUP(AH413,Group,5,FALSE)=\"\",0,ROUND(AL413-0.04999,1)-AL413+AO413)","v":0},{"$f":"IF(VLOOKUP(AH413,Group,5,FALSE)=\"\",\"\",VLOOKUP(AH413,Group,5,FALSE))","v":""},null,"X"]
[null,null,null,null,null,null,null,null,null,null,null,"(Includes 1 Battery,Charger, Soft Case)"]
[null,null,null,null,null,null,null,null,null,null,null,null,null,null,null,null,null,null,null,null,null,null,null,null,null,null,null,null,null,null,null,null,null,null,null,null,null,null,null,null,null,null,"X"]
[null,null,null,null,"Gloves",null,null,null,null,null,null,null,null,null,null,null,null,null,null,null,null,null,null,null,null,null,null,null,null,null,null,null,null,null,null,null,null,null,null,null,null,null,"X"]
[]
["7844-L",null,"RS","RTC - All Other",null,"RSGL7844L",null,"Python Grip Nitrile Gloves",null,null,"7844 - Large",null,null,"(100 count/box)",null,null,"RTC",null,"Stock","new",{"$f":"IF(Suggested=\"Yes\",'Price List'!AC418,'Price List'!AI418)","v":27.95},"BOX",{"$f":"+Instructions!$B$3","v":"N"},null,{"$f":"+Instructions!$D$22","v":0},{"$f":"ROUND($AC418*(1-Y418)+0.004999,2)","v":27.95},null,"new",27.95,{"$f":"+Y418","v":0},27.95,{"$f":"(AI418-AE418)/AI418","v":0},null,{"$f":"+C418","v":"RS"},{"$f":"SUM(AL418:AN418)+AG418","v":27.95},null,null,{"$f":"ROUND(AE418/(1-VLOOKUP(AH418,Group,2,FALSE)),2)","v":27.95},{"$f":"IF(VLOOKUP(AH418,Group,3,FALSE)=\"YES\",VLOOKUP(ROUND(ROUND(AL418,1)-AL418,2),Round,2,FALSE)+VLOOKUP(AH418,Group,4,FALSE),0)","v":0},{"$f":"IF(VLOOKUP(AH418,Group,5,FALSE)=\"\",0,ROUND(AL418-0.04999,1)-AL418+AO418)","v":0},{"$f":"IF(VLOOKUP(AH418,Group,5,FALSE)=\"\",\"\",VLOOKUP(AH418,Group,5,FALSE))","v":""},null,"X"]
["7845-XL",null,"RS","RTC - All Other",null,"RSGL7845XL",null,"Python Grip Nitrile Gloves",null,null,"7845 - X-Large",null,null,"(100 count/box)",null,null,"RTC",null,"Stock","new",{"$f":"IF(Suggested=\"Yes\",'Price List'!AC419,'Price List'!AI419)","v":27.95},"BOX",{"$f":"+Instructions!$B$3","v":"N"},null,{"$f":"+Instructions!$D$22","v":0},{"$f":"ROUND($AC419*(1-Y419)+0.004999,2)","v":27.95},null,"new",27.95,0,27.95,{"$f":"(AI419-AE419)/AI419","v":0},null,{"$f":"+C419","v":"RS"},{"$f":"SUM(AL419:AN419)+AG419","v":27.95},null,null,{"$f":"ROUND(AE419/(1-VLOOKUP(AH419,Group,2,FALSE)),2)","v":27.95},{"$f":"IF(VLOOKUP(AH419,Group,3,FALSE)=\"YES\",VLOOKUP(ROUND(ROUND(AL419,1)-AL419,2),Round,2,FALSE)+VLOOKUP(AH419,Group,4,FALSE),0)","v":0},{"$f":"IF(VLOOKUP(AH419,Group,5,FALSE)=\"\",0,ROUND(AL419-0.04999,1)-AL419+AO419)","v":0},{"$f":"IF(VLOOKUP(AH419,Group,5,FALSE)=\"\",\"\",VLOOKUP(AH419,Group,5,FALSE))","v":""},null,"X"]
["7846-XXL",null,"RS","RTC - All Other",null,"RSGL7846XXL",null,"Python Grip Nitrile Gloves",null,null,"7846 - XX-Large",null,null,"(100 count/box)",null,null,"RTC",null,"Stock","new",{"$f":"IF(Suggested=\"Yes\",'Price List'!AC420,'Price List'!AI420)","v":27.95},"BOX",{"$f":"+Instructions!$B$3","v":"N"},null,{"$f":"+Instructions!$D$22","v":0},{"$f":"ROUND($AC420*(1-Y420)+0.004999,2)","v":27.95},null,"new",27.95,0,27.95,{"$f":"(AI420-AE420)/AI420","v":0},null,{"$f":"+C420","v":"RS"},{"$f":"SUM(AL420:AN420)+AG420","v":27.95},null,null,{"$f":"ROUND(AE420/(1-VLOOKUP(AH420,Group,2,FALSE)),2)","v":27.95},{"$f":"IF(VLOOKUP(AH420,Group,3,FALSE)=\"YES\",VLOOKUP(ROUND(ROUND(AL420,1)-AL420,2),Round,2,FALSE)+VLOOKUP(AH420,Group,4,FALSE),0)","v":0},{"$f":"IF(VLOOKUP(AH420,Group,5,FALSE)=\"\",0,ROUND(AL420-0.04999,1)-AL420+AO420)","v":0},{"$f":"IF(VLOOKUP(AH420,Group,5,FALSE)=\"\",\"\",VLOOKUP(AH420,Group,5,FALSE))","v":""},null,"X"]
[null,null,null,null,null,null,null,null,null,null,null,null,null,null,null,null,null,null,null,null,null,null,null,null,null,null,null,null,null,null,null,null,null,null,null,null,null,null,null,null,null,null,"X"]
[]
[]
[null,null,null,null,"SEE NEXT PAGE FOR GAUGED TILES/PANELS TOOLS",null,null,null,null,null,null,null,null,null,null,null,null,null,null,null,null,null,null,null,null,null,null,null,null,null,null,null,null,null,null,null,null,null,null,null,null,null,"X"]
[]
[null,null,null,null,null,null,null,null,null,null,null,null,"Large Gauged Tiles/Panels Tools",null,null,null,null,null,null,null,null,null,null,null,null,null,null,null,null,null,null,null,null,null,null,null,null,null,null,null,null,null,"X"]
[null,null,null,null,null,null,null,null,null,null,null,null,null,null,null,null,null,null,null,null,null,null,null,null,null,null,null,null,null,null,null,null,null,null,null,null,null,null,null,null,null,null,"X"]
[null,null,null,null,"Handling & Transport Equipment",null,null,null,null,null,null,null,null,null,null,null,null,null,null,null,null,null,null,null,null,null,null,null,null,null,null,null,null,null,null,null,null,null,null,null,null,null,"X"]
[null,null,null,null,null,null,null,null,null,null,null,null,null,null,null,null,null,null,null,null,null,null,null,null,null,null,null,null,null,null,null,null,null,null,null,null,null,null,null,null,null,null,"X"]
[null,null,null,null,null,"Handling",null,null,null,null,null,null,null,null,null,null,null,null,null,null,null,null,null,null,null,null,null,null,null,null,null,null,null,null,null,null,null,null,null,null,null,null,"X"]
[null,null,"RU1","Rubi - Saws/Cutters",null,"RU18982",null,"18982","Slab Transfer Heavy Duty: 2' x 10' Adjustable Frame w/ 6 Suction Cups",null,null,null,null,null,null,null,"Rubi",null,null,null,{"$f":"IF(Suggested=\"Yes\",'Price List'!AC431,'Price List'!AI431)","v":2299.35},"EA",{"$f":"+Instructions!$B$3","v":"N"},null,{"$f":"+Instructions!$D$22","v":0},{"$f":"ROUND($AC431*(1-Y431)+0.004999,2)","v":2299.35},null,"YES",2299.35,{"$f":"+Y431","v":0},2299.35,{"$f":"(AI431-AE431)/AI431","v":0},null,{"$f":"+C431","v":"RU1"},{"$f":"SUM(AL431:AN431)+AG431","v":2299.35},null,null,{"$f":"ROUND(AE431/(1-VLOOKUP(AH431,Group,2,FALSE)),2)","v":2299.35},{"$f":"IF(VLOOKUP(AH431,Group,3,FALSE)=\"YES\",VLOOKUP(ROUND(ROUND(AL431,1)-AL431,2),Round,2,FALSE)+VLOOKUP(AH431,Group,4,FALSE),0)","v":0},{"$f":"IF(VLOOKUP(AH431,Group,5,FALSE)=\"\",0,ROUND(AL431-0.04999,1)-AL431+AO431)","v":0},{"$f":"IF(VLOOKUP(AH431,Group,5,FALSE)=\"\",\"\",VLOOKUP(AH431,Group,5,FALSE))","v":""},null,"X"]
[null,null,null,null,null,null,null,null,"  - Maximum load capacity 375 lbs"]
[null,null,"RU1","Rubi - Saws/Cutters",null,"RU18976",null,"18976","Slim Easy Transfer Plus: 2 - 10' Adjustable Frame w/ 6 Suction Cups",null,null,null,null,null,null,null,"Rubi",null,"Stock",null,{"$f":"IF(Suggested=\"Yes\",'Price List'!AC433,'Price List'!AI433)","v":1299.25},"EA",{"$f":"+Instructions!$B$3","v":"N"},null,{"$f":"+Instructions!$D$22","v":0},1299.25,null,"YES",1299.25,0,1299.25,0,null,{"$f":"+C433","v":"RU1"},1299.25,null,null,1299.25,0,0,"",null,"X"]
[null,null,null,null,null,null,null,null,"  - Maximum load capacity 176 lbs"]
[null,null,"RU1","Rubi - Saws/Cutters",null,"RU18819",null,"18819","Slim Easy Trans Cross Beams for the 18976 (Set of 2)",null,null,null,null,null,null,null,"Rubi",null,"Stock",null,{"$f":"IF(Suggested=\"Yes\",'Price List'!AC435,'Price List'!AI435)","v":295.35000000000002},"SET",{"$f":"+Instructions!$B$3","v":"N"},null,{"$f":"+Instructions!$D$22","v":0},{"$f":"ROUND($AC435*(1-Y435)+0.004999,2)","v":295.35000000000002},null,"YES",295.35000000000002,{"$f":"+Y435","v":0},{"$f":"+Z435","v":295.35000000000002},{"$f":"(AI435-AE435)/AI435","v":0},null,{"$f":"+C435","v":"RU1"},{"$f":"SUM(AL435:AN435)+AG435","v":295.35000000000002},null,null,{"$f":"ROUND(AE435/(1-VLOOKUP(AH435,Group,2,FALSE)),2)","v":295.35000000000002},{"$f":"IF(VLOOKUP(AH435,Group,3,FALSE)=\"YES\",VLOOKUP(ROUND(ROUND(AL435,1)-AL435,2),Round,2,FALSE)+VLOOKUP(AH435,Group,4,FALSE),0)","v":0},{"$f":"IF(VLOOKUP(AH435,Group,5,FALSE)=\"\",0,ROUND(AL435-0.04999,1)-AL435+AO435)","v":0},{"$f":"IF(VLOOKUP(AH435,Group,5,FALSE)=\"\",\"\",VLOOKUP(AH435,Group,5,FALSE))","v":""},null,"X"]
[null,null,null,null,null,null,null,null,"  - Increase 18976 Slim Easy Maximum load capacity to 275 lbs"]
[null,null,"RU1","Rubi - Saws/Cutters",null,"RU18983",null,"18983","Slab Transfer Mini: 6'' Adjustable Length Frame w/ 2 Suction Cups",null,null,null,null,null,null,null,"Rubi",null,null,null,{"$f":"IF(Suggested=\"Yes\",'Price List'!AC437,'Price List'!AI437)","v":515.1},"EA",{"$f":"+Instructions!$B$3","v":"N"},null,{"$f":"+Instructions!$D$22","v":0},515.1,null,"YES",515.1,0,515.1,0,null,{"$f":"+C437","v":"RU1"},515.1,null,null,515.1,0,0,"",null,"X"]
[null,null,null,null,null,null,null,null,"  - Great for 24x48 up to 60x60 Tiles"]
[null,null,null,null,null,null,null,null,null,null,null,null,null,null,null,null,null,null,null,null,null,null,null,null,null,null,null,null,null,null,null,null,null,null,null,null,null,null,null,null,null,null,"X"]
[null,null,null,null,null,"Transport",null,null,null,null,null,null,null,null,null,null,null,null,null,null,null,null,null,null,null,null,null,null,null,null,null,null,null,null,null,null,null,null,null,null,null,null,"X"]
[null,null,"RU1","Rubi - Saws/Cutters",null,"RU18983",null,"18983","Slab Trans Mini",null,null,null,null,null,null,null,"Rubi",null,null,null,{"$f":"IF(Suggested=\"Yes\",'Price List'!AC441,'Price List'!AI441)","v":517.29999999999995},"EA",{"$f":"+Instructions!$B$3","v":"N"},null,{"$f":"+Instructions!$D$22","v":0},{"$f":"ROUND($AC441*(1-Y441)+0.004999,2)","v":517.29999999999995},null,"YES",517.29999999999995,{"$f":"+Y441","v":0},{"$f":"+Z441","v":517.29999999999995},{"$f":"(AI441-AE441)/AI441","v":0},null,{"$f":"+C441","v":"RU1"},{"$f":"SUM(AL441:AN441)+AG441","v":517.29999999999995},null,null,{"$f":"ROUND(AE441/(1-VLOOKUP(AH441,Group,2,FALSE)),2)","v":517.29999999999995},{"$f":"IF(VLOOKUP(AH441,Group,3,FALSE)=\"YES\",VLOOKUP(ROUND(ROUND(AL441,1)-AL441,2),Round,2,FALSE)+VLOOKUP(AH441,Group,4,FALSE),0)","v":0},{"$f":"IF(VLOOKUP(AH441,Group,5,FALSE)=\"\",0,ROUND(AL441-0.04999,1)-AL441+AO441)","v":0},{"$f":"IF(VLOOKUP(AH441,Group,5,FALSE)=\"\",\"\",VLOOKUP(AH441,Group,5,FALSE))","v":""},null,"X"]
[null,null,null,null,null,null,null,null,null,null,null,null,null,null,null,null,null,null,null,null,null,null,null,null,null,null,null,null,null,null,null,null,null,null,null,null,null,null,null,null,null,null,"X"]
[null,null,null,null,null,"Cutting Table",null,null,null,null,null,null,null,null,null,null,null,null,null,null,null,null,null,null,null,null,null,null,null,null,null,null,null,null,null,null,null,null,null,null,null,null,"X"]
[null,null,"RU1","Rubi - Saws/Cutters",null,"RU18935",null,"18935","Slab Table - 42\" x 72\"",null,null,null,null,null,null,null,"Rubi",null,null,null,{"$f":"IF(Suggested=\"Yes\",'Price List'!AC444,'Price List'!AI444)","v":830.35},"EA",{"$f":"+Instructions!$B$3","v":"N"},null,{"$f":"+Instructions!$D$22","v":0},{"$f":"ROUND($AC444*(1-Y444)+0.004999,2)","v":830.35},null,"YES",830.35,{"$f":"+Y444","v":0},{"$f":"+Z444","v":830.35},{"$f":"(AI444-AE444)/AI444","v":0},null,{"$f":"+C444","v":"RU1"},{"$f":"SUM(AL444:AN444)+AG444","v":830.35},null,null,{"$f":"ROUND(AE444/(1-VLOOKUP(AH444,Group,2,FALSE)),2)","v":830.35},{"$f":"IF(VLOOKUP(AH444,Group,3,FALSE)=\"YES\",VLOOKUP(ROUND(ROUND(AL444,1)-AL444,2),Round,2,FALSE)+VLOOKUP(AH444,Group,4,FALSE),0)","v":0},{"$f":"IF(VLOOKUP(AH444,Group,5,FALSE)=\"\",0,ROUND(AL444-0.04999,1)-AL444+AO444)","v":0},{"$f":"IF(VLOOKUP(AH444,Group,5,FALSE)=\"\",\"\",VLOOKUP(AH444,Group,5,FALSE))","v":""},null,"X"]
[null,null,null,null,null,null,null,null,null,null,null,null,null,null,null,null,null,null,null,null,null,null,null,null,null,null,null,null,null,null,null,null,null,null,null,null,null,null,null,null,null,null,"X"]
[null,null,null,null,"Tile Cutters & Accessories",null,null,null,null,null,null,null,null,null,null,null,null,null,null,null,null,null,null,null,null,null,null,null,null,null,null,null,null,null,null,null,null,null,null,null,null,null,"X"]
[null,null,null,null,null,null,null,null,null,null,null,null,null,null,null,null,null,null,null,null,null,null,null,null,null,null,null,null,null,null,null,null,null,null,null,null,null,null,null,null,null,null,"X"]
[null,null,null,null,null,"Rail Cutters",null,null,null,null,null,null,null,null,null,null,null,null,null,null,null,null,null,null,null,null,null,null,null,null,null,null,null,null,null,null,null,null,null,null,null,null,"X"]
[null,null,"RU1","Rubi - Saws/Cutters",null,"RU16900",null,"16900","Slab Cutter G3 (kit allows cuts up to 10')",null,null,null,null,null,null,null,"Rubi",null,null,null,{"$f":"IF(Suggested=\"Yes\",'Price List'!AC449,'Price List'!AI449)","v":835.15},"EA",{"$f":"+Instructions!$B$3","v":"N"},null,{"$f":"+Instructions!$D$22","v":0},{"$f":"ROUND($AC449*(1-Y449)+0.004999,2)","v":835.15},null,"YES",835.15,{"$f":"+Y449","v":0},{"$f":"+Z449","v":835.15},{"$f":"(AI449-AE449)/AI449","v":0},null,{"$f":"+C449","v":"RU1"},{"$f":"SUM(AL449:AN449)+AG449","v":835.15},null,null,{"$f":"ROUND(AE449/(1-VLOOKUP(AH449,Group,2,FALSE)),2)","v":835.15},{"$f":"IF(VLOOKUP(AH449,Group,3,FALSE)=\"YES\",VLOOKUP(ROUND(ROUND(AL449,1)-AL449,2),Round,2,FALSE)+VLOOKUP(AH449,Group,4,FALSE),0)","v":0},{"$f":"IF(VLOOKUP(AH449,Group,5,FALSE)=\"\",0,ROUND(AL449-0.04999,1)-AL449+AO449)","v":0},{"$f":"IF(VLOOKUP(AH449,Group,5,FALSE)=\"\",\"\",VLOOKUP(AH449,Group,5,FALSE))","v":""},null,"X"]
[null,null,null,null,null,null,null,null,"  - Suction cups integrated into rails to allow for thinner cuts"]
[null,null,null,null,null,null,null,null,"  - Adjustable height scoring mechanism"]
[null,null,null,null,null,null,null,null,"  - Kit includes rail guides, scoring trolley with 7/8\" Extreme scoring"]
[null,null,null,null,null,null,null,null,"    wheel, separating pliers, 3 suction cups"]
[null,null,null,null,null,null,null,null,null,null,null,null,null,null,null,null,null,null,null,null,null,null,null,null,null,null,null,null,null,null,null,null,null,null,null,null,null,null,null,null,null,null,"X"]
[null,null,"RU1","Rubi - Saws/Cutters",null,"RU23999",null,"23999","Slim Cutter G2 (kit allows for cuts up to 10')",null,null,null,null,null,null,null,"Rubi",null,"Stock",null,{"$f":"IF(Suggested=\"Yes\",'Price List'!AC455,'Price List'!AI455)","v":582.35},"EA",{"$f":"+Instructions!$B$3","v":"N"},null,{"$f":"+Instructions!$D$22","v":0},{"$f":"ROUND($AC455*(1-Y455)+0.004999,2)","v":582.35},null,"YES",582.35,{"$f":"+Y455","v":0},{"$f":"+Z455","v":582.35},{"$f":"(AI455-AE455)/AI455","v":0},null,{"$f":"+C455","v":"RU1"},{"$f":"SUM(AL455:AN455)+AG455","v":582.35},null,null,{"$f":"ROUND(AE455/(1-VLOOKUP(AH455,Group,2,FALSE)),2)","v":582.35},{"$f":"IF(VLOOKUP(AH455,Group,3,FALSE)=\"YES\",VLOOKUP(ROUND(ROUND(AL455,1)-AL455,2),Round,2,FALSE)+VLOOKUP(AH455,Group,4,FALSE),0)","v":0},{"$f":"IF(VLOOKUP(AH455,Group,5,FALSE)=\"\",0,ROUND(AL455-0.04999,1)-AL455+AO455)","v":0},{"$f":"IF(VLOOKUP(AH455,Group,5,FALSE)=\"\",\"\",VLOOKUP(AH455,Group,5,FALSE))","v":""},null,"X"]
[null,null,null,null,null,null,null,null,"  - Kit includes rail guides, scoring trolley with 7/8\" Extreme scoring"]
[null,null,null,null,null,null,null,null,"    wheel, separating pliers, 3 suction cups"]
[null,null,null,null,null,null,null,null,null,null,null,null,null,null,null,null,null,null,null,null,null,null,null,null,null,null,null,null,null,null,null,null,null,null,null,null,null,null,null,null,null,null,"X"]
[null,null,"RU1","Rubi - Saws/Cutters",null,"RUTC125",null,"51977","TC125 Circular Saw (120V, 60Hz)",null,null,null,null,null,null,null,"Rubi",null,null,null,{"$f":"IF(Suggested=\"Yes\",'Price List'!AC459,'Price List'!AI459)","v":403.1},"EA",{"$f":"+Instructions!$B$3","v":"N"},null,{"$f":"+Instructions!$D$22","v":0},{"$f":"ROUND($AC459*(1-Y459)+0.004999,2)","v":403.1},null,"YES",403.1,{"$f":"+Y459","v":0},403.1,{"$f":"(AI459-AE459)/AI459","v":0},null,{"$f":"+C459","v":"RU1"},{"$f":"SUM(AL459:AN459)+AG459","v":403.1},null,null,{"$f":"ROUND(AE459/(1-VLOOKUP(AH459,Group,2,FALSE)),2)","v":403.1},{"$f":"IF(VLOOKUP(AH459,Group,3,FALSE)=\"YES\",VLOOKUP(ROUND(ROUND(AL459,1)-AL459,2),Round,2,FALSE)+VLOOKUP(AH459,Group,4,FALSE),0)","v":0},{"$f":"IF(VLOOKUP(AH459,Group,5,FALSE)=\"\",0,ROUND(AL459-0.04999,1)-AL459+AO459)","v":0},{"$f":"IF(VLOOKUP(AH459,Group,5,FALSE)=\"\",\"\",VLOOKUP(AH459,Group,5,FALSE))","v":""},null,"X"]
[null,null,null,null,null,null,null,null,"  - Equiped with sliding platform to be used with 23999 Slim Cutter G2"]
[null,null,"RU1","Rubi - Saws/Cutters",null,"RUTC125G",null,"51949","Guides & Accessories for TC125 Circular Saw",null,null,null,null,null,null,null,"Rubi",null,null,null,{"$f":"IF(Suggested=\"Yes\",'Price List'!AC461,'Price List'!AI461)","v":414.3},"EA",{"$f":"+Instructions!$B$3","v":"N"},null,{"$f":"+Instructions!$D$22","v":0},{"$f":"ROUND($AC461*(1-Y461)+0.004999,2)","v":414.3},null,"YES",414.3,0,414.3,{"$f":"(AI461-AE461)/AI461","v":0},null,{"$f":"+C461","v":"RU1"},{"$f":"SUM(AL461:AN461)+AG461","v":414.3},null,null,{"$f":"ROUND(AE461/(1-VLOOKUP(AH461,Group,2,FALSE)),2)","v":414.3},{"$f":"IF(VLOOKUP(AH461,Group,3,FALSE)=\"YES\",VLOOKUP(ROUND(ROUND(AL461,1)-AL461,2),Round,2,FALSE)+VLOOKUP(AH461,Group,4,FALSE),0)","v":0},{"$f":"IF(VLOOKUP(AH461,Group,5,FALSE)=\"\",0,ROUND(AL461-0.04999,1)-AL461+AO461)","v":0},{"$f":"IF(VLOOKUP(AH461,Group,5,FALSE)=\"\",\"\",VLOOKUP(AH461,Group,5,FALSE))","v":""},null,"X"]
[null,null,null,null,null,null,null,null,null,null,null,null,null,null,null,null,null,null,null,null,null,null,null,null,null,null,null,null,null,null,null,null,null,null,null,null,null,null,null,null,null,null,"X"]
[null,null,null,null,null,"Breakers",null,null,null,null,null,null,null,null,null,null,null,null,null,null,null,null,null,null,null,null,null,null,null,null,null,null,null,null,null,null,null,null,null,null,null,null,"X"]
[null,null,"RU","Rubi - All Other",null,"RU18917",null,"18917","Slim Breaker (for breaking tile 3-15mm thick)",null,null,null,null,null,null,null,"Rubi",null,null,null,{"$f":"IF(Suggested=\"Yes\",'Price List'!AC464,'Price List'!AI464)","v":199.25},"EA",{"$f":"+Instructions!$B$3","v":"N"},null,{"$f":"+Instructions!$D$22","v":0},{"$f":"ROUND($AC464*(1-Y464)+0.004999,2)","v":199.25},null,"YES",199.25,{"$f":"+Y464","v":0},{"$f":"+Z464","v":199.25},{"$f":"(AI464-AE464)/AI464","v":0},null,{"$f":"+C464","v":"RU"},{"$f":"SUM(AL464:AN464)+AG464","v":199.25},null,null,{"$f":"ROUND(AE464/(1-VLOOKUP(AH464,Group,2,FALSE)),2)","v":199.25},{"$f":"IF(VLOOKUP(AH464,Group,3,FALSE)=\"YES\",VLOOKUP(ROUND(ROUND(AL464,1)-AL464,2),Round,2,FALSE)+VLOOKUP(AH464,Group,4,FALSE),0)","v":0},{"$f":"IF(VLOOKUP(AH464,Group,5,FALSE)=\"\",0,ROUND(AL464-0.04999,1)-AL464+AO464)","v":0},{"$f":"IF(VLOOKUP(AH464,Group,5,FALSE)=\"\",\"\",VLOOKUP(AH464,Group,5,FALSE))","v":""},null,"X"]
[null,null,null,null,null,null,null,null,null,null,null,null,null,null,null,null,null,null,null,null,null,null,null,null,null,null,null,null,null,null,null,null,null,null,null,null,null,null,null,null,null,null,"X"]
[null,null,null,null,null,"Scoring Wheels",null,null,null,null,null,null,null,null,null,null,null,null,null,null,null,null,null,null,null,null,null,null,null,null,null,null,null,null,null,null,null,null,null,null,null,null,"X"]
[null,null,"RU","Rubi - All Other",null,"RU01901",null,"01901","7/8\" (22 mm) Extreme Scoring Wheel",null,null,null,null,null,null,null,"Rubi",null,null,null,{"$f":"IF(Suggested=\"Yes\",'Price List'!AC467,'Price List'!AI467)","v":41.05},"EA",{"$f":"+Instructions!$B$3","v":"N"},null,{"$f":"+Instructions!$D$22","v":0},{"$f":"ROUND($AC467*(1-Y467)+0.004999,2)","v":41.05},null,"YES",41.05,{"$f":"+Y467","v":0},41.05,{"$f":"(AI467-AE467)/AI467","v":0},null,{"$f":"+C467","v":"RU"},{"$f":"SUM(AL467:AN467)+AG467","v":41.05},null,null,{"$f":"ROUND(AE467/(1-VLOOKUP(AH467,Group,2,FALSE)),2)","v":41.05},{"$f":"IF(VLOOKUP(AH467,Group,3,FALSE)=\"YES\",VLOOKUP(ROUND(ROUND(AL467,1)-AL467,2),Round,2,FALSE)+VLOOKUP(AH467,Group,4,FALSE),0)","v":0},{"$f":"IF(VLOOKUP(AH467,Group,5,FALSE)=\"\",0,ROUND(AL467-0.04999,1)-AL467+AO467)","v":0},{"$f":"IF(VLOOKUP(AH467,Group,5,FALSE)=\"\",\"\",VLOOKUP(AH467,Group,5,FALSE))","v":""},null,"X"]
[null,null,null,null,null,null,null,null,null,null,null,null,null,null,null,null,null,null,null,null,null,null,null,null,null,null,null,null,null,null,null,null,null,null,null,null,null,null,null,null,null,null,"X"]
[null,null,null,null,null,"Suction Cups",null,null,null,null,null,null,null,null,null,null,null,null,null,null,null,null,null,null,null,null,null,null,null,null,null,null,null,null,null,null,null,null,null,null,null,null,"X"]
["STPPCUP",null,"RS","RTC - All Other",null,"RSSCSTPPCUP",null,"Suction Cup",null,null,"STPPCUP - RTC 8\" Power Pro Vacuum Cup ",null,null,null,null,null,"RTC",null,"Stock","new",{"$f":"IF(Suggested=\"Yes\",'Price List'!AC470,'Price List'!AI470)","v":87.85},"EA",{"$f":"+Instructions!$B$3","v":"N"},null,{"$f":"+Instructions!$D$22","v":0},{"$f":"ROUND($AC470*(1-Y470)+0.004999,2)","v":87.85},null,"new",87.85,{"$f":"+Y470","v":0},{"$f":"+Z470","v":87.85},{"$f":"(AI470-AE470)/AI470","v":0},null,{"$f":"+C470","v":"RS"},{"$f":"SUM(AL470:AN470)+AG470","v":87.85},null,null,{"$f":"ROUND(AE470/(1-VLOOKUP(AH470,Group,2,FALSE)),2)","v":87.85},{"$f":"IF(VLOOKUP(AH470,Group,3,FALSE)=\"YES\",VLOOKUP(ROUND(ROUND(AL470,1)-AL470,2),Round,2,FALSE)+VLOOKUP(AH470,Group,4,FALSE),0)","v":0},{"$f":"IF(VLOOKUP(AH470,Group,5,FALSE)=\"\",0,ROUND(AL470-0.04999,1)-AL470+AO470)","v":0},{"$f":"IF(VLOOKUP(AH470,Group,5,FALSE)=\"\",\"\",VLOOKUP(AH470,Group,5,FALSE))","v":""},null,"X"]
[null,null,null,null,null,null,null,null,null,null,null,"w/ Pressure Gauge & Carrying Case"]
["GRABO",null,"RS","RTC - All Other",null,"RSSCGRABO",null,"Suction Cup - Electic",null,null,"GRABO - Grabo Battery Suction Cup ",null,null,null,null,null,"RTC",null,null,"new",{"$f":"IF(Suggested=\"Yes\",'Price List'!AC472,'Price List'!AI472)","v":213.75},"EA",{"$f":"+Instructions!$B$3","v":"N"},null,{"$f":"+Instructions!$D$22","v":0},{"$f":"ROUND($AC472*(1-Y472)+0.004999,2)","v":213.75},null,"new",213.75,{"$f":"+Y472","v":0},{"$f":"+Z472","v":213.75},{"$f":"(AI472-AE472)/AI472","v":0},null,{"$f":"+C472","v":"RS"},{"$f":"SUM(AL472:AN472)+AG472","v":213.75},null,null,{"$f":"ROUND(AE472/(1-VLOOKUP(AH472,Group,2,FALSE)),2)","v":213.75},{"$f":"IF(VLOOKUP(AH472,Group,3,FALSE)=\"YES\",VLOOKUP(ROUND(ROUND(AL472,1)-AL472,2),Round,2,FALSE)+VLOOKUP(AH472,Group,4,FALSE),0)","v":0},{"$f":"IF(VLOOKUP(AH472,Group,5,FALSE)=\"\",0,ROUND(AL472-0.04999,1)-AL472+AO472)","v":0},{"$f":"IF(VLOOKUP(AH472,Group,5,FALSE)=\"\",\"\",VLOOKUP(AH472,Group,5,FALSE))","v":""},null,"X"]
[null,null,null,null,null,null,null,null,null,null,null,"(Includes 1 Battery,Charger, Soft Case)"]
[null,null,null,null,null,null,null,null,null,null,null,null,null,null,null,null,null,null,null,null,null,null,null,null,null,null,null,null,null,null,null,null,null,null,null,null,null,null,null,null,null,null,"X"]
[null,null,null,null,"Setting - Tile Vibrator",null,null,null,null,null,null,null,null,null,null,null,null,null,null,null,null,null,null,null,null,null,null,null,null,null,null,null,null,null,null,null,null,null,null,null,null,null,"X"]
[null,null,null,null,null,null,null,null,null,null,null,null,null,null,null,null,null,null,null,null,null,null,null,null,null,null,null,null,null,null,null,null,null,null,null,null,null,null,null,null,null,null,"X"]
[null,null,"RU1","Rubi - Saws/Cutters",null,"RU18978",null,18978,"Rubi Triller - Compact Manual Tile Vibrator - Helps to Expel Trapped Air",null,null,null,null,null,null,null,"Rubi",null,null,null,{"$f":"IF(Suggested=\"Yes\",'Price List'!AC477,'Price List'!AI477)","v":472.3},"EA",{"$f":"+Instructions!$B$3","v":"N"},null,{"$f":"+Instructions!$D$22","v":0},{"$f":"ROUND($AC477*(1-Y477)+0.004999,2)","v":472.3},null,"YES",472.3,{"$f":"+Y477","v":0},{"$f":"+Z477","v":472.3},{"$f":"(AI477-AE477)/AI477","v":0},null,{"$f":"+C477","v":"RU1"},{"$f":"SUM(AL477:AN477)+AG477","v":472.3},null,null,{"$f":"ROUND(AE477/(1-VLOOKUP(AH477,Group,2,FALSE)),2)","v":472.3},{"$f":"IF(VLOOKUP(AH477,Group,3,FALSE)=\"YES\",VLOOKUP(ROUND(ROUND(AL477,1)-AL477,2),Round,2,FALSE)+VLOOKUP(AH477,Group,4,FALSE),0)","v":0},{"$f":"IF(VLOOKUP(AH477,Group,5,FALSE)=\"\",0,ROUND(AL477-0.04999,1)-AL477+AO477)","v":0},{"$f":"IF(VLOOKUP(AH477,Group,5,FALSE)=\"\",\"\",VLOOKUP(AH477,Group,5,FALSE))","v":""},null,"X"]
[]
[null,null,null,null,"Edge Finishing",null,null,null,null,null,null,null,null,null,null,null,null,null,null,null,null,null,null,null,null,null,null,null,null,null,null,null,null,null,null,null,null,null,null,null,null,null,"X"]
[null,null,null,null,null,null,null,null,null,null,null,null,null,null,null,null,null,null,null,null,null,null,null,null,null,null,null,null,null,null,null,null,null,null,null,null,null,null,null,null,null,null,"X"]
[null,null,"RU1","Rubi - Saws/Cutters",null,"RU16901",null,"16901","Pro-Edger 5/8\" for Mitering and Beveling",null,null,null,null,null,null,null,"Rubi",null,"Stock",null,{"$f":"IF(Suggested=\"Yes\",'Price List'!AC481,'Price List'!AI481)","v":470.4},"EA",{"$f":"+Instructions!$B$3","v":"N"},null,{"$f":"+Instructions!$D$22","v":0},{"$f":"ROUND($AC481*(1-Y481)+0.004999,2)","v":470.4},null,"YES",470.4,{"$f":"+Y481","v":0},{"$f":"+Z481","v":470.4},{"$f":"(AI481-AE481)/AI481","v":0},null,{"$f":"+C481","v":"RU1"},{"$f":"SUM(AL481:AN481)+AG481","v":470.4},null,null,{"$f":"ROUND(AE481/(1-VLOOKUP(AH481,Group,2,FALSE)),2)","v":470.4},{"$f":"IF(VLOOKUP(AH481,Group,3,FALSE)=\"YES\",VLOOKUP(ROUND(ROUND(AL481,1)-AL481,2),Round,2,FALSE)+VLOOKUP(AH481,Group,4,FALSE),0)","v":0},{"$f":"IF(VLOOKUP(AH481,Group,5,FALSE)=\"\",0,ROUND(AL481-0.04999,1)-AL481+AO481)","v":0},{"$f":"IF(VLOOKUP(AH481,Group,5,FALSE)=\"\",\"\",VLOOKUP(AH481,Group,5,FALSE))","v":""},null,"X"]
[null,null,null,null,null,null,null,null,null,null,null,null,null,null,null,null,null,null,null,null,null,null,null,null,null,null,null,null,null,null,null,null,null,null,null,null,null,null,null,null,null,null,"X"]
[null,null,null,null,null,"Grinding Cups - For the Rubi 16901 Pro-Edger",null,null,null,null,null,null,null,null,null,null,null,null,null,null,null,null,null,null,null,null,null,null,null,null,null,null,null,null,null,null,null,null,null,null,null,null,"X"]
[null,null,"RU","Rubi - All Other",null,"RU16957",null,"16957","Pro-Edger R5 for high precision, blunt beveling (Fine Grain)",null,null,null,null,null,null,null,"Rubi",null,null,null,{"$f":"IF(Suggested=\"Yes\",'Price List'!AC484,'Price List'!AI484)","v":75.400000000000006},"EA",{"$f":"+Instructions!$B$3","v":"N"},null,{"$f":"+Instructions!$D$22","v":0},{"$f":"ROUND($AC484*(1-Y484)+0.004999,2)","v":75.400000000000006},null,"YES",75.400000000000006,{"$f":"+Y484","v":0},{"$f":"+Z484","v":75.400000000000006},{"$f":"(AI484-AE484)/AI484","v":0},null,{"$f":"+C484","v":"RU"},{"$f":"SUM(AL484:AN484)+AG484","v":75.400000000000006},null,null,{"$f":"ROUND(AE484/(1-VLOOKUP(AH484,Group,2,FALSE)),2)","v":75.400000000000006},{"$f":"IF(VLOOKUP(AH484,Group,3,FALSE)=\"YES\",VLOOKUP(ROUND(ROUND(AL484,1)-AL484,2),Round,2,FALSE)+VLOOKUP(AH484,Group,4,FALSE),0)","v":0},{"$f":"IF(VLOOKUP(AH484,Group,5,FALSE)=\"\",0,ROUND(AL484-0.04999,1)-AL484+AO484)","v":0},{"$f":"IF(VLOOKUP(AH484,Group,5,FALSE)=\"\",\"\",VLOOKUP(AH484,Group,5,FALSE))","v":""},null,"X"]
[null,null,"RU","Rubi - All Other",null,"RU16958",null,"16958","Pro-Edger R10 for high precision, blunt beveling (Smooth Grain)",null,null,null,null,null,null,null,"Rubi",null,null,null,{"$f":"IF(Suggested=\"Yes\",'Price List'!AC485,'Price List'!AI485)","v":75.400000000000006},"EA",{"$f":"+Instructions!$B$3","v":"N"},null,{"$f":"+Instructions!$D$22","v":0},75.400000000000006,null,"YES",75.400000000000006,0,75.400000000000006,0,null,{"$f":"+C485","v":"RU"},75.400000000000006,null,null,{"$f":"ROUND(AE485/(1-VLOOKUP(AH485,Group,2,FALSE)),2)","v":75.400000000000006},{"$f":"IF(VLOOKUP(AH485,Group,3,FALSE)=\"YES\",VLOOKUP(ROUND(ROUND(AL485,1)-AL485,2),Round,2,FALSE)+VLOOKUP(AH485,Group,4,FALSE),0)","v":0},{"$f":"IF(VLOOKUP(AH485,Group,5,FALSE)=\"\",0,ROUND(AL485-0.04999,1)-AL485+AO485)","v":0},{"$f":"IF(VLOOKUP(AH485,Group,5,FALSE)=\"\",\"\",VLOOKUP(AH485,Group,5,FALSE))","v":""},null,"X"]
[null,null,"RU","Rubi - All Other",null,"RU16984",null,"16984","45x15mm for high precision mitering - Continuous (Fine Grain)",null,null,null,null,null,null,null,"Rubi",null,"Stock",null,{"$f":"IF(Suggested=\"Yes\",'Price List'!AC486,'Price List'!AI486)","v":108.9},"EA",{"$f":"+Instructions!$B$3","v":"N"},null,{"$f":"+Instructions!$D$22","v":0},108.9,null,"YES",108.9,0,108.9,0,null,{"$f":"+C486","v":"RU"},108.9,null,null,{"$f":"ROUND(AE486/(1-VLOOKUP(AH486,Group,2,FALSE)),2)","v":108.9},{"$f":"IF(VLOOKUP(AH486,Group,3,FALSE)=\"YES\",VLOOKUP(ROUND(ROUND(AL486,1)-AL486,2),Round,2,FALSE)+VLOOKUP(AH486,Group,4,FALSE),0)","v":0},{"$f":"IF(VLOOKUP(AH486,Group,5,FALSE)=\"\",0,ROUND(AL486-0.04999,1)-AL486+AO486)","v":0},{"$f":"IF(VLOOKUP(AH486,Group,5,FALSE)=\"\",\"\",VLOOKUP(AH486,Group,5,FALSE))","v":""},null,"X"]
[null,null,"RU","Rubi - All Other",null,"RU16985",null,"16985","45x15mm for high precision mitering - Turbo Twist (Coarse Grain)",null,null,null,null,null,null,null,"Rubi",null,"Stock",null,{"$f":"IF(Suggested=\"Yes\",'Price List'!AC487,'Price List'!AI487)","v":108.9},"EA",{"$f":"+Instructions!$B$3","v":"N"},null,{"$f":"+Instructions!$D$22","v":0},108.9,null,"YES",108.9,0,108.9,0,null,{"$f":"+C487","v":"RU"},108.9,null,null,{"$f":"ROUND(AE487/(1-VLOOKUP(AH487,Group,2,FALSE)),2)","v":108.9},{"$f":"IF(VLOOKUP(AH487,Group,3,FALSE)=\"YES\",VLOOKUP(ROUND(ROUND(AL487,1)-AL487,2),Round,2,FALSE)+VLOOKUP(AH487,Group,4,FALSE),0)","v":0},{"$f":"IF(VLOOKUP(AH487,Group,5,FALSE)=\"\",0,ROUND(AL487-0.04999,1)-AL487+AO487)","v":0},{"$f":"IF(VLOOKUP(AH487,Group,5,FALSE)=\"\",\"\",VLOOKUP(AH487,Group,5,FALSE))","v":""},null,"X"]
[null,null,"RU","Rubi - All Other",null,"RU16946",null,"16946","45x20mm for high precision mitering - Continuous (Fine Grain)",null,null,null,null,null,null,null,"Rubi",null,null,null,{"$f":"IF(Suggested=\"Yes\",'Price List'!AC488,'Price List'!AI488)","v":125.65},"EA",{"$f":"+Instructions!$B$3","v":"N"},null,{"$f":"+Instructions!$D$22","v":0},125.65,null,"YES",125.65,{"$f":"+Y488","v":0},{"$f":"+Z488","v":125.65},{"$f":"(AI488-AE488)/AI488","v":0},null,{"$f":"+C488","v":"RU"},{"$f":"SUM(AL488:AN488)+AG488","v":125.65},null,null,{"$f":"ROUND(AE488/(1-VLOOKUP(AH488,Group,2,FALSE)),2)","v":125.65},{"$f":"IF(VLOOKUP(AH488,Group,3,FALSE)=\"YES\",VLOOKUP(ROUND(ROUND(AL488,1)-AL488,2),Round,2,FALSE)+VLOOKUP(AH488,Group,4,FALSE),0)","v":0},{"$f":"IF(VLOOKUP(AH488,Group,5,FALSE)=\"\",0,ROUND(AL488-0.04999,1)-AL488+AO488)","v":0},{"$f":"IF(VLOOKUP(AH488,Group,5,FALSE)=\"\",\"\",VLOOKUP(AH488,Group,5,FALSE))","v":""},null,"X"]
[null,null,null,null,null,null,null,null,null,null,null,null,null,null,null,null,null,null,null,null,null,null,null,null,null,null,null,null,null,null,null,null,null,null,null,null,null,null,null,null,null,null,"X"]
[null,null,null,null,"Discontinued - Large Gauged Tiles/Panels Tools",null,null,null,null,null,null,null,null,null,null,null,null,null,null,null,null,null,null,null,null,null,null,null,null,null,null,null,null,null,null,null,null,null,null,null,null,null,"X"]
[null,null,null,null,null,null,null,null,null,null,null,null,null,null,null,null,null,null,null,null,null,null,null,null,null,null,null,null,null,null,null,null,null,null,null,null,null,null,null,null,null,null,"X"]
[null,null,null,null,null,"Cutting Table",null,null,null,null,null,null,null,null,null,null,null,null,null,null,null,null,null,null,null,null,null,null,null,null,null,null,null,null,null,null,null,null,null,null,null,null,"X"]
[null,null,"ET1",{"$error":"#N/A"},null,"ETETABLE3",null,"ETM-TABLE3: 2 Connectable 39\" x 72\" Tables with Adjustable X-Bars",null,null,null,null,null,null,null,null,"ETM",null,null,"a",{"$f":"IF(Suggested=\"Yes\",'Price List'!AC493,'Price List'!AI493)","v":{"$error":"#N/A"}},"EA",{"$f":"+Instructions!$B$3","v":"N"},null,{"$f":"+Instructions!$D$22","v":0},{"$f":"ROUND($AC493*(1-Y493)+0.004999,2)","v":{"$error":"#N/A"}},null,{"$error":"#N/A"},{"$error":"#N/A"},{"$f":"+Y493","v":0},{"$f":"+Z493","v":{"$error":"#N/A"}},{"$f":"(AI493-AE493)/AI493","v":{"$error":"#N/A"}},null,{"$f":"+C493","v":"ET1"},{"$f":"SUM(AL493:AN493)+AG493","v":{"$error":"#N/A"}},null,null,{"$f":"ROUND(AE493/(1-VLOOKUP(AH493,Group,2,FALSE)),2)","v":{"$error":"#N/A"}},{"$f":"IF(VLOOKUP(AH493,Group,3,FALSE)=\"YES\",VLOOKUP(ROUND(ROUND(AL493,1)-AL493,2),Round,2,FALSE)+VLOOKUP(AH493,Group,4,FALSE),0)","v":{"$error":"#N/A"}},{"$f":"IF(VLOOKUP(AH493,Group,5,FALSE)=\"\",0,ROUND(AL493-0.04999,1)-AL493+AO493)","v":{"$error":"#N/A"}},{"$f":"IF(VLOOKUP(AH493,Group,5,FALSE)=\"\",\"\",VLOOKUP(AH493,Group,5,FALSE))","v":{"$error":"#N/A"}},null,"X"]
[null,null,null,null,null,null,null,null,null,null,null,null,null,null,null,null,null,null,null,"Special Sale Price",2000,"EA"]
[null,null,null,null,null,null,null,null,null,null,null,null,null,null,null,null,null,null,null,null,null,null,null,null,null,null,null,null,null,null,null,null,null,null,null,null,null,null,null,null,null,null,"X"]
[null,null,null,null,null,"Beveling, Mitering & Bullnosing",null,null,null,null,null,null,null,null,null,null,null,null,null,null,null,null,null,null,null,null,null,null,null,null,null,null,null,null,null,null,null,null,null,null,null,null,"X"]
[null,null,"ET1",{"$error":"#N/A"},null,"ETE36B3",null,"KERA-EDGE KIT: includes 36A KERA-EDGE, Bosch 1380 Slim Grinder,",null,null,null,null,null,null,null,null,"ETM",null,null,"a",{"$f":"IF(Suggested=\"Yes\",'Price List'!AC497,'Price List'!AI497)","v":{"$error":"#N/A"}},"EA",{"$f":"+Instructions!$B$3","v":"N"},null,{"$f":"+Instructions!$D$22","v":0},{"$f":"ROUND($AC497*(1-Y497)+0.004999,2)","v":{"$error":"#N/A"}},null,{"$error":"#N/A"},{"$error":"#N/A"},{"$f":"+Y497","v":0},{"$f":"+Z497","v":{"$error":"#N/A"}},{"$f":"(AI497-AE497)/AI497","v":{"$error":"#N/A"}},null,{"$f":"+C497","v":"ET1"},{"$f":"SUM(AL497:AN497)+AG497","v":{"$error":"#N/A"}},null,null,{"$f":"ROUND(AE497/(1-VLOOKUP(AH497,Group,2,FALSE)),2)","v":{"$error":"#N/A"}},{"$f":"IF(VLOOKUP(AH497,Group,3,FALSE)=\"YES\",VLOOKUP(ROUND(ROUND(AL497,1)-AL497,2),Round,2,FALSE)+VLOOKUP(AH497,Group,4,FALSE),0)","v":{"$error":"#N/A"}},{"$f":"IF(VLOOKUP(AH497,Group,5,FALSE)=\"\",0,ROUND(AL497-0.04999,1)-AL497+AO497)","v":{"$error":"#N/A"}},{"$f":"IF(VLOOKUP(AH497,Group,5,FALSE)=\"\",\"\",VLOOKUP(AH497,Group,5,FALSE))","v":{"$error":"#N/A"}},null,"X"]
[null,null,null,null,null,null,null,null,"Water Kit, Diamond Cup, Backer Pad, and 4 Diamond Pads",null,null,null,null,null,null,null,null,null,null,"Special Sale Price",500,"EA",null,null,null,null,null,null,null,null,null,null,null,null,null,null,null,null,null,null,null,null,"X"]
[null,null,null,null,null,null,null,null,null,null,null,null,null,null,null,null,null,null,null,null,null,null,null,null,null,null,null,null,null,null,null,null,null,null,null,null,null,null,null,null,null,null,"X"]
[null,null,null,null,null,"Breakers",null,null,null,null,null,null,null,null,null,null,null,null,null,null,null,null,null,null,null,null,null,null,null,null,null,null,null,null,null,null,null,null,null,null,null,null,"X"]
[null,null,"RU","Rubi - All Other",null,"RU54918",null,"54918","Slab Breaker Pliers (for breaking tile 3-10mm thick)",null,null,null,null,null,null,null,"Rubi",null,null,"a",{"$f":"IF(Suggested=\"Yes\",'Price List'!AC501,'Price List'!AI501)","v":131.69999999999999},"EA",{"$f":"+Instructions!$B$3","v":"N"},null,{"$f":"+Instructions!$D$22","v":0},{"$f":"ROUND($AC501*(1-Y501)+0.004999,2)","v":131.69999999999999},null,"YES",131.69999999999999,{"$f":"+Y501","v":0},{"$f":"+Z501","v":131.69999999999999},{"$f":"(AI501-AE501)/AI501","v":0},null,{"$f":"+C501","v":"RU"},{"$f":"SUM(AL501:AN501)+AG501","v":131.69999999999999},null,null,{"$f":"ROUND(AE501/(1-VLOOKUP(AH501,Group,2,FALSE)),2)","v":131.69999999999999},{"$f":"IF(VLOOKUP(AH501,Group,3,FALSE)=\"YES\",VLOOKUP(ROUND(ROUND(AL501,1)-AL501,2),Round,2,FALSE)+VLOOKUP(AH501,Group,4,FALSE),0)","v":0},{"$f":"IF(VLOOKUP(AH501,Group,5,FALSE)=\"\",0,ROUND(AL501-0.04999,1)-AL501+AO501)","v":0},{"$f":"IF(VLOOKUP(AH501,Group,5,FALSE)=\"\",\"\",VLOOKUP(AH501,Group,5,FALSE))","v":""},null,"X"]
[null,null,null,null,null,null,null,null,"Water Kit, Diamond Cup, Backer Pad, and 4 Diamond Pads",null,null,null,null,null,null,null,null,null,null,"Special Sale Price",65,"EA",null,null,null,null,null,null,null,null,null,null,null,null,null,null,null,null,null,null,null,null,"X"]
[null,null,null,null,null,null,null,null,null,null,null,null,null,null,null,null,null,null,null,null,null,null,null,null,null,null,null,null,null,null,null,null,null,null,null,null,null,null,null,null,null,null,"X"]
[null,null,null,null,null,"Notes:","a) Discontinued items are available until remaining stock is sold - check Conestoga Tile for remaining stock",null,null,null,null,null,null,null,null,null,null,null,null,null,null,null,null,null,null,null,null,null,null,null,null,null,null,null,null,null,null,null,null,null,null,null,"X"]
[null,null,null,null,null,null,null,null,null,null,null,null,null,null,null,null,null,null,null,null,null,null,null,null,null,null,null,null,null,null,null,null,null,null,null,null,null,null,null,null,null,null,"X"]
[null,null,null,null,"This price list is available electronically on an Excel spreadsheet at www.conestogatile.com/pricelists.",null,null,null,null,null,null,null,null,null,null,null,null,null,null,null,null,null,null,null,null,null,null,null,null,null,null,null,null,null,null,null,null,null,null,null,null,null,"X"]
[null,null,null,null,null,null,null,null,null,null,null,null,null,null,null,null,null,null,null,null,null,null,null,null,null,null,null,null,null,null,null,null,null,null,null,null,null,null,null,null,null,null,"X"]
[null,null,null,null,null,null,null,null,null,null,null,null,null,null,null,null,null,null,null,null,null,null,null,null,null,null,null,null,null,null,null,null,null,null,null,null,null,null,null,null,null,null,"X"]
[null,null,null,"X","X","X","X","X","X","X","X","X","X","X","X","X","X","X","X","X","X","X","X","X","X","X","X","X","X","X","X","X","X","X","X","X","X","X","X","X","X","X","X"]
[]
[null,null,null,null,null,"$.05 Round Matrix"]
[null,null,null,null,null,-0.04,0.01]
[null,null,null,null,null,-0.03,0.02]
[null,null,null,null,null,-0.02,0.03]
[null,null,null,null,null,-0.01,-0.01]
[null,null,null,null,null,0,0]
[null,null,null,null,null,0.01,1.0000000000005116E-2]
[null,null,null,null,null,0.02,2.0000000000003126E-2]
[null,null,null,null,null,0.03,3.0000000000001137E-2]
[null,null,null,null,null,0.04,-0.01]
[null,null,null,null,null,0.05,0]

{"sheet":"Websites","index":3,"n_rows":16,"n_cols":2,"rows_kept":16,"cut":false,"hidden":false,"merged":[]}
["Easy Access Website links"]
[]
["ConestogaTile's Website","www.conestogatile.com"]
[]
["Manufacturer's Home Page"]
["Barwalt","www.barwalt.com"]
["European Tile Masters (ETMM)","www.europeantilemasters"]
["IQ Saws","https://iqpowertools.com/"]
["Mark E. Ind.","www.markeindustries.com"]
["MK Diamond","www.mkdiamond.com"]
["Progress Profiles","www.progressprofiles.com"]
["Rubi Tools","www.rubi.com"]
["Sigma (RTC)","www.rtcproducts.com"]
["Troxell Tools","https://troxellusa.com/"]
[]
["Product","Direct Website Link"]

{"sheet":"Updates","index":4,"n_rows":16,"n_cols":3,"rows_kept":16,"cut":false,"hidden":false,"merged":[]}
[null,"Price List"]
["Mfg","Date","Description"]
[]
["New Products"]
[]
[]
[]
[]
[]
[]
[]
[]
[]
[]
[]
["Discontinued Products"]